Workbook

Sheet Curve Fitting (hidden)
E1: BL-074, BL-076 | I1: BL-077, BL-078 | O1: BL-079, BL-080
E2: [SM]0 | F2: 80 mM | I2: [SM]0 | J2: 40 mM | O2: [SM]0 | P2: 20 mM
E3: [PhCO2H]0 | F3: 96 mM | I3: [PhCO2H]0 | J3: 56 mM | O3: [PhCO2H]0 | P3: 36 mM | Y3: exp3 sm | AA3: exp2 sm | AC3: exp1 sm | AF3: exp3 p | AH3: exp2 p | AJ3: exp 1 p
E4: [PhCONHBr]0 | F4: 96 mM | G4: t1/2 (SM) | I4: [PhCONHBr]0 | J4: 56 mM | L4: t1/2 (SM) | O4: [PhCONHBr]0 | P4: 36 mM | X4: A | Y4: -21.16598252 | AA4: -41.02026859 | AD4: -81.11012035 | AF4: 24.76445876 | AH4: 50.81970599 | AJ4: 160.5360448
E5: [(DHQD)2PHAL]0 | F5: 8 mM | I5: [(DHQD)2PHAL]0 | J5: 8 mM | O5: [(DHQD)2PHAL]0 | P5: 8 mM | X5: k | Y5: 8.618862754 | AA5: 5.689832247 | AD5: 3.512695462 | AF5: 0.02737200907 | AH5: 0.0093480617 | AJ5: 0.003442648369
E6: [(4-Tol)2CO]0 | F6: 40 mM | I6: [(4-Tol)2CO]0 | J6: 40 mM | O6: [(4-Tol)2CO]0 | P6: 40 mM | X6: n | Y6: -0.5307537443 | AA6: -0.4885651444 | AD6: -0.4633591097 | AF6: 1.285297573 | AH6: 1.334915505 | AJ6: 1.19912602
E7: [P]0 (83:17 er) | F7: 0 mM | I7: [P]0 (83:17 er) | J7: 0 mM | O7: [P]0 (83:17 er) | P7: 40 mM
E8: [PhCONH2]0 | F8: 0 mM | I8: [PhCONH2]0 | J8: 0 mM | O8: [PhCONH2]0 | P8: 0 mM | X8: t1/2 (SM) | Y8: =(-LN(((R12/2)/$Y$4)+1)/$Y$5)^(1/$Y$6) -> 112.0406698 | AA8: =(-LN(((L12/2)/$AA$4)+1)/$AA$5)^(1/$AA$6) -> 73.40599089 | AD8: =(-LN(((F12/2)/$AD$4)+1)/$AD$5)^(1/$AD$6) -> 33.08269507 | AF8: =(-LN(1-($R$12/2)/$AF$4)/$AF$5)^(1/$AF$6) -> 10.55265672 | AH8: =(-LN(1-($L$12/2)/$AH$4)/$AH$5)^(1/$AH$6) -> 20.28983364 | AJ8: =(-LN(1-($F$12/2)/$AJ$4)/$AJ$5)^(1/$AJ$6) -> 40.52286387
E10: Experiment 1 | I10: Experiment 2 | O10: Experiment 3
E11: t (minutes) | F11: [SM] (mM) | G11: [P] (mM) | H11: ln([SM]/[SM]0) | I11: t (minutes) | J11: shifted t, SM | K11: shifted t, P | L11: [SM] (mM) | M11: [P] (mM) | N11: ln([SM]/[SM]0) | O11: t (minutes) | P11: shifted t, SM | Q11: shifted t, P | R11: [SM] (mM) | S11: [P] (mM) | T11: ln([SM]/[SM]0) | Y11: Y_fit ([SM]) = -A*(1-exp(-k*t^n)) | Z11: residual^2 | AA11: Y_fit ([SM]) = -A*(1-exp(-k*t^n)) | AB11: residual^2 | AC11: Y_fit ([SM]) = -A*(1-exp(-k*t^n)) | AD11: residual^2 | AE11: Y_fit ([SM]) = A*(1-exp(-k*t^n)) | AF11: residual^2 | AG11: Y_fit ([SM]) = A*(1-exp(-k*t^n)) | AH11: residual^2 | AI11: Y_fit ([SM]) = A*(1-exp(-k*t^n)) | AJ11: residual^2
B12: shifted t, SM | D12: 31 | E12: 0 | F12: 81.2 | G12: 0 | H12: =LN(F12/$F$12) -> 0 | I12: 0 | J12: =I12+$C$12 -> 0 | K12: =I12+$C$13 -> 0 | L12: 41.2 | M12: =0+$C$14 -> 0 | N12: =LN(L12/$L$12) -> 0 | O12: 0 | P12: =O12+$C$15 -> 0 | Q12: =O12+$C$16 -> 0 | R12: 21.4 | S12: =0+$C$17 -> 0 | T12: =LN(R12/$R$12) -> 0 | Y12: =-$Y$4*(1-EXP(-$Y$5*(P12+1E-50)^$Y$6)) -> 21.16598252 | Z12: =(R12-Y12)^2 -> 0.05476417899 | AA12: =-$AA$4*(1-EXP(-$AA$5*(J12+1E-50)^$AA$6)) -> 41.02026859 | AB12: =(L12-AA12)^2 -> 0.03230337813 | AC12: =-$AD$4*(1-EXP(-$AD$5*(E12+1E-50)^$AD$6)) -> 81.11012035 | AD12: =(F12-AC12)^2 -> 0.008078351843 | AE12: =$AF$4*(1-EXP(-$AF$5*(S12+1E-50)^$AF$6)) -> 0 | AF12: =(S12-AE12)^2 -> 0 | AG12: =$AH$4*(1-EXP(-$AH$5*(M12+1E-50)^$AH$6)) -> 0 | AH12: =(M12-AG12)^2 -> 0 | AI12: =$AJ$4*(1-EXP(-$AJ$5*(G12+1E-50)^$AJ$6)) -> 0 | AJ12: =(G12-AI12)^2 -> 0
B13: shifted t, P | D13: 31 | E13: 15 | F13: 50.49566764 | G13: 29.77267035 | H13: =LN(F13/$F$12) -> -0.4750277039 | I13: 15 | J13: 15 | K13: =I13+$C$13 -> 15 | L13: 31.08179487 | M13: =10.6210185340732+$C$14 -> 10.62101853 | N13: =LN(L13/$L$12) -> -0.2818159824 | O13: 15 | P13: =O13+$C$15 -> 15 | Q13: =O13+$C$16 -> 15 | R13: 17.88647518 | S13: =3.217275508169+$C$17 -> 3.217275508 | T13: =LN(R13/$R$12) -> -0.179346071 | Y13: =-$Y$4*(1-EXP(-$Y$5*P13^$Y$6)) -> 18.43450571 | Z13: 0.3003374607 | AA13: =-$AA$4*(1-EXP(-$AA$5*(J13)^$AA$6)) -> 32.00649697 | AB13: 0.8550739606 | AC13: =-$AD$4*(1-EXP(-$AD$5*(E13)^$AD$6)) -> 51.31863767 | AD13: 0.6772796751 | AE13: =$AF$4*(1-EXP(-$AF$5*(S13+1E-50)^$AF$6)) -> 2.864132666 | AF13: =(S13-AE13)^2 -> 0.1247098667 | AG13: =$AH$4*(1-EXP(-$AH$5*(M13+1E-50)^$AH$6)) -> 9.997656264 | AH13: =(M13-AG13)^2 -> 0.38858052 | AI13: =$AJ$4*(1-EXP(-$AJ$5*(G13+1E-50)^$AJ$6)) -> 29.29182739 | AJ13: =(G13-AI13)^2 -> 0.2312099466
B14: shifted [P] (mM) | D14: 40 | E14: 30 | F14: 41.72976968 | G14: 37.55471399 | H14: -0.665700472 | I14: 30 | J14: 30 | K14: 30 | L14: 27.35501977 | M14: =14.7003413123808+$C$14 -> 14.70034131 | N14: -0.409538206 | O14: 30 | P14: 30 | Q14: 30 | R14: 15.74833146 | S14: =5.14384721284062+$C$17 -> 5.143847213 | T14: -0.3066565015 | Y14: 16.03604475 | Z14: 0.08277894067 | AA14: 27.09016803 | AB14: 0.07014644582 | AC14: 41.88323135 | AD14: 0.02355048501 | AE14: 4.982889065 | AF14: 0.02590752546 | AG14: 14.57782321 | AH14: 0.01501068482 | AI14: 37.51243759 | AJ14: 0.001787293517
B15: shifted t, SM | D15: 95 | E15: 45 | F15: 36.92775649 | G15: 42.06821305 | H15: -0.7879517705 | I15: 45 | J15: 45 | K15: 45 | L15: 24.22362843 | M15: =17.0757071003981+$C$14 -> 17.0757071 | N15: -0.5311097182 | O15: 45 | P15: 45 | Q15: 45 | R15: 14.59082312 | S15: =6.37228506338429+$C$17 -> 6.372285063 | T15: -0.3829981446 | Y15: 14.41617686 | Z15: 0.03050131656 | AA15: 24.1062921 | AB15: 0.01376781364 | AC15: 36.68567811 | AD15: 0.05860194218 | AE15: 6.34212429 | AF15: 0.0009096722766 | AG15: 17.19080041 | AH15: 0.01324647028 | AI15: 42.19439291 | AJ15: 0.01592135614
B16: shifted t, P | D16: 95 | E16: 60 | F16: 34.01608545 | G16: 44.66357897 | H16: -0.8700817329 | I16: 60 | J16: 60 | K16: 60 | L16: 22.38473515 | M16: =18.7931401070885+$C$14 -> 18.79314011 | N16: -0.6100589965 | O16: 60 | P16: 60 | Q16: 60 | R16: 13.48594483 | S16: =7.37527033876866+$C$17 -> 7.375270339 | T16: -0.4617429024 | Y16: 13.23046213 | Z16: 0.06527141257 | AA16: 22.02283648 | AB16: 0.1309706483 | AC16: 33.2194739 | AD16: 0.63458996 | AE16: 7.434848297 | AF16: 0.003549533061 | AG16: 19.0334017 | AH16: 0.05772563138 | AI16: 44.84999627 | AJ16: 0.03475140982
B17: shifted [P] (mM) | D17: 60 | E17: 90 | F17: 29.3485746 | G17: 48.7125403 | H17: -1.017671268 | I17: 90 | J17: 90 | K17: 90 | L17: 19.71731727 | M17: =21.2697845967899+$C$14 -> 21.2697846 | N17: -0.7369409577 | O17: 90 | P17: 90 | Q17: 90 | R17: 11.91439829 | S17: =8.7257814937178+$C$17 -> 8.725781494 | T17: -0.5856433127 | Y17: 11.57042085 | Z17: 0.1183204815 | AA17: 19.20441223 | AB17: 0.2630715742 | AC17: 28.69648233 | AD17: 0.4252243197 | AE17: 8.864910704 | AF17: 0.01935693714 | AG17: 21.60379447 | AH17: 0.1115625959 | AI17: 48.93285062 | AJ17: 0.04853663492
E18: 120 | F18: 26.14088596 | G18: 51.21127286 | H18: -1.133414647 | I18: 120 | J18: 120 | K18: 120 | L18: 17.45791795 | M18: =22.7769723164391+$C$14 -> 22.77697232 | N18: -0.8586449597 | O18: 120 | P18: 120 | Q18: 120 | R18: 10.7169127 | S18: =9.59514621798861+$C$17 -> 9.595146218 | T18: -0.6915678022 | Y18: 10.43299578 | Z18: 0.08060881532 | AA18: 17.32131937 | AB18: 0.01865917412 | AC18: 25.76112186 | AD18: 0.1442207744 | AE18: 9.753832457 | AF18: 0.02518132257 | AG18: 23.11124534 | AH18: 0.1117384564 | AI18: 51.41323223 | AJ18: 0.04078758553
E19: 180 | F19: 22.59941754 | G19: 54.40459119 | H19: -1.278991114 | I19: 180 | J19: 180 | K19: 180 | L19: 15.2115839 | M19: =25.0156102727655+$C$14 -> 25.01561027 | N19: -0.9963810199 | O19: 180 | P19: 180 | Q19: 180 | R19: 9.278592263 | S19: =11.0141146363754+$C$17 -> 11.01411464 | T19: -0.8356810826 | Y19: 8.924809217 | Z19: 0.1251624433 | AA19: 14.86565869 | AB19: 0.1196642524 | AC19: 22.01702837 | AD19: 0.3391771487 | AE19: 11.14286588 | AF19: 0.01657688384 | AG19: 25.26362899 | AH19: 0.06151328477 | AI19: 54.53677781 | AJ19: 0.01747330291
E20: 240 | F20: 19.47324451 | G20: 56.80800034 | H20: -1.4278738 | I20: 240 | J20: 240 | K20: 240 | L20: 13.37626834 | M20: =26.5092700746549+$C$14 -> 26.50927007 | N20: -1.124956139 | O20: 240 | P20: 240 | Q20: 240 | R20: 7.973791846 | S20: =11.8367164536655+$C$17 -> 11.83671645 | T20: -0.9872307775 | Y20: 7.937855132 | Z20: 0.001291447407 | AA20: 13.27583363 | AB20: 0.0100871303 | AC20: 19.63474789 | AD20: 0.02608334286 | AE20: 11.91020515 | AF20: 0.005400588734 | AG20: 26.63928341 | AH20: 0.0169034683 | AI20: 56.85201554 | AJ20: 0.001937337719
E21: 300 | F21: 17.75539983 | G21: 57.92784223 | H21: -1.520225562 | I21: 300 | J21: 300 | K21: 300 | L21: 12.05348375 | M21: =27.5018570311999+$C$14 -> 27.50185703 | N21: -1.22908453 | O21: 300 | P21: 300 | Q21: 300 | R21: 7.19520574 | S21: =12.5957367190259+$C$17 -> 12.59573672 | T21: -1.089975987 | Y21: 7.224828282 | Z21: 0.0008774950002 | AA21: 12.13233578 | AB21: 0.006217643042 | AC21: 17.937997 | AD21: 0.03334172602 | AE21: 12.59240126 | AF21: 1.112529229e-05 | AG21: 27.52589183 | AH21: 0.0005776715187 | AI21: 57.92002559 | AJ21: 6.109992712e-05
E22: 360 | F22: 16.10814151 | G22: 59.41377798 | H22: -1.617590419 | I22: 360 | J22: 360 | K22: 360 | L22: 11.03721504 | M22: =28.3242661263123+$C$14 -> 28.32426613 | N22: -1.317165508 | O22: 360 | P22: 360 | Q22: 360 | R22: 6.506865492 | S22: =13.1340536386762+$C$17 -> 13.13405364 | T22: -1.190533073 | Y22: 6.677453756 | Z22: 0.02910035571 | AA22: 11.25604652 | AB22: 0.04788721668 | AC22: 16.64584471 | AD22: 0.2891247333 | AE22: 13.06091403 | AF22: 0.005349403063 | AG22: 28.24359633 | AH22: 0.006507615378 | AI22: 59.32645 | AJ22: 0.007626176507
E23: 420 | F23: 15.0031994 | G23: 60.66807555 | H23: -1.688651775 | I23: 420 | J23: 420 | K23: 420 | L23: 10.13929083 | M23: =29.1856674881565+$C$14 -> 29.18566749 | N23: -1.402020198 | O23: 420 | P23: 420 | Q23: 420 | R23: 5.84807052 | S23: =13.4998056079374+$C$17 -> 13.49980561 | T23: -1.297279141 | Y23: 6.239546035 | Z23: 0.153253079 | AA23: 10.55531262 | AB23: 0.1730741242 | AC23: 15.61697179 | AD23: 0.3767165409 | AE23: 13.37191815 | AF23: 0.016355203 | AG23: 28.97879149 | AH23: 0.04279767755 | AI23: 60.50398788 | AJ23: 0.02692476521
E24: 480 | F24: 14.07329365 | G24: 61.64019553 | H24: -1.752636313 | I24: 480 | J24: 480 | K24: 480 | L24: 9.31298226 | M24: =29.4961199843847+$C$14 -> 29.49611998 | N24: -1.487028888 | O24: 480 | P24: 480 | Q24: 480 | R24: 5.415243015 | S24: =13.8768765706848+$C$17 -> 13.87687657 | T24: -1.374173165 | Y24: 5.878565611 | Z24: 0.2146678285 | AA24: 9.977516635 | AB24: 0.4416059351 | AC24: 14.77119849 | AD24: 0.4870711583 | AE24: 13.68632111 | AF24: 0.03631138519 | AG24: 29.23959563 | AH24: 0.06580474398 | AI24: 61.41048083 | AJ24: 0.05276884281
W26: log[SM]/[SM]0 | Z26: =SUM(Z12:Z24) -> 1.256935255 | AB26: =SUM(AB12:AB24) -> 2.182529296 | AD26: 3.523060158 | AF26: =SUM(AF12:AF24) -> 0.2796194463 | AH26: =SUM(AH12:AH24) -> 0.8919688203 | AJ26: =SUM(AJ12:AJ24) -> 0.4797857516
Y28: t
E65: Experiment 1 | J65: Experiment 2 | O65: Experiment 3
E66: [P]n - [P]n-1 | F66: [SM]n-1 - [SM]n | G66: subtraction | I66: [SM]0 - [P]n - [SM]n | J66: [P]n - [P]n-1 | K66: [SM]n-1 - [SM]n | L66: subtraction | M66: [SM]0 - [P]n + [SM]n | O66: [P]n - [P]n-1 | P66: [SM]n-1 - [SM]n | Q66: subtraction | R66: [SM]0 - [P]n - [SM]n
E67: =G13-G12 -> 29.77267035 | F67: =F12-F13 -> 30.70433236 | G67: =F67-E67 -> 0.9316620128 | I67: =$F$12-(F12+G12) -> 0 | J67: =M13-M12 -> 10.62101853 | K67: =L12-L13 -> 10.11820513 | L67: =K67-J67 -> -0.5028134087 | M67: =($L$12+$C$14)-(L12+M12) -> 0 | O67: =S13-S12 -> 3.217275508 | P67: =R12-R13 -> 3.513524815 | Q67: =P67-O67 -> 0.2962493072 | R67: =($R$12+$C$17)-S12-R12 -> 0
E68: =G14-G13 -> 7.782043638 | F68: =F13-F14 -> 8.765897965 | G68: =F68-E68 -> 0.9838543265 | I68: =$F$12-(F13+G13) -> 0.9316620128 | J68: 4.079322778 | K68: 3.7267751 | L68: =K68-J68 -> -0.3525476781 | M68: -0.5028134087 | O68: =S14-S13 -> 1.926571705 | P68: =R13-R14 -> 2.138143726 | Q68: =P68-O68 -> 0.2115720218 | R68: 0.2962493072
E69: =G15-G14 -> 4.513499066 | F69: =F14-F15 -> 4.802013184 | G69: 0.2885141188 | I69: 1.915516339 | J69: 2.375365788 | K69: 3.131391347 | L69: 0.7560255586 | M69: -0.8553610868 | O69: 1.228437851 | P69: 1.157508341 | Q69: -0.07092950951 | R69: 0.507821329
E70: =G16-G15 -> 2.595365921 | F70: =F15-F16 -> 2.911671039 | G70: 0.316305118 | I70: 2.204030458 | J70: 1.717433007 | K70: 1.838893281 | L70: 0.1214602744 | M70: -0.09933552822 | O70: 1.002985275 | P70: 1.104878284 | Q70: 0.101893009 | R70: 0.4368918195
E71: 4.048961329 | F71: 4.667510856 | G71: 0.6185495273 | I71: 2.520335576 | J71: 2.47664449 | K71: 2.667417879 | L71: 0.1907733898 | M71: 0.02212474622 | O71: 1.350511155 | P71: 1.571546539 | Q71: 0.2210353842 | R71: 0.5387848285
E72: 2.498732563 | F72: 3.207688637 | G72: 0.7089560734 | I72: 3.138885103 | J72: 1.50718772 | K72: 2.259399313 | L72: 0.7522115937 | M72: 0.212898136 | O72: 0.8693647243 | P72: 1.197485593 | Q72: 0.3281208686 | R72: 0.7598202127
E73: 3.193318327 | F73: 3.541468414 | G73: 0.3481500866 | I73: 3.847841177 | J73: 2.238637956 | K73: 2.246334051 | L73: 0.007696095154 | M73: 0.9651097297 | O73: 1.418968418 | P73: 1.438320438 | Q73: 0.01935201984 | R73: 1.087941081
E74: 2.403409147 | F74: 3.126173035 | G74: 0.7227638884 | I74: 4.195991263 | J74: 1.493659802 | K74: 1.835315564 | L74: 0.3416557625 | M74: 0.9728058248 | O74: 0.8226018173 | P74: 1.304800417 | Q74: 0.4821985992 | R74: 1.107293101
E75: 1.119841894 | F75: 1.717844682 | G75: 0.5980027876 | I75: 4.918755152 | J75: 0.9925869565 | K75: 1.322784587 | L75: 0.3301976306 | M75: 1.314461587 | O75: 0.7590202654 | P75: 0.7785861056 | Q75: 0.01956584026 | R75: 1.5894917
E76: 1.485935749 | F76: 1.647258318 | G76: 0.1613225694 | I76: 5.516757939 | J76: 0.8224090951 | K76: 1.016268713 | L76: 0.1938596175 | M76: 1.644659218 | O76: 0.5383169197 | P76: 0.6883402482 | Q76: 0.1500233286 | R76: 1.609057541
E77: 1.25429757 | F77: 1.104942108 | G77: -0.1493554619 | I77: 5.678080509 | J77: 0.8614013618 | K77: 0.8979242057 | L77: 0.03652284382 | M77: 1.838518835 | O77: 0.3657519693 | P77: 0.6587949723 | Q77: 0.293043003 | R77: 1.759080869
E78: 0.9721199777 | F78: 0.929905749 | G78: -0.04221422873 | I78: 5.528725047 | J78: 0.3104524962 | K78: 0.8263085726 | L78: 0.5158560764 | M78: 1.875041679 | O78: 0.3770709627 | P78: 0.4328275051 | Q78: 0.05575654235 | R78: 2.052123872
G79: cant be negative | L79: cant be negative

Sheet P inhibition, or deactivation
D1: BL-074, BL-076 | H1: BL-077, BL-078 | M1: BL-079, BL-080
D2: [SM]0 | E2: 80 mM | H2: [SM]0 | I2: 40 mM | M2: [SM]0 | N2: 20 mM
D3: [PhCO2H]0 | E3: 96 mM | G3: t1/2 (SM, h) | H3: [PhCO2H]0 | I3: 56 mM | K3: t1/2 (SM, h) | M3: [PhCO2H]0 | N3: 36 mM
D4: [PhCONHBr]0 | E4: 96 mM | G4: 33.08269507 | H4: [PhCONHBr]0 | I4: 56 mM | K4: 73.40599089 | M4: [PhCONHBr]0 | N4: 36 mM | P4: t1/2 (SM, h)
D5: [(DHQD)2PHAL]0 | E5: 8 mM | H5: [(DHQD)2PHAL]0 | I5: 8 mM | M5: [(DHQD)2PHAL]0 | N5: 8 mM | P5: 112.0406698
D6: [(4-Tol)2CO]0 | E6: 40 mM | G6: in. rate (mM h-1) | H6: [(4-Tol)2CO]0 | I6: 40 mM | K6: in. rate (mM h-1) | M6: [(4-Tol)2CO]0 | N6: 40 mM | O6: ← internal standard
D7: [P]0 (83:17 er) | E7: 0 mM | G7: =SLOPE(G12:G14,D12:D14) -> 146.1347925 | H7: [P]0 (83:17 er) | I7: 0 mM | K7: =SLOPE(L12:L14,H12:H14) -> 47.54346711 | M7: [P]0 (83:17 er) | N7: 0 mM
D8: [PhCONH2]0 | E8: 0 mM | H8: [PhCONH2]0 | I8: 0 mM | M8: [PhCONH2]0 | N8: 0 mM
D10: Experiment 1 | H10: Experiment 2 | M10: Experiment 3
D11: t (hours) | E11: er | F11: [SM] (mM) | G11: [P] (mM) | H11: t (hours) | I11: shifted t, SM | J11: shifted t, P | K11: [SM] (mM) | L11: [P] (mM) | M11: t (hours) | N11: shifted t, SM | O11: shifted t, P | P11: [SM] (mM) | Q11: [P] (mM)
A12: shifted t, SM | B12: =33.0826950697976/60 -> 0.5513782512 | D12: =0/60 -> 0 | F12: 81.2 | G12: 0 | H12: =0/60 -> 0 | I12: =H12+$B$12 -> 0.5513782512 | J12: =H12+$B$13 -> 0.6083333333 | K12: 41.2 | L12: =0+$B$14 -> 40 | M12: =0/60 -> 0 | N12: =M12+$B$15 -> 1.774811433 | O12: =M12+$B$16 -> 1.774811433 | P12: 20.8 | Q12: =0+$B$17 -> 60
A13: shifted t, P | B13: =36.5/60 -> 0.6083333333 | D13: =5/60 -> 0.08333333333 | E13: 82 | F13: 61.3271683 | G13: 17.09311471 | H13: =5/60 -> 0.08333333333 | I13: 0.6347115845 | J13: =H13+$B$13 -> 0.6916666667 | L13: =4.8722916197291+$B$14 -> 44.87229162 | M13: =15/60 -> 0.25 | N13: =M13+$B$15 -> 2.024811433 | O13: =M13+$B$16 -> 2.024811433 | P13: 17.88647518 | Q13: =3.217275508169+$B$17 -> 63.21727551
A14: shifted [P] (mM) | B14: 40 | D14: =10/60 -> 0.1666666667 | E14: 82 | F14: 54.1675482 | G14: 24.35579875 | H14: =10/60 -> 0.1666666667 | I14: =H14+$B$12 -> 0.7180449178 | J14: =H14+$B$13 -> 0.775 | L14: 47.92391118 | M14: =30/60 -> 0.5 | N14: 2.274811433 | O14: 2.274811433 | P14: 15.74833146 | Q14: =5.14384721284062+$B$17 -> 65.14384721
A15: shifted t, SM | B15: =(K4+G4)/60 -> 1.774811433 | D15: =15/60 -> 0.25 | E15: 83 | F15: 50.49566764 | G15: 29.77267035 | H15: =15/60 -> 0.25 | I15: =H15+$B$12 -> 0.8013782512 | J15: =H15+$B$13 -> 0.8583333333 | K15: 31.08179487 | L15: =10.6210185340732+$B$14 -> 50.62101853 | M15: =45/60 -> 0.75 | N15: 2.524811433 | O15: 2.524811433 | P15: 14.59082312 | Q15: =6.37228506338429+$B$17 -> 66.37228506
A16: shifted t, P | B16: =(K4+G4)/60 -> 1.774811433 | D16: =30/60 -> 0.5 | E16: 83 | F16: 41.72976968 | G16: 37.55471399 | H16: =30/60 -> 0.5 | I16: =H16+$B$12 -> 1.051378251 | J16: 1.108333333 | K16: 27.35501977 | L16: =14.7003413123808+$B$14 -> 54.70034131 | M16: =60/60 -> 1 | N16: 2.774811433 | O16: 2.774811433 | P16: 13.48594483 | Q16: =7.37527033876866+$B$17 -> 67.37527034
A17: shifted [P] (mM) | B17: 60 | D17: =45/60 -> 0.75 | E17: 83 | F17: 36.92775649 | G17: 42.06821305 | H17: =45/60 -> 0.75 | I17: 1.301378251 | J17: 1.358333333 | K17: 24.22362843 | L17: =17.0757071003981+$B$14 -> 57.0757071 | M17: =90/60 -> 1.5 | N17: 3.274811433 | O17: 3.274811433 | P17: 11.91439829 | Q17: =8.7257814937178+$B$17 -> 68.72578149
D18: =60/60 -> 1 | E18: 83 | F18: 34.01608545 | G18: 44.66357897 | H18: =60/60 -> 1 | I18: 1.551378251 | J18: 1.608333333 | K18: 22.38473515 | L18: =18.7931401070885+$B$14 -> 58.79314011 | M18: =120/60 -> 2 | N18: 3.774811433 | O18: 3.774811433 | P18: 10.7169127 | Q18: =9.65990977443887+$B$17 -> 69.65990977
D19: =90/60 -> 1.5 | E19: 83 | F19: 29.3485746 | G19: 48.7125403 | H19: =90/60 -> 1.5 | I19: 2.051378251 | J19: 2.108333333 | K19: 19.71731727 | L19: =21.2697845967899+$B$14 -> 61.2697846 | M19: =180/60 -> 3 | N19: 4.774811433 | O19: 4.774811433 | P19: 8.587114457 | Q19: =11.0141146363754+$B$17 -> 71.01411464
D20: =120/60 -> 2 | E20: 83 | F20: 26.14088596 | G20: 51.21127286 | H20: =120/60 -> 2 | I20: 2.551378251 | J20: 2.608333333 | K20: 17.45791795 | L20: =22.7769723164391+$B$14 -> 62.77697232 | M20: =240/60 -> 4 | N20: 5.774811433 | O20: 5.774811433 | P20: 7.973791846 | Q20: =11.8367164536655+$B$17 -> 71.83671645 | AB20: 0 | AC20: 20
D21: =180/60 -> 3 | E21: 83 | F21: 22.59941754 | G21: 54.40459119 | H21: =180/60 -> 3 | I21: 3.551378251 | J21: 3.608333333 | K21: 15.2115839 | L21: =25.0156102727655+$B$14 -> 65.01561027 | M21: =300/60 -> 5 | N21: 6.774811433 | O21: 6.774811433 | P21: 7.19520574 | Q21: =12.5957367190259+$B$17 -> 72.59573672 | AB21: 0 | AC21: 40
D22: =240/60 -> 4 | E22: 83 | F22: 19.47324451 | G22: 56.80800034 | H22: =240/60 -> 4 | I22: 4.551378251 | J22: 4.608333333 | K22: 13.37626834 | L22: =26.5092700746549+$B$14 -> 66.50927007 | M22: =360/60 -> 6 | N22: 7.774811433 | O22: 7.774811433 | P22: 6.506865492 | Q22: =13.1340536386762+$B$17 -> 73.13405364 | AB22: 0 | AC22: 60
D23: =300/60 -> 5 | E23: 83 | F23: 17.75539983 | G23: 58.86394074 | H23: =300/60 -> 5 | I23: 5.551378251 | J23: 5.608333333 | K23: 12.05348375 | L23: =27.5018570311999+$B$14 -> 67.50185703 | M23: =420/60 -> 7 | N23: 8.774811433 | O23: 8.774811433 | P23: 5.84807052 | Q23: =13.4998056079374+$B$17 -> 73.49980561 | AB23: 0 | AC23: 80
D24: =360/60 -> 6 | E24: 83 | F24: 16.10814151 | G24: 60.05 | H24: =360/60 -> 6 | I24: 6.551378251 | J24: 6.608333333 | K24: 11.03721504 | L24: =28.5779087047444+$B$14 -> 68.5779087 | M24: =480/60 -> 8 | N24: 9.774811433 | O24: 9.774811433 | P24: 5.415243015 | Q24: =13.8768765706848+$B$17 -> 73.87687657
D25: =420/60 -> 7 | E25: 83 | F25: 15.0031994 | G25: 60.9 | H25: =420/60 -> 7 | I25: 7.551378251 | J25: 7.608333333 | K25: 10.13929083 | L25: =29.1856674881565+$B$14 -> 69.18566749
D26: =480/60 -> 8 | E26: 83 | F26: 14.07329365 | G26: 61.64019553 | H26: =480/60 -> 8 | I26: 8.551378251 | J26: 8.608333333 | K26: 9.31298226 | L26: =29.4961199843847+$B$14 -> 69.49611998
D54: Experiment 1 | I54: Experiment 2 | M54: Experiment 3
D55: [P]n - [P]n-1 | F55: [SM]n-1 - [SM]n | G55: subtraction | H55: [SM]0 - [P]n - [SM]n | I55: [P]n - [P]n-1 | J55: [SM]n-1 - [SM]n | K55: subtraction | L55: [SM]0 - [P]n - [SM]n | M55: [P]n - [P]n-1 | N55: [SM]n-1 - [SM]n | O55: subtraction | P55: [SM]0 - [P]n - [SM]n
D56: =G13-G12 -> 17.09311471 | F56: =F12-F13 -> 19.8728317 | G56: =F56-D56 -> 2.779716991 | H56: =$F$12-(F12+G12) -> 0 | I56: =L13-L12 -> 4.87229162 | L56: =($K$12)-L12+$L$12-K12 -> 0 | M56: =Q13-Q12 -> 3.217275508 | N56: =P12-P13 -> 2.913524815 | O56: =N56-M56 -> -0.3037506928 | P56: =($P$12+$B$17)-Q12-P12 -> 0
D57: =G14-G13 -> 7.262684045 | F57: =F13-F14 -> 7.159620101 | G57: -0.1030639437 | H57: 2.779716991 | I57: =L14-L13 -> 3.051619565 | M57: 1.926571705 | N57: 2.138143726 | O57: =N57-M57 -> 0.2115720218 | P57: -0.3037506928
D58: 5.416871593 | F58: 3.671880558 | G58: -1.744991035 | H58: 2.676653047 | I58: 2.697107349 | M58: 1.228437851 | N58: 1.157508341 | O58: -0.07092950951 | P58: -0.092178671
D59: 7.782043638 | F59: 8.765897965 | G59: 0.9838543265 | H59: 0.9316620128 | I59: 4.079322778 | J59: =K15-K16 -> 3.7267751 | K59: =J59-I59 -> -0.3525476781 | L59: =($K$12)-L15+$L$12-K15 -> -0.5028134087 | M59: 1.002985275 | N59: 1.104878284 | O59: 0.101893009 | P59: -0.1631081805
D60: 4.513499066 | F60: 4.802013184 | G60: 0.2885141188 | H60: 1.915516339 | I60: 2.375365788 | J60: 3.131391347 | K60: 0.7560255586 | L60: -0.8553610868 | M60: 1.350511155 | N60: 1.571546539 | O60: 0.2210353842 | P60: -0.06121517152
D61: 2.595365921 | F61: 2.911671039 | G61: 0.316305118 | H61: 2.204030458 | I61: 1.717433007 | J61: 1.838893281 | K61: 0.1214602744 | L61: -0.09933552822 | M61: 0.9341282807 | N61: 1.197485593 | O61: 0.2633573121 | P61: 0.1598202127
D62: 4.048961329 | F62: 4.667510856 | G62: 0.6185495273 | H62: 2.520335576 | I62: 2.47664449 | J62: 2.667417879 | K62: 0.1907733898 | L62: 0.02212474622 | M62: 1.354204862 | N62: 2.129798243 | O62: 0.7755933813 | P62: 0.4231775248
D63: 2.498732563 | F63: 3.207688637 | G63: 0.7089560734 | H63: 3.138885103 | I63: 1.50718772 | J63: 2.259399313 | K63: 0.7522115937 | L63: 0.212898136 | M63: 0.8226018173 | N63: 0.6133226115 | O63: -0.2092792058 | P63: 1.198770906
D64: 3.193318327 | F64: 3.541468414 | G64: 0.3481500866 | H64: 3.847841177 | I64: 2.238637956 | J64: 2.246334051 | K64: 0.007696095154 | L64: 0.9651097297 | M64: 0.7590202654 | N64: 0.7785861056 | O64: 0.01956584026 | P64: 0.9894917003
D65: 2.403409147 | F65: 3.126173035 | G65: 0.7227638884 | H65: 4.195991263 | I65: 1.493659802 | J65: 1.835315564 | K65: 0.3416557625 | L65: 0.9728058248 | M65: 0.5383169197 | N65: 0.6883402482 | O65: 0.1500233286 | P65: 1.009057541
D66: 2.055940402 | F66: 1.717844682 | G66: -0.3380957202 | H66: 4.918755152 | I66: 0.9925869565 | J66: 1.322784587 | K66: 0.3301976306 | L66: 1.314461587 | M66: 0.3657519693 | N66: 0.6587949723 | O66: 0.293043003 | P66: 1.159080869
D67: 1.186059259 | F67: 1.647258318 | G67: 0.4611990591 | H67: 4.580659432 | I67: 1.076051674 | J67: 1.016268713 | K67: -0.05978296093 | L67: 1.644659218 | M67: 0.3770709627 | N67: 0.4328275051 | O67: 0.05575654235 | P67: 1.452123872
D68: 0.85 | F68: 1.104942108 | G68: 0.2549421077 | H68: 5.041858491 | I68: 0.6077587834 | J68: 0.8979242057 | K68: 0.2901654223 | L68: 1.584876257 | P68: 1.507880415
D69: 0.7401955292 | F69: 0.929905749 | G69: 0.1897102198 | H69: 5.296800598 | I69: 0.3104524962 | J69: 0.8263085726 | K69: 0.5158560764 | L69: 1.875041679
H70: 5.486510818 | L70: 2.390897756

Sheet P spiked reactions
D1: BL-085, BL-087 | I1: BL-084, BL-086 | N1: BL-082, BL-083
D2: [SM]0 | E2: 40 mM | I2: [SM]0 | J2: 40 mM | N2: [SM]0 | O2: 40 mM
D3: [PhCO2H]0 | E3: 56 mM | G3: initial rate (mM h-1) | I3: [PhCO2H]0 | J3: 56 mM | L3: initial rate (mM h-1) | N3: [PhCO2H]0 | O3: 56 mM | Q3: initial rate (mM h-1)
D4: [PhCONHBr]0 | E4: 56 mM | G4: =SLOPE(H12:H14,D12:D14) -> 12.55065729 | I4: [PhCONHBr]0 | J4: 56 mM | L4: =SLOPE(M12:M14,I12:I14) -> 43.46736606 | N4: [PhCONHBr]0 | O4: 56 mM | Q4: =SLOPE(R12:R14,N12:N14) -> 16.42334976
D5: [(DHQD)2PHAL]0 | E5: 8 mM | I5: [(DHQD)2PHAL]0 | J5: 8 mM | N5: [(DHQD)2PHAL]0 | O5: 8 mM
D6: [(4-Tol)2CO]0 | E6: 40 mM | F6: ← internal standard | I6: [(4-Tol)2CO]0 | J6: 40 mM | K6: ← internal standard | N6: [(4-Tol)2CO]0 | O6: 40 mM | P6: ← internal standard
D7: [P]0 (83:17 er) | E7: 40 mM | I7: [P]0 (83:17 er) | J7: 40 mM | N7: [P]0 (83:17 er) | O7: 0 mM
D8: [PhCONH2]0 | E8: 40 mM | I8: [PhCONH2]0 | J8: 0 mM | N8: [PhCONH2]0 | O8: 40 mM
D10: Experiment 4 | I10: Experiment 5 | N10: Experiment 6
D11: t (hours) | E11: shifted t, SM | F11: shifted t, P | G11: [SM] (mM) | H11: [P] (mM) | I11: t (hours) | J11: shifted t, SM | K11: shifted t, P | L11: [SM] (mM) | M11: [P] (mM) | N11: t (hours) | O11: shifted t, SM | P11: shifted t, P | Q11: [SM] (mM) | R11: [P] (mM)
A12: shifted t, SM | B12: =33.0826950697976/60 -> 0.5513782512 | D12: =0/60 -> 0 | E12: =D12+$B$12 -> 0.5513782512 | F12: =D12+$B$13 -> 0.5513782512 | G12: 41.13645868 | H12: =39.5594609061098+$B$14 -> 39.55946091 | I12: =0/60 -> 0 | J12: =I12+$B$15 -> 0.5513782512 | K12: =I12+$B$16 -> 0.6083333333 | L12: 40.96643071 | M12: 40.25946091 | N12: =0/60 -> 0 | O12: =N12+$B$18 -> 0.5513782512 | P12: =N12+$B$19 -> 0.6083333333 | Q12: 41.69790406 | R12: =0+$B$20 -> 40
A13: shifted t, P | B13: =33.0826950697976/60 -> 0.5513782512 | D13: =15/60 -> 0.25 | E13: =D13+$B$12 -> 0.8013782512 | F13: =D13+$B$13 -> 0.8013782512 | G13: 37.19800647 | H13: =42.9469027837689+$B$14 -> 42.94690278 | I13: =10/60 -> 0.1666666667 | J13: =I13+$B$15 -> 0.7180449178 | K13: =I13+$B$16 -> 0.775 | L13: 32.7325129 | M13: 48.53305624 | N13: =5/60 -> 0.08333333333 | O13: =N13+$B$18 -> 0.6347115845 | P13: =N13+$B$19 -> 0.6916666667 | Q13: 39.18774767 | R13: =1.46586054395403+$B$20 -> 41.46586054
A14: shifted [P] (mM) | B14: 0 | D14: =30/60 -> 0.5 | E14: 1.051378251 | F14: 1.051378251 | G14: 33.83044769 | H14: =45.8347895487122+$B$14 -> 45.83478955 | I14: =15/60 -> 0.25 | J14: 0.8013782512 | K14: 0.8583333333 | L14: 30.78078202 | M14: 50.86904384 | N14: =10/60 -> 0.1666666667 | O14: 0.7180449178 | P14: 0.775 | Q14: 37.52617963 | R14: =2.73722496075171+$B$20 -> 42.73722496
A15: shifted t, SM | B15: =33.0826950697976/60 -> 0.5513782512 | D15: =45/60 -> 0.75 | E15: 1.301378251 | F15: 1.301378251 | G15: 31.25826655 | H15: =47.5997221413016+$B$14 -> 47.59972214 | I15: =30/60 -> 0.5 | J15: 1.051378251 | K15: 1.108333333 | L15: 26.70744356 | M15: 55.01678776 | N15: =15/60 -> 0.25 | O15: 0.8013782512 | P15: 0.8583333333 | Q15: 36.09858001 | R15: =3.856912236185+$B$20 -> 43.85691224
A16: shifted t, P | B16: =36.5/60 -> 0.6083333333 | D16: =60/60 -> 1 | E16: 1.551378251 | F16: 1.551378251 | G16: 29.15507364 | H16: =49.4776930460117+$B$14 -> 49.47769305 | I16: =45/60 -> 0.75 | J16: 1.301378251 | K16: 1.358333333 | L16: 24.11226727 | M16: 57.72542774 | N16: =30/60 -> 0.5 | O16: 1.051378251 | P16: 1.108333333 | Q16: 33.55429249 | R16: =6.38245434559773+$B$20 -> 46.38245435
A17: shifted [P] (mM) | B17: 0 | D17: =90/60 -> 1.5 | E17: 2.051378251 | F17: 2.051378251 | G17: 26.65266144 | H17: =51.7916254397384+$B$14 -> 51.79162544 | I17: =60/60 -> 1 | J17: 1.551378251 | K17: 1.608333333 | L17: 22.14021554 | M17: 59.13443789 | N17: =45/60 -> 0.75 | O17: 1.301378251 | P17: 1.358333333 | Q17: 31.05782538 | R17: =8.33415954417405+$B$20 -> 48.33415954
A18: shifted t, SM | B18: =33.0826950697976/60 -> 0.5513782512 | D18: =120/60 -> 2 | E18: 2.551378251 | F18: 2.551378251 | G18: 24.24489564 | H18: =53.4964472439418+$B$14 -> 53.49644724 | I18: =90/60 -> 1.5 | J18: 2.051378251 | K18: 2.108333333 | L18: 19.51543785 | M18: 61.39815978 | N18: =60/60 -> 1 | O18: 1.551378251 | P18: 1.608333333 | Q18: 29.30081118 | R18: =9.7864212309207+$B$20 -> 49.78642123
A19: shifted t, P | B19: =36.5/60 -> 0.6083333333 | D19: =180/60 -> 3 | E19: 3.551378251 | F19: 3.551378251 | G19: 21.14602135 | H19: =56.1193434453863+$B$14 -> 56.11934345 | I19: =120/60 -> 2 | J19: 2.551378251 | K19: 2.608333333 | L19: 17.60287549 | M19: 63.17695903 | N19: =90/60 -> 1.5 | O19: 2.051378251 | P19: 2.108333333 | Q19: 26.5590805 | R19: =12.1777665170435+$B$20 -> 52.17776652
A20: shifted [P] (mM) | B20: 40 | D20: =240/60 -> 4 | E20: 4.551378251 | F20: 4.551378251 | G20: 18.7362938 | H20: =57.8464481255858+$B$14 -> 57.84644813 | I20: =180/60 -> 3 | J20: 3.551378251 | K20: 3.608333333 | L20: 15.10554805 | M20: 65.11094262 | N20: =120/60 -> 2 | O20: 2.551378251 | P20: 2.608333333 | Q20: 24.27840043 | R20: =13.9625057412563+$B$20 -> 53.96250574
D21: =300/60 -> 5 | E21: 5.551378251 | F21: 5.551378251 | G21: 16.9996692 | H21: =59.0267350286217+$B$14 -> 59.02673503 | I21: =240/60 -> 4 | J21: 4.551378251 | K21: 4.608333333 | L21: 13.17926479 | M21: 66.76673206 | N21: =180/60 -> 3 | O21: 3.551378251 | P21: 3.608333333 | Q21: 20.82965943 | R21: =16.5273799558341+$B$20 -> 56.52737996
D22: =360/60 -> 6 | E22: 6.551378251 | F22: 6.551378251 | G22: 15.37563331 | H22: =59.9686642685561+$B$14 -> 59.96866427 | I22: =300/60 -> 5 | J22: 5.551378251 | K22: 5.608333333 | L22: 12.00590751 | M22: 67.73112852 | N22: =240/60 -> 4 | O22: 4.551378251 | P22: 4.608333333 | Q22: 18.92241527 | R22: =18.0644946246226+$B$20 -> 58.06449462
D23: =420/60 -> 7 | E23: =D23+$B$12 -> 7.551378251 | F23: =D23+$B$13 -> 7.551378251 | G23: 14.57884456 | H23: =60.8767299457605+$B$14 -> 60.87672995 | I23: =360/60 -> 6 | J23: 6.551378251 | K23: 6.608333333 | L23: 10.8776667 | M23: 68.14171413 | N23: =300/60 -> 5 | O23: 5.551378251 | P23: 5.608333333 | Q23: 17.03307522 | R23: =19.4005734588743+$B$20 -> 59.40057346
D24: =480/60 -> 8 | E24: 8.551378251 | F24: 8.551378251 | G24: 13.54260522 | H24: =61.4893870811158+$B$14 -> 61.48938708 | I24: =420/60 -> 7 | J24: 7.551378251 | K24: 7.608333333 | L24: 9.984040141 | M24: 68.6704511 | N24: =360/60 -> 6 | O24: 6.551378251 | P24: 6.608333333 | Q24: 15.5373207 | R24: =20.5110982233604+$B$20 -> 60.51109822
N25: =420/60 -> 7 | O25: 7.551378251 | P25: 7.608333333 | Q25: 14.19979855 | R25: =21.3190854228598+$B$20 -> 61.31908542
N26: =480/60 -> 8 | O26: 8.551378251 | P26: 8.608333333 | Q26: 13.53010633 | R26: =21.8962934690397+$B$20 -> 61.89629347
D53: Experiment 4 | H53: Experiment 5 | L53: Experiment 6
D54: [P]n - [P]n-1 | E54: [SM]n-1 - [SM]n | F54: subtraction | G54: [SM]0 - [P]n - [SM]n | H54: [P]n - [P]n-1 | I54: [SM]n-1 - [SM]n | J54: subtraction | K54: [SM]0 - [P]n - [SM]n | L54: [P]n - [P]n-1 | M54: [SM]n-1 - [SM]n | N54: subtraction | O54: [SM]0 - [P]n - [SM]n
D55: =H13-H12 -> 3.387441878 | E55: =G12-G13 -> 3.938452207 | F55: =E55-D55 -> 0.5510103295 | G55: =$G$12-(H12-$H$12)-G12 -> 0 | H55: =M13-M12 -> 8.273595331 | I55: =L12-L13 -> 8.233917816 | J55: =I55-H55 -> -0.03967751578 | K55: =$L$12-(M12-$M$12)-L12 -> 0 | L55: =R13-R12 -> 1.465860544 | M55: =Q12-Q13 -> 2.510156391 | N55: =M55-L55 -> 1.044295847 | O55: =$Q$12-R12-Q12+$B$20 -> 0
D56: 2.887886765 | E56: 3.367558788 | F56: 0.4796720226 | G56: 0.5510103295 | H56: 2.335987602 | I56: 1.95173088 | J56: =I56-H56 -> -0.3842567218 | K56: -0.03967751578 | L56: 1.271364417 | M56: 1.661568039 | N56: =M56-L56 -> 0.3902036221 | O56: 1.044295847
D57: 1.764932593 | E57: 2.572181138 | F57: 0.8072485455 | G57: 1.030682352 | H57: 4.147743916 | I57: 4.073338461 | J57: -0.07440545485 | K57: -0.4239342376 | L57: 1.119687275 | M57: 1.427599614 | N57: 0.3079123391 | O57: 1.43449947
D58: 1.877970905 | E58: 2.103192903 | F58: 0.2252219981 | G58: 1.837930898 | H58: 2.708639981 | I58: 2.595176289 | J58: -0.1134636927 | K58: -0.4983396925 | L58: 2.525542109 | M58: 2.544287529 | N58: 0.01874541996 | O58: 1.742411809
D59: 2.313932394 | E59: 2.502412207 | F59: 0.1884798132 | G59: 2.063152896 | H59: 1.409010155 | I59: 1.972051731 | J59: 0.5630415764 | K59: -0.6118033852 | L59: 1.951705199 | M59: 2.496467103 | N59: 0.5447619047 | O59: 1.761157229
D60: 1.704821804 | E60: 2.407765797 | F60: 0.7029439932 | G60: 2.251632709 | H60: 2.263721888 | I60: 2.624777684 | J60: 0.3610557963 | K60: -0.04876180878 | L60: 1.452261687 | M60: 1.757014198 | N60: 0.3047525115 | O60: 2.305919133
D61: 2.622896201 | E61: 3.098874292 | F61: 0.4759780903 | G61: 2.954576702 | H61: 1.778799252 | I61: 1.912562363 | J61: 0.1337631105 | K61: 0.3122939875 | L61: 2.391345286 | M61: 2.741730684 | N61: 0.3503853977 | O61: 2.610671645
D62: 1.72710468 | E62: 2.40972755 | F62: 0.6826228698 | G62: 3.430554792 | H62: 1.933983588 | I62: 2.497327443 | J62: 0.5633438555 | K62: 0.446057098 | L62: 1.784739224 | M62: 2.280680066 | N62: 0.4959408414 | O62: 2.961057042
D63: 1.180286903 | E63: 1.736624603 | F63: 0.5563376998 | G63: 4.113177662 | H63: 1.655789441 | I63: 1.926283258 | J63: 0.2704938161 | K63: 1.009400953 | L63: 2.564874215 | M63: 3.448740999 | N63: 0.8838667848 | O63: 3.456997884
D64: 0.9419292399 | E64: 1.624035885 | F64: 0.6821066446 | G64: 4.669515362 | H64: 0.964396458 | I64: 1.173357276 | J64: 0.2089608179 | K64: 1.27989477 | L64: 1.537114669 | M64: 1.907244164 | N64: 0.3701294952 | O64: 4.340864669
D65: 0.9080656772 | E65: 0.7967887487 | F65: -0.1112769285 | G65: 5.351622007 | H65: 0.4105856134 | I65: 1.128240817 | J65: 0.7176552041 | K65: 1.488855588 | L65: 1.336078834 | M65: 1.889340046 | N65: 0.5532612122 | O65: 4.710994164
D66: 0.6126571354 | E66: 1.036239347 | F66: 0.4235822113 | G66: 5.240345078 | H66: 0.5287369667 | I66: 0.8936265555 | J66: 0.3648895888 | K66: 2.206510792 | L66: 1.110524764 | M66: 1.495754521 | N66: 0.3852297569 | O66: 5.264255376
G67: 5.66392729 | K67: 2.57140038 | L67: 0.8079871995 | M67: 1.337522154 | N67: 0.5295349544 | O67: 5.649485133
L68: 0.5772080462 | M68: 0.6696922213 | N68: 0.09248417507 | O68: 6.179020087
O69: 6.271504263

Sheet amide spiked
D1: BL-127, BL-128 | I1: BL-129, BL-131, BL-133 − SM profiles less reproducible | N1: BL-134, BL-137 − SM can't calculate, not homogeneous
D2: [SM]0 | E2: 40 mM | I2: [SM]0 | J2: 40 mM | N2: [SM]0 | O2: 40 mM
D3: [PhCO2H]0 | E3: 56 mM | I3: [PhCO2H]0 | J3: 56 mM | N3: [PhCO2H]0 | O3: 56 mM
D4: [PhCONHBr]0 | E4: 56 mM | I4: [PhCONHBr]0 | J4: 56 mM | N4: [PhCONHBr]0 | O4: 56 mM
D5: [(DHQD)2PHAL]0 | E5: 8 mM | I5: [(DHQD)2PHAL]0 | J5: 8 mM | N5: [(DHQD)2PHAL]0 | O5: 8 mM
D6: [(4-Tol)2CO]0 | E6: 40 mM | F6: ← internal standard | I6: [(4-Tol)2CO]0 | J6: 40 mM | K6: ← internal standard | N6: [(4-Tol)2CO]0 | O6: 40 mM | P6: ← internal standard
D7: [P]0 (83:17 er) | E7: 0 mM | I7: [P]0 (83:17 er) | J7: 0 mM | N7: [P]0 (83:17 er) | O7: 0 mM
D8: [PhCONH2]0 | E8: 0 mM | I8: [PhCONH2]0 | J8: 0 mM | M8: succinimide | N8: [PhCONH2]0 | O8: 0 mM | R8: saccharin
D9: [PhCONHMe]0 | E9: 40 mM | I9: [succinimide]0 | J9: 40 mM | N9: [saccharin]0 | O9: 40 mM
D11: Experiment 14 | I11: Experiment 15 | N11: Experiment 16
D12: t (hours) | E12: shifted t, SM | F12: shifted t, P | G12: [SM] (mM) | H12: [P] (mM) | I12: t (hours) | J12: shifted t, SM | K12: shifted t, P | L12: [SM] (mM) | M12: [P] (mM) | N12: t (hours) | O12: shifted t, SM | P12: shifted t, P | Q12: [SM] (mM) | R12: [P] (mM)
A13: shifted t, SM | B13: 0 | D13: =0/60 -> 0 | E13: =D13+$B$13 -> 0 | F13: =D13+$B$14 -> 0 | G13: 39.81360576 | H13: =0+$B$15 -> 0 | I13: =0/60 -> 0 | J13: =I13+$B$16 -> 0 | K13: =I13+$B$17 -> 0 | L13: 39.91317533 | M13: =0+$B$18 -> 0 | N13: =0/60 -> 0 | O13: =N13+$B$19 -> 0 | P13: =N13+$B$20 -> 0 | Q13: − | R13: =0+$B$21 -> 0
A14: shifted t, P | B14: 0 | D14: =5/60 -> 0.08333333333 | E14: 0.08333333333 | F14: 0.08333333333 | G14: 33.01271368 | H14: =4.64022753148704+$B$15 -> 4.640227531 | I14: =5/60 -> 0.08333333333 | J14: 0.08333333333 | K14: 0.08333333333 | L14: 31.27930406 | M14: =0.770515678106081+$B$18 -> 0.7705156781 | N14: =5/60 -> 0.08333333333 | O14: 0.08333333333 | P14: 0.08333333333 | Q14: − | R14: =1.59566633943817+$B$21 -> 1.595666339
A15: shifted [P] (mM) | B15: 0 | D15: =10/60 -> 0.1666666667 | E15: 0.1666666667 | F15: 0.1666666667 | G15: 29.85074796 | H15: =7.94002544096177+$B$15 -> 7.940025441 | I15: =10/60 -> 0.1666666667 | J15: 0.1666666667 | K15: 0.1666666667 | L15: 29.27578857 | M15: =1.48085149846829+$B$18 -> 1.480851498 | N15: =10/60 -> 0.1666666667 | O15: 0.1666666667 | P15: 0.1666666667 | Q15: − | R15: =2.07301567122766+$B$21 -> 2.073015671
A16: shifted t, SM | B16: 0 | D16: =15/60 -> 0.25 | E16: 0.25 | F16: 0.25 | G16: 27.66192374 | H16: =9.89118285517372+$B$15 -> 9.891182855 | I16: =15/60 -> 0.25 | J16: 0.25 | K16: 0.25 | L16: 28.19027498 | M16: =2.17757611076204+$B$18 -> 2.177576111 | N16: =15/60 -> 0.25 | O16: 0.25 | P16: 0.25 | Q16: − | R16: =1.97814406258446+$B$21 -> 1.978144063
A17: shifted t, P | B17: 0 | D17: =30/60 -> 0.5 | E17: 0.5 | F17: 0.5 | G17: 23.63679331 | H17: =13.4963554624148+$B$15 -> 13.49635546 | I17: =30/60 -> 0.5 | J17: 0.5 | K17: 0.5 | L17: 26.0482427 | M17: =4.08937292449813+$B$18 -> 4.089372924 | N17: =30/60 -> 0.5 | O17: 0.5 | P17: 0.5 | Q17: − | R17: =2.11784426911133+$B$21 -> 2.117844269
A18: shifted [P] (mM) | B18: 0 | D18: =45/60 -> 0.75 | E18: 0.75 | F18: 0.75 | G18: 20.90792124 | H18: =15.919531600468+$B$15 -> 15.9195316 | I18: =45/60 -> 0.75 | J18: 0.75 | K18: 0.75 | L18: 23.65812843 | M18: =5.82828906566224+$B$18 -> 5.828289066 | N18: =45/60 -> 0.75 | O18: 0.75 | P18: 0.75 | Q18: − | R18: =2.12188653080573+$B$21 -> 2.121886531
A19: shifted t, SM | B19: 0 | D19: =60/60 -> 1 | E19: 1 | F19: 1 | G19: 19.14372673 | H19: =17.7070200452223+$B$15 -> 17.70702005 | I19: =60/60 -> 1 | J19: 1 | K19: 1 | L19: 22.24166211 | M19: =7.17396994407527+$B$18 -> 7.173969944 | N19: =60/60 -> 1 | O19: 1 | P19: 1 | Q19: − | R19: =2.14781605621264+$B$21 -> 2.147816056
A20: shifted t, P | B20: 0 | D20: =90/60 -> 1.5 | E20: 1.5 | F20: 1.5 | G20: 16.58322619 | H20: =19.7496237607801+$B$15 -> 19.74962376 | I20: =90/60 -> 1.5 | J20: 1.5 | K20: 1.5 | L20: 19.90483294 | M20: =9.35289354436681+$B$18 -> 9.352893544 | N20: =90/60 -> 1.5 | O20: 1.5 | P20: 1.5 | Q20: − | R20: =2.1624142364294+$B$21 -> 2.162414236
A21: shifted [P] (mM) | B21: 0 | D21: =120/60 -> 2 | E21: 2 | F21: 2 | G21: 14.95910533 | H21: =21.5721835581692+$B$15 -> 21.57218356 | I21: =120/60 -> 2 | J21: 2 | K21: 2 | L21: 18.63080644 | M21: =11.2777918038885+$B$18 -> 11.2777918 | N21: =120/60 -> 2 | O21: 2 | P21: 2 | Q21: − | R21: =2.1824949877907+$B$21 -> 2.182494988
A22: shifted t, SM | B22: 0 | D22: =180/60 -> 3 | E22: 3 | F22: 3 | G22: 12.27972392 | H22: =23.1399614156429+$B$15 -> 23.13996142 | I22: =180/60 -> 3 | J22: 3 | K22: 3 | L22: 16.76176605 | M22: =13.7573027020047+$B$18 -> 13.7573027 | N22: =180/60 -> 3 | O22: 3 | P22: 3 | Q22: − | R22: =2.21101157122501+$B$21 -> 2.211011571
A23: shifted t, P | B23: 0 | D23: =240/60 -> 4 | E23: 4 | F23: 4 | G23: 10.86793003 | H23: =24.5783525304974+$B$15 -> 24.57835253 | I23: =240/60 -> 4 | J23: 4 | K23: 4 | L23: 14.77359791 | M23: =15.646159116565+$B$18 -> 15.64615912 | N23: =240/60 -> 4 | O23: 4 | P23: 4 | Q23: − | R23: =2.18428205684048+$B$21 -> 2.184282057
A24: shifted [P] (mM) | B24: 0 | D24: =300/60 -> 5 | E24: 5 | F24: 5 | G24: 9.721649478 | H24: =25.7954875433428+$B$15 -> 25.79548754 | I24: =300/60 -> 5 | J24: 5 | K24: 5 | L24: 13.86075068 | M24: =17.1724971590598+$B$18 -> 17.17249716 | N24: =300/60 -> 5 | O24: 5 | P24: 5 | Q24: − | R24: =2.24104021579839+$B$21 -> 2.241040216
A25: shifted t, SM | B25: 0 | D25: =360/60 -> 6 | E25: 6 | F25: 6 | G25: 8.470610412 | H25: =26.5917932166763+$B$15 -> 26.59179322 | I25: =360/60 -> 6 | J25: 6 | K25: 6 | L25: 13.24772469 | M25: =18.2286753577817+$B$18 -> 18.22867536 | N25: =360/60 -> 6 | O25: 6 | P25: 6 | Q25: − | R25: =2.16806779755539+$B$21 -> 2.168067798
A26: shifted t, P | B26: 0 | D26: =420/60 -> 7 | E26: 7 | F26: 7 | G26: 7.731777394 | H26: =26.7328339446856+$B$15 -> 26.73283394 | I26: =420/60 -> 7 | J26: 7 | K26: 7 | L26: 12.49527142 | M26: =18.8677107934504+$B$18 -> 18.86771079 | N26: =420/60 -> 7 | O26: 7 | P26: 7 | Q26: − | R26: =2.21513924897239+$B$21 -> 2.215139249
A27: shifted [P] (mM) | B27: 0 | D27: =480/60 -> 8 | E27: 8 | F27: 8 | G27: 6.952364598 | H27: =27.170503233011+$B$15 -> 27.17050323 | I27: =480/60 -> 8 | J27: 8 | K27: 8 | L27: 12.29363382 | M27: =19.4435656251641+$B$18 -> 19.44356563 | N27: =480/60 -> 8 | O27: 8 | P27: 8 | Q27: − | R27: =2.19354143478419+$B$21 -> 2.193541435
A28: shifted t, SM | B28: 0 | D28: BL-138, BL-142 | I28: BL-143, BL-144 | N28: BL-145, BL-147
A29: shifted t, P | B29: 0 | D29: [SM]0 | E29: 40 mM | I29: [SM]0 | J29: 40 mM | N29: [SM]0 | O29: 40 mM
A30: shifted [P] (mM) | B30: 0 | D30: [PhCO2H]0 | E30: 56 mM | I30: [PhCO2H]0 | J30: 56 mM | N30: [PhCO2H]0 | O30: 56 mM
A31: shifted t, SM | B31: 0 | D31: [PhCONHBr]0 | E31: 56 mM | I31: [PhCONHBr]0 | J31: 56 mM | N31: [PhCONHBr]0 | O31: 56 mM
A32: shifted t, P | B32: 0 | D32: [(DHQD)2PHAL]0 | E32: 8 mM | I32: [(DHQD)2PHAL]0 | J32: 8 mM | N32: [(DHQD)2PHAL]0 | O32: 8 mM
A33: shifted [P] (mM) | B33: 0 | D33: [(4-Tol)2CO]0 | E33: 40 mM | F33: ← internal standard | I33: [(4-Tol)2CO]0 | J33: 40 mM | K33: ← internal standard | N33: [(4-Tol)2CO]0 | O33: 40 mM | P33: ← internal standard
A34: shifted t, SM | B34: 0 | D34: [P]0 (83:17 er) | E34: 0 mM | I34: [P]0 (83:17 er) | J34: 0 mM | N34: [P]0 (83:17 er) | O34: 0 mM
A35: shifted t, P | B35: 0 | D35: [PhCONH2]0 | E35: 0 mM | I35: [PhCONH2]0 | J35: 0 mM | N35: [PhCONH2]0 | O35: 0 mM | R35: 2-pyrrolidone
A36: shifted [P] (mM) | B36: 0 | D36: [MeCONHMe]0 | E36: 40 mM | I36: [MeCONH2]0 | J36: 40 mM | N36: [2-pyrrolidone]0 | O36: 40 mM
A37: shifted t, SM | B37: 0
A38: shifted t, P | B38: 0 | D38: Experiment 17 | I38: Experiment 18 | N38: Experiment 19
A39: shifted [P] (mM) | B39: 0 | D39: t (hours) | E39: shifted t, SM | F39: shifted t, P | G39: [SM] (mM) | H39: [P] (mM) | I39: t (hours) | J39: shifted t, SM | K39: shifted t, P | L39: [SM] (mM) | M39: [P] (mM) | N39: t (hours) | O39: shifted t, SM | P39: shifted t, P | Q39: [SM] (mM) | R39: [P] (mM)
A40: shifted t, SM | B40: 0 | D40: =0/60 -> 0 | E40: =$B$22+D40 -> 0 | F40: =$B$23+D40 -> 0 | G40: 39.85627843 | H40: =0+$B$24 -> 0 | I40: =0/60 -> 0 | J40: =$B$25+I40 -> 0 | K40: =$B$26+I40 -> 0 | L40: 40.54816879 | M40: =0+$B$27 -> 0 | N40: =0/60 -> 0 | O40: =$B$28+N40 -> 0 | P40: =$B$29+N40 -> 0 | Q40: 40.817831 | R40: =0+$B$30 -> 0
A41: shifted t, P | B41: 0 | D41: =5/60 -> 0.08333333333 | E41: 0.08333333333 | F41: 0.08333333333 | G41: 36.23245214 | H41: =3.28452839208757+$B$24 -> 3.284528392 | I41: =5/60 -> 0.08333333333 | J41: 0.08333333333 | K41: 0.08333333333 | L41: 39.89489152 | M41: =0.8091545549502+$B$27 -> 0.809154555 | N41: =5/60 -> 0.08333333333 | O41: 0.08333333333 | P41: 0.08333333333 | Q41: 40.67164934 | R41: =0.13941256166032+$B$30 -> 0.1394125617
A42: shifted [P] (mM) | B42: 0 | D42: =10/60 -> 0.1666666667 | E42: 0.1666666667 | F42: 0.1666666667 | G42: 33.00569429 | H42: =4.76980955985665+$B$24 -> 4.76980956 | I42: =10/60 -> 0.1666666667 | J42: 0.1666666667 | K42: 0.1666666667 | L42: 38.57767266 | M42: =1.65412142521324+$B$27 -> 1.654121425 | N42: =10/60 -> 0.1666666667 | O42: 0.1666666667 | P42: 0.1666666667 | Q42: 41.00759154 | R42: =0.544020227805507+$B$30 -> 0.5440202278
A43: shifted t, SM | B43: 0 | D43: =15/60 -> 0.25 | E43: 0.25 | F43: 0.25 | G43: 29.41928011 | H43: =7.72831535614047+$B$24 -> 7.728315356 | I43: =15/60 -> 0.25 | J43: 0.25 | K43: 0.25 | L43: 37.60159165 | M43: =2.39757919861184+$B$27 -> 2.397579199 | N43: =15/60 -> 0.25 | O43: 0.25 | P43: 0.25 | Q43: 40.41590158 | R43: =0.651830452775294+$B$30 -> 0.6518304528
A44: shifted t, P | B44: 0 | D44: =30/60 -> 0.5 | E44: 0.5 | F44: 0.5 | G44: 27.40700002 | H44: =11.7705560042485+$B$24 -> 11.770556 | I44: =30/60 -> 0.5 | J44: 0.5 | K44: 0.5 | L44: 34.89462742 | M44: =4.63091446201174+$B$27 -> 4.630914462 | N44: =30/60 -> 0.5 | O44: 0.5 | P44: 0.5 | Q44: 38.96518524 | R44: =1.36165363582732+$B$30 -> 1.361653636
A45: shifted [P] (mM) | B45: 0 | D45: =45/60 -> 0.75 | E45: 0.75 | F45: 0.75 | G45: 24.62748516 | H45: =14.2004297195647+$B$24 -> 14.20042972 | I45: =45/60 -> 0.75 | J45: 0.75 | K45: 0.75 | L45: 32.65210441 | M45: =6.39930271166508+$B$27 -> 6.399302712 | N45: =45/60 -> 0.75 | O45: 0.75 | P45: 0.75 | Q45: 37.63723907 | R45: =2.02330450995503+$B$30 -> 2.02330451
A46: shifted t, SM | B46: 0 | D46: =60/60 -> 1 | E46: 1 | F46: 1 | G46: 21.81647452 | H46: =16.0579312276991+$B$24 -> 16.05793123 | I46: =60/60 -> 1 | J46: 1 | K46: 1 | L46: 31.13499053 | M46: =7.95772576849829+$B$27 -> 7.957725768 | N46: =60/60 -> 1 | O46: 1 | P46: 1 | Q46: 37.30620415 | R46: =2.86566387771657+$B$30 -> 2.865663878
A47: shifted t, P | B47: 0 | D47: =90/60 -> 1.5 | E47: 1.5 | F47: 1.5 | G47: 19.60475283 | H47: =18.7604902625116+$B$24 -> 18.76049026 | I47: =90/60 -> 1.5 | J47: 1.5 | K47: 1.5 | L47: 28.19284966 | M47: =10.2044830170099+$B$27 -> 10.20448302 | N47: =90/60 -> 1.5 | O47: 1.5 | P47: 1.5 | Q47: 35.38783535 | R47: =4.14402490461277+$B$30 -> 4.144024905
A48: shifted [P] (mM) | B48: 0 | D48: =120/60 -> 2 | E48: 2 | F48: 2 | G48: 17.76463229 | H48: =20.3525136573852+$B$24 -> 20.35251366 | I48: =120/60 -> 2 | J48: 2 | K48: 2 | L48: 26.23827713 | M48: =12.2239838670456+$B$27 -> 12.22398387 | N48: =120/60 -> 2 | O48: 2 | P48: 2 | Q48: 34.36397232 | R48: =5.37048594427565+$B$30 -> 5.370485944
A49: shifted t, SM | B49: 0 | D49: =180/60 -> 3 | E49: 3 | F49: 3 | G49: 14.83408969 | H49: =22.2937693485648+$B$24 -> 22.29376935 | I49: =180/60 -> 3 | J49: 3 | K49: 3 | L49: 22.90324027 | M49: =14.7027868732005+$B$27 -> 14.70278687 | N49: =180/60 -> 3 | O49: 3 | P49: 3 | Q49: 31.76635952 | R49: =7.30616901909801+$B$30 -> 7.306169019
A50: shifted t, P | B50: 0 | D50: =240/60 -> 4 | E50: 4 | F50: 4 | G50: 13.03639352 | H50: =24.095947812435+$B$24 -> 24.09594781 | I50: =240/60 -> 4 | J50: 4 | K50: 4 | L50: 20.33407651 | M50: =16.1565530145294+$B$27 -> 16.15655301 | N50: =240/60 -> 4 | O50: 4 | P50: 4 | Q50: 30.43281664 | R50: =8.51448889774638+$B$30 -> 8.514488898
A51: shifted [P] (mM) | B51: 0 | D51: =300/60 -> 5 | E51: 5 | F51: 5 | G51: 11.49781159 | H51: =25.151963062449+$B$24 -> 25.15196306 | I51: =300/60 -> 5 | J51: 5 | K51: 5 | L51: 18.9591877 | M51: =17.7736301662332+$B$27 -> 17.77363017 | N51: =300/60 -> 5 | O51: 5 | P51: 5 | Q51: 28.67293141 | R51: =9.57606943795279+$B$30 -> 9.576069438
A52: shifted t, SM | B52: 0 | D52: =360/60 -> 6 | E52: 6 | F52: 6 | G52: 10.26646679 | H52: =26.3163126383557+$B$24 -> 26.31631264 | I52: =360/60 -> 6 | J52: 6 | K52: 6 | L52: 17.65179258 | M52: =19.0398985514743+$B$27 -> 19.03989855 | N52: =360/60 -> 6 | O52: 6 | P52: 6 | Q52: 27.8688359 | R52: =10.4666989838859+$B$30 -> 10.46669898
A53: shifted t, P | B53: 0 | D53: =420/60 -> 7 | E53: 7 | F53: 7 | G53: 9.326784542 | H53: =26.8876997760648+$B$24 -> 26.88769978 | I53: =420/60 -> 7 | J53: 7 | K53: 7 | L53: 16.53192226 | M53: =20.0251426433911+$B$27 -> 20.02514264 | N53: =420/60 -> 7 | O53: 7 | P53: 7 | Q53: 26.98064601 | R53: =10.9922895324663+$B$30 -> 10.99228953
A54: shifted [P] (mM) | B54: 0 | D54: =480/60 -> 8 | E54: 8 | F54: 8 | G54: 8.633532989 | H54: =27.2928740627149+$B$24 -> 27.29287406 | I54: =480/60 -> 8 | J54: 8 | K54: 8 | L54: 15.63942542 | M54: =20.5890916280019+$B$27 -> 20.58909163 | N54: =480/60 -> 8 | O54: 8 | P54: 8 | Q54: 26.36175289 | R54: =11.532051316567+$B$30 -> 11.53205132
A55: shifted t, SM | B55: 0 | D55: BL-149, BL-150 | I55: BL-151, BL-155 | N55: BL-077, BL-078 + BL-154, BL-165
A56: shifted t, P | B56: 0 | D56: [SM]0 | E56: 40 mM | I56: [SM]0 | J56: 40 mM | N56: [SM]0 | O56: 40 mM
A57: shifted [P] (mM) | B57: 0 | D57: [PhCO2H]0 | E57: 56 mM | I57: [PhCO2H]0 | J57: 56 mM | N57: [PhCO2H]0 | O57: 56 mM
D58: [PhCONHBr]0 | E58: 56 mM | I58: [PhCONHBr]0 | J58: 56 mM | N58: [PhCONHBr]0 | O58: 56 mM
D59: [(DHQD)2PHAL]0 | E59: 8 mM | I59: [(DHQD)2PHAL]0 | J59: 8 mM | N59: [(DHQD)2PHAL]0 | O59: 8 mM
D60: [(4-Tol)2CO]0 | E60: 40 mM | F60: ← internal standard | I60: [(4-Tol)2CO]0 | J60: 40 mM | K60: ← internal standard | N60: [(4-Tol)2CO]0 | O60: 40 mM | P60: ← internal standard
D61: [P]0 (83:17 er) | E61: 0 mM | I61: [P]0 (83:17 er) | J61: 0 mM | N61: [P]0 (83:17 er) | O61: 0 mM
D62: [PhCONH2]0 | E62: 0 mM | I62: [PhCONH2]0 | J62: 0 mM | N62: [PhCONH2]0 | O62: 0 mM
D63: [(S)-PhCONHCH(Me)Ph]0 | F63: 40 mM | I63: [(R)-PhCONHCH(Me)Ph]0 | K63: 40 mM
D65: Experiment 20 | I65: Experiment 21 | N65: Experiment 2
D66: t (hours) | E66: shifted t, SM | F66: shifted t, P | G66: [SM] (mM) | H66: [P] (mM) | I66: t (hours) | J66: shifted t, SM | K66: shifted t, P | L66: [SM] (mM) | M66: [P] (mM) | N66: t (hours) | O66: shifted t, SM | P66: shifted t, P | Q66: [SM] (mM) | R66: [P] (mM)
D67: =0/60 -> 0 | E67: =D67+$B$31 -> 0 | F67: =D67+$B$32 -> 0 | G67: 40.0249672 | H67: =0+$B$33 -> 0 | I67: =0/60 -> 0 | J67: =I67+$B$34 -> 0 | K67: =I67+$B$35 -> 0 | L67: 39.24028463 | M67: =0+$B$36 -> 0 | N67: =0/60 -> 0 | O67: =N67+$B$37 -> 0 | P67: =N67+$B$38 -> 0 | Q67: 40.81684294 | R67: =0+$B$39 -> 0
D68: =5/60 -> 0.08333333333 | E68: 0.08333333333 | F68: 0.08333333333 | G68: 36.51739058 | H68: =4.40605447404791+$B$33 -> 4.406054474 | I68: =2.5/60 -> 0.04166666667 | J68: 0.04166666667 | K68: 0.04166666667 | L68: 36.41591256 | M68: =3.53890800311826+$B$36 -> 3.538908003 | N68: =5/60 -> 0.08333333333 | O68: 0.08333333333 | P68: 0.08333333333 | R68: =4.8722916197291+$B$39 -> 4.87229162
D69: =10/60 -> 0.1666666667 | E69: 0.1666666667 | F69: 0.1666666667 | G69: 31.38455803 | H69: =7.55801652397383+$B$33 -> 7.558016524 | I69: =7.5/60 -> 0.125 | J69: 0.125 | K69: 0.125 | M69: =7.06189821865721+$B$36 -> 7.061898219 | N69: =10/60 -> 0.1666666667 | O69: 0.1666666667 | P69: 0.1666666667 | Q69: 30.24900399 | R69: =7.98686364686522+$B$39 -> 7.986863647
D70: =15/60 -> 0.25 | E70: 0.25 | F70: 0.25 | G70: 29.67553089 | H70: =9.57118564611791+$B$33 -> 9.571185646 | I70: =12.5/60 -> 0.2083333333 | J70: 0.2083333333 | K70: 0.2083333333 | L70: 29.98208671 | M70: =9.42586848021899+$B$36 -> 9.42586848 | N70: =15/60 -> 0.25 | O70: 0.25 | P70: 0.25 | Q70: 28.71678986 | R70: =9.91714930260114+$B$39 -> 9.917149303
D71: =30/60 -> 0.5 | E71: 0.5 | F71: 0.5 | G71: 25.22952668 | H71: =13.6495181387023+$B$33 -> 13.64951814 | I71: =22.5/60 -> 0.375 | J71: 0.375 | K71: 0.375 | L71: 27.87426627 | M71: =13.0211001318258+$B$36 -> 13.02110013 | N71: =30/60 -> 0.5 | O71: 0.5 | P71: 0.5 | Q71: 24.96884821 | R71: =13.9305049151336+$B$39 -> 13.93050492
D72: =45/60 -> 0.75 | E72: 0.75 | F72: 0.75 | G72: 22.76725313 | H72: =16.2704303935926+$B$33 -> 16.27043039 | I72: =37.5/60 -> 0.625 | J72: 0.625 | K72: 0.625 | L72: 23.67870787 | M72: =15.8963400406311+$B$36 -> 15.89634004 | N72: =45/60 -> 0.75 | O72: 0.75 | P72: 0.75 | Q72: 21.95542365 | R72: =16.4196252741745+$B$39 -> 16.41962527
D73: =60/60 -> 1 | E73: 1 | F73: 1 | G73: 20.46071311 | H73: =18.0910174193688+$B$33 -> 18.09101742 | I73: =52.5/60 -> 0.875 | J73: 0.875 | K73: 0.875 | L73: 21.77225591 | M73: =17.5884944268865+$B$36 -> 17.58849443 | N73: =60/60 -> 1 | O73: 1 | P73: 1 | Q73: 19.68743875 | R73: =18.214393484379+$B$39 -> 18.21439348
D74: =90/60 -> 1.5 | E74: 1.5 | F74: 1.5 | G74: 17.79614166 | H74: =20.1934936948495+$B$33 -> 20.19349369 | I74: =75/60 -> 1.25 | J74: 1.25 | K74: 1.25 | L74: 19.04660368 | M74: =19.8504896772099+$B$36 -> 19.85048968 | N74: =90/60 -> 1.5 | O74: 1.5 | P74: 1.5 | Q74: 17.56671889 | R74: =20.5164503232919+$B$39 -> 20.51645032
D75: =120/60 -> 2 | E75: 2 | F75: 2 | G75: 15.81108248 | H75: =21.9213119733226+$B$33 -> 21.92131197 | I75: =105/60 -> 1.75 | J75: 1.75 | K75: 1.75 | L75: 16.5695426 | M75: =21.6468113646537+$B$36 -> 21.64681136 | N75: =120/60 -> 2 | O75: 2 | P75: 2 | Q75: 15.38596359 | R75: =21.942237141525+$B$39 -> 21.94223714
D76: =180/60 -> 3 | E76: 3 | F76: 3 | G76: 13.05783217 | H76: =24.0044204634382+$B$33 -> 24.00442046 | I76: =150/60 -> 2.5 | J76: 2.5 | K76: 2.5 | L76: 14.18348648 | M76: =23.7469460017501+$B$36 -> 23.746946 | N76: =180/60 -> 3 | O76: 3 | P76: 3 | Q76: 12.7750423 | R76: =24.0745651746078+$B$39 -> 24.07456517
D77: =240/60 -> 4 | E77: 4 | F77: 4 | G77: 11.21516473 | H77: =25.9114773143358+$B$33 -> 25.91147731 | I77: =210/60 -> 3.5 | J77: 3.5 | K77: 3.5 | L77: 12.32606348 | M77: =25.3678665977256+$B$36 -> 25.3678666 | N77: =240/60 -> 4 | O77: 4 | P77: 4 | Q77: 11.45157038 | R77: =25.7153980376127+$B$39 -> 25.71539804
D78: =300/60 -> 5 | E78: 5 | F78: 5 | G78: 9.958731634 | H78: =26.631713910571+$B$33 -> 26.63171391 | I78: =270/60 -> 4.5 | J78: 4.5 | K78: 4.5 | L78: 10.67307896 | M78: =26.5725895163774+$B$36 -> 26.57258952 | N78: =300/60 -> 5 | O78: 5 | P78: 5 | Q78: 10.1054678 | R78: =26.7632191988612+$B$39 -> 26.7632192
D79: =360/60 -> 6 | E79: 6 | F79: 6 | G79: 8.737699639 | H79: =27.0571549405196+$B$33 -> 27.05715494 | I79: =330/60 -> 5.5 | J79: 5.5 | K79: 5.5 | L79: 9.241524852 | M79: =27.1453503372904+$B$36 -> 27.14535034 | N79: =360/60 -> 6 | O79: 6 | P79: 6 | Q79: 9.460863998 | R79: =27.5410927735301+$B$39 -> 27.54109277
D80: =420/60 -> 7 | E80: 7 | F80: 7 | G80: 7.815996453 | H80: =27.7754675916512+$B$33 -> 27.77546759 | I80: =390/60 -> 6.5 | J80: 6.5 | K80: 6.5 | L80: 8.33989501 | M80: =27.9409361103195+$B$36 -> 27.94093611 | N80: =420/60 -> 7 | O80: 7 | P80: 7 | Q80: 8.761768594 | R80: =28.041083434127+$B$39 -> 28.04108343
D81: =480/60 -> 8 | E81: 8 | F81: 8 | G81: 7.380240775 | H81: =28.128175786348+$B$33 -> 28.12817579 | I81: =450/60 -> 7.5 | J81: 7.5 | K81: 7.5 | L81: 7.636042121 | M81: =28.6409233038841+$B$36 -> 28.6409233 | N81: =480/60 -> 8 | O81: 8 | P81: 8 | Q81: 7.743978927 | R81: =28.5462495980188+$B$39 -> 28.5462496
I82: =510/60 -> 8.5 | J82: 8.5 | K82: 8.5 | L82: 7.120246327 | M82: =28.886705991871+$B$36 -> 28.88670599
D83: BL-156, BL-158 − SM profiles less reproducible | I83: BL-157, BL-159 − SM profiles less reproducible | N83: BL-215, BL-216
D84: [SM]0 | E84: 40 mM | I84: [SM]0 | J84: 40 mM | N84: [SM]0 | O84: 40 mM
D85: [PhCO2H]0 | E85: 56 mM | I85: [PhCO2H]0 | J85: 56 mM | N85: [PhCO2H]0 | O85: 56 mM
D86: [PhCONHBr]0 | E86: 56 mM | I86: [PhCONHBr]0 | J86: 56 mM | N86: [PhCONHBr]0 | O86: 56 mM
D87: [(DHQD)2PHAL]0 | E87: 8 mM | I87: [(DHQD)2PHAL]0 | J87: 8 mM | N87: [(DHQD)2PHAL]0 | O87: 8 mM
D88: [(4-Tol)2CO]0 | E88: 40 mM | F88: ← internal standard | I88: [(4-Tol)2CO]0 | J88: 40 mM | K88: ← internal standard | N88: [(4-Tol)2CO]0 | O88: 40 mM | P88: ← internal standard
D89: [P]0 (83:17 er) | E89: 0 mM | I89: [P]0 (83:17 er) | J89: 0 mM | N89: [P]0 (83:17 er) | O89: 0 mM
D90: [PhCONH2]0 | E90: 0 mM | I90: [PhCONH2]0 | J90: 0 mM | N90: [PhCONH2]0 | O90: 0 mM
D91: [(S)-5-isopropylhydantoin]0 | F91: 40 mM | I91: [(R)-5-isopropylhydantoin]0 | K91: 40 mM | N91: [PhCONH(t-Bu)]0 | P91: 40 mM
D93: Experiment 22 | I93: Experiment 23 | N93: Experiment 34
D94: t (hours) | E94: shifted t, SM | F94: shifted t, P | G94: [SM] (mM) | H94: [P] (mM) | I94: t (hours) | J94: shifted t, SM | K94: shifted t, P | L94: [SM] (mM) | M94: [P] (mM) | N94: t (hours) | O94: shifted t, SM | P94: shifted t, P | Q94: [SM] (mM) | R94: [P] (mM)
D95: =0/60 -> 0 | E95: =D95+$B$40 -> 0 | F95: =D95+$B$41 -> 0 | G95: − | H95: =0+$B$42 -> 0 | I95: =0/60 -> 0 | J95: =I95+$B$43 -> 0 | K95: =I95+$B$44 -> 0 | L95: − | M95: =0+$B$45 -> 0 | N95: =0/60 -> 0 | O95: =N95+$B$46 -> 0 | P95: =N95+$B$47 -> 0 | Q95: 40.22576647 | R95: =0+$B$48 -> 0
D96: =5/60 -> 0.08333333333 | E96: =D96+$B$40 -> 0.08333333333 | F96: =D96+$B$41 -> 0.08333333333 | G96: − | H96: =1.97514836608338+$B$42 -> 1.975148366 | I96: =2.5/60 -> 0.04166666667 | J96: =I96+$B$43 -> 0.04166666667 | K96: =I96+$B$44 -> 0.04166666667 | L96: − | M96: =0.830009980989903+$B$45 -> 0.830009981 | N96: =5/60 -> 0.08333333333 | O96: =N96+$B$46 -> 0.08333333333 | P96: =N96+$B$47 -> 0.08333333333 | Q96: 34.41877497 | R96: =4.84586642989263+$B$48 -> 4.84586643
D97: =10/60 -> 0.1666666667 | E97: 0.1666666667 | F97: 0.1666666667 | G97: − | H97: =3.46488152338613+$B$42 -> 3.464881523 | I97: =7.5/60 -> 0.125 | J97: 0.125 | K97: 0.125 | L97: − | M97: =2.77925282111306+$B$45 -> 2.779252821 | N97: =10/60 -> 0.1666666667 | O97: 0.1666666667 | P97: 0.1666666667 | Q97: 31.66917607 | R97: =7.80087723540032+$B$48 -> 7.800877235
D98: =15/60 -> 0.25 | E98: 0.25 | F98: 0.25 | G98: − | H98: =4.78918444599654+$B$42 -> 4.789184446 | I98: =12.5/60 -> 0.2083333333 | J98: 0.2083333333 | K98: 0.2083333333 | L98: − | M98: =4.35756459198873+$B$45 -> 4.357564592 | N98: =15/60 -> 0.25 | O98: 0.25 | P98: 0.25 | Q98: 29.17218157 | R98: =9.99281270766975+$B$48 -> 9.992812708
D99: =30/60 -> 0.5 | E99: 0.5 | F99: 0.5 | G99: − | H99: =7.96621056974653+$B$42 -> 7.96621057 | I99: =22.5/60 -> 0.375 | J99: 0.375 | K99: 0.375 | L99: − | M99: =6.74827267007714+$B$45 -> 6.74827267 | N99: =30/60 -> 0.5 | O99: 0.5 | P99: 0.5 | Q99: 25.08739482 | R99: =14.0510893934894+$B$48 -> 14.05108939
D100: =45/60 -> 0.75 | E100: 0.75 | F100: 0.75 | G100: − | H100: =10.4562890819797+$B$42 -> 10.45628908 | I100: =37.5/60 -> 0.625 | J100: 0.625 | K100: 0.625 | L100: − | M100: =9.38628074056732+$B$45 -> 9.386280741 | N100: =45/60 -> 0.75 | O100: 0.75 | P100: 0.75 | Q100: 22.25472675 | R100: =16.5348354966185+$B$48 -> 16.5348355
D101: =60/60 -> 1 | E101: 1 | F101: 1 | G101: − | H101: =12.1201452364759+$B$42 -> 12.12014524 | I101: =52.5/60 -> 0.875 | J101: 0.875 | K101: 0.875 | L101: − | M101: =11.4505005743325+$B$45 -> 11.45050057 | N101: =60/60 -> 1 | O101: 1 | P101: 1 | Q101: 20.52752443 | R101: =18.2085441153471+$B$48 -> 18.20854412
D102: =90/60 -> 1.5 | E102: 1.5 | F102: 1.5 | G102: − | H102: =14.7629209107634+$B$42 -> 14.76292091 | I102: =75/60 -> 1.25 | J102: 1.25 | K102: 1.25 | L102: − | M102: =13.7221909419514+$B$45 -> 13.72219094 | N102: =90/60 -> 1.5 | O102: 1.5 | P102: 1.5 | Q102: 17.96552853 | R102: =20.4747782617207+$B$48 -> 20.47477826
D103: =120/60 -> 2 | E103: 2 | F103: 2 | G103: − | H103: =16.6640373388687+$B$42 -> 16.66403734 | I103: =105/60 -> 1.75 | J103: 1.75 | K103: 1.75 | L103: − | M103: =15.8872894291686+$B$45 -> 15.88728943 | N103: =120/60 -> 2 | O103: 2 | P103: 2 | Q103: 16.13467836 | R103: =22.0763014499154+$B$48 -> 22.07630145
D104: =180/60 -> 3 | E104: 3 | F104: 3 | G104: − | H104: =19.0019525055702+$B$42 -> 19.00195251 | I104: =150/60 -> 2.5 | J104: 2.5 | K104: 2.5 | L104: − | M104: =17.9590842636313+$B$45 -> 17.95908426 | N104: =180/60 -> 3 | O104: 3 | P104: 3 | Q104: 13.56775158 | R104: =24.13989424158+$B$48 -> 24.13989424
D105: =240/60 -> 4 | E105: 4 | F105: 4 | G105: − | H105: =20.7213966009208+$B$42 -> 20.7213966 | I105: =210/60 -> 3.5 | J105: 3.5 | K105: 3.5 | L105: − | M105: =19.9722823602674+$B$45 -> 19.97228236 | N105: =240/60 -> 4 | O105: 4 | P105: 4 | Q105: 11.67363958 | R105: =25.7362242731391+$B$48 -> 25.73622427
D106: =300/60 -> 5 | E106: 5 | F106: 5 | G106: − | H106: =21.9414992027958+$B$42 -> 21.9414992 | I106: =270/60 -> 4.5 | J106: 4.5 | K106: 4.5 | L106: − | M106: =21.5162517482671+$B$45 -> 21.51625175 | N106: =300/60 -> 5 | O106: 5 | P106: 5 | Q106: 10.38332276 | R106: =26.3971655292344+$B$48 -> 26.39716553
D107: =360/60 -> 6 | E107: 6 | F107: 6 | G107: − | H107: =23.0807521230482+$B$42 -> 23.08075212 | I107: =330/60 -> 5.5 | J107: 5.5 | K107: 5.5 | L107: − | M107: =22.7522504949034+$B$45 -> 22.75225049 | N107: =360/60 -> 6 | O107: 6 | P107: 6 | Q107: 9.322485718 | R107: =27.1633989360732+$B$48 -> 27.16339894
D108: =420/60 -> 7 | E108: 7 | F108: 7 | G108: − | H108: =23.8065523351197+$B$42 -> 23.80655234 | I108: =390/60 -> 6.5 | J108: 6.5 | K108: 6.5 | L108: − | M108: =23.5688343552172+$B$45 -> 23.56883436 | N108: =420/60 -> 7 | O108: 7 | P108: 7 | Q108: 8.674977155 | R108: =27.9939308286365+$B$48 -> 27.99393083
D109: =480/60 -> 8 | E109: 8 | F109: 8 | G109: − | H109: =24.5253028354373+$B$42 -> 24.52530284 | I109: =450/60 -> 7.5 | J109: 7.5 | K109: 7.5 | L109: − | M109: =24.0713350812761+$B$45 -> 24.07133508 | N109: =480/60 -> 8 | O109: 8 | P109: 8 | Q109: 8.034000635 | R109: =28.5299230014823+$B$48 -> 28.529923
I110: =510/60 -> 8.5 | J110: 8.5 | K110: 8.5 | L110: − | M110: =24.7720975315427+$B$45 -> 24.77209753 | N110: =540/60 -> 9 | O110: 9 | P110: 9 | Q110: 7.560567244 | R110: =28.9233709850299+$B$48 -> 28.92337099
D111: BL-234, BL-235 | I111: BL-410, BL-412 | N111: BL-082, BL-083
D112: [SM]0 | E112: 40 mM | I112: [SM]0 | J112: 40 mM | N112: [SM]0 | O112: 40 mM
D113: [PhCO2H]0 | E113: 56 mM | I113: [PhCO2H]0 | J113: 56 mM | N113: [PhCO2H]0 | O113: 56 mM
D114: [PhCONHBr]0 | E114: 56 mM | I114: [PhCONHBr]0 | J114: 56 mM | N114: [PhCONHBr]0 | O114: 56 mM
D115: [(DHQD)2PHAL]0 | E115: 8 mM | I115: [(DHQD)2PHAL]0 | J115: 8 mM | N115: [(DHQD)2PHAL]0 | O115: 8 mM
D116: [(4-Tol)2CO]0 | E116: 40 mM | F116: ← internal standard | I116: [(4-Tol)2CO]0 | J116: 40 mM | K116: ← internal standard | N116: [(4-Tol)2CO]0 | O116: 40 mM | P116: ← internal standard
D117: [P]0 (83:17 er) | E117: 0 mM | I117: [P]0 (83:17 er) | J117: 0 mM | N117: [P]0 (83:17 er) | O117: 0 mM
D118: [PhCONH2]0 | E118: 0 mM | I118: [PhCONH2]0 | J118: 0 mM | N118: [PhCONH2]0 | O118: 40 mM
D119: [PhCONMe2]0 | E119: 40 mM | I119: [DMH]0 | J119: 40 mM
D121: Experiment 35 | I121: Experiment 46 | N121: Experiment 6
D122: t (hours) | E122: shifted t, SM | F122: shifted t, P | G122: [SM] (mM) | H122: [P] (mM) | I122: t (hours) | J122: shifted t, SM | K122: shifted t, P | L122: [SM] (mM) | M122: [P] (mM) | N122: t (hours) | O122: shifted t, SM | P122: shifted t, P | Q122: [SM] (mM) | R122: [P] (mM)
D123: =0/60 -> 0 | E123: =D123+$B$49 -> 0 | F123: =D123+$B$50 -> 0 | G123: 40.65526227 | H123: =0+$B$51 -> 0 | I123: =0/60 -> 0 | J123: =I123+$B$52 -> 0 | K123: =I123+$B$53 -> 0 | L123: 40 | M123: =0+B54 -> 0 | N123: =0/60 -> 0 | Q123: 41.69790406 | R123: =0 -> 0
D124: =2.5/60 -> 0.04166666667 | E124: =D124+$B$49 -> 0.04166666667 | F124: =D124+$B$50 -> 0.04166666667 | G124: 37.6825983 | H124: =2.41221335670263+$B$51 -> 2.412213357 | I124: =5/60 -> 0.08333333333 | J124: =I124+$B$52 -> 0.08333333333 | K124: =I124+$B$53 -> 0.08333333333 | L124: 35.93583347 | M124: =1.36498701566738+B54 -> 1.364987016 | N124: =5/60 -> 0.08333333333 | Q124: 39.18774767 | R124: =1.46586054395403 -> 1.465860544
D125: =7.5/60 -> 0.125 | E125: =D125+$B$49 -> 0.125 | F125: =D125+$B$50 -> 0.125 | G125: 30.87621509 | H125: =6.37598301945415+$B$51 -> 6.375983019 | I125: =10/60 -> 0.1666666667 | J125: 0.1666666667 | K125: 0.1666666667 | L125: 34.41902937 | M125: =2.43793308421968+B54 -> 2.437933084 | N125: =10/60 -> 0.1666666667 | Q125: 37.52617963 | R125: =2.73722496075171 -> 2.737224961
D126: =12.5/60 -> 0.2083333333 | E126: 0.2083333333 | F126: 0.2083333333 | G126: 30.16891772 | H126: =8.81870528728344+$B$51 -> 8.818705287 | I126: =15/60 -> 0.25 | J126: 0.25 | K126: 0.25 | L126: 33.23059687 | M126: =3.43336904248904+B54 -> 3.433369042 | N126: =15/60 -> 0.25 | Q126: 36.09858001 | R126: =3.856912236185 -> 3.856912236
D127: =22.5/60 -> 0.375 | E127: 0.375 | F127: 0.375 | G127: 27.00385696 | H127: =12.0486135452273+$B$51 -> 12.04861355 | I127: =30/60 -> 0.5 | J127: 0.5 | K127: 0.5 | L127: 30.44908206 | M127: =5.89410239498386+B54 -> 5.894102395 | N127: =30/60 -> 0.5 | Q127: 33.55429249 | R127: =6.38245434559773 -> 6.382454346
D128: =37.5/60 -> 0.625 | E128: 0.625 | F128: 0.625 | G128: 23.94690755 | H128: =15.0199294158472+$B$51 -> 15.01992942 | I128: =45/60 -> 0.75 | J128: 0.75 | K128: 0.75 | L128: 28.0936108 | M128: =7.62288711980502+B54 -> 7.62288712 | N128: =45/60 -> 0.75 | Q128: 31.05782538 | R128: =8.33415954417405 -> 8.334159544
D129: =52.5/60 -> 0.875 | E129: 0.875 | F129: 0.875 | G129: 21.75546887 | H129: =17.1235409250085+$B$51 -> 17.12354093 | I129: =60/60 -> 1 | J129: 1 | K129: 1 | L129: 26.02466178 | M129: =9.10649743047891+B54 -> 9.10649743 | N129: =60/60 -> 1 | Q129: 29.30081118 | R129: =9.7864212309207 -> 9.786421231
D130: =75/60 -> 1.25 | E130: 1.25 | F130: 1.25 | G130: 18.86036678 | H130: =19.1412018852052+$B$51 -> 19.14120189 | I130: =90/60 -> 1.5 | J130: 1.5 | K130: 1.5 | L130: 22.5944186 | M130: =11.4163215674835+B54 -> 11.41632157 | N130: =90/60 -> 1.5 | Q130: 26.5590805 | R130: =12.1777665170435 -> 12.17776652
D131: =105/60 -> 1.75 | E131: 1.75 | F131: 1.75 | G131: 16.85297187 | H131: =20.8961042445122+$B$51 -> 20.89610424 | I131: =120/60 -> 2 | J131: 2 | K131: 2 | L131: 20.48926792 | M131: =13.1646442272394+B54 -> 13.16464423 | N131: =120/60 -> 2 | Q131: 24.27840043 | R131: =13.9625057412563 -> 13.96250574
D132: =150/60 -> 2.5 | E132: 2.5 | F132: 2.5 | G132: 14.54271487 | H132: =22.9613231650221+$B$51 -> 22.96132317 | I132: =180/60 -> 3 | J132: 3 | K132: 3 | L132: 17.8768667 | M132: =15.476022574464+B54 -> 15.47602257 | N132: =180/60 -> 3 | Q132: 20.82965943 | R132: =16.5273799558341 -> 16.52737996
D133: =210/60 -> 3.5 | E133: 3.5 | F133: 3.5 | G133: 12.55306066 | H133: =24.5551955205173+$B$51 -> 24.55519552 | I133: =240/60 -> 4 | J133: 4 | K133: 4 | L133: 15.94119166 | M133: =17.2679782988974+B54 -> 17.2679783 | N133: =240/60 -> 4 | Q133: 18.92241527 | R133: =18.0644946246226 -> 18.06449462
D134: =270/60 -> 4.5 | E134: 4.5 | F134: 4.5 | G134: 11.01354088 | H134: =25.7768056950921+$B$51 -> 25.7768057 | I134: =300/60 -> 5 | J134: 5 | K134: 5 | L134: 13.96051196 | M134: =18.2555267688858+B54 -> 18.25552677 | N134: =300/60 -> 5 | Q134: 17.03307522 | R134: =19.4005734588743 -> 19.40057346
D135: =330/60 -> 5.5 | E135: 5.5 | F135: 5.5 | G135: 9.63178199 | H135: =26.5252110619043+$B$51 -> 26.52521106 | I135: =360/60 -> 6 | J135: 6 | K135: 6 | L135: 12.37332202 | M135: =19.3641303909224+B54 -> 19.36413039 | N135: =360/60 -> 6 | Q135: 15.5373207 | R135: =20.5110982233604 -> 20.51109822
D136: =390/60 -> 6.5 | E136: 6.5 | F136: 6.5 | G136: 8.798299375 | H136: =27.1720598569694+$B$51 -> 27.17205986 | I136: =420/60 -> 7 | J136: 7 | K136: 7 | L136: 11.28648488 | M136: =20.0808191565254+B54 -> 20.08081916 | N136: =420/60 -> 7 | Q136: 14.19979855 | R136: =21.3190854228598 -> 21.31908542
D137: =450/60 -> 7.5 | E137: 7.5 | F137: 7.5 | G137: 7.907002072 | H137: =27.8225034523812+$B$51 -> 27.82250345 | I137: =480/60 -> 8 | J137: 8 | K137: 8 | L137: 10.15409644 | M137: =20.5286292981081+B54 -> 20.5286293 | N137: =480/60 -> 8 | Q137: 13.53010633 | R137: =21.8962934690397 -> 21.89629347
D138: =510/60 -> 8.5 | E138: 8.5 | F138: 8.5 | G138: 7.324099584 | H138: =28.0697648081972+$B$51 -> 28.06976481
D165: Experiment 14 | H165: Experiment 15 | L165: Experiment 16
D166: [P]n - [P]n-1 | E166: [SM]n-1 - [SM]n | F166: subtraction | G166: [SM]0 - [P]n - [SM]n | H166: [P]n - [P]n-1 | I166: [SM]n-1 - [SM]n | J166: subtraction | K166: [SM]0 - [P]n - [SM]n | L166: [P]n - [P]n-1 | M166: [SM]n-1 - [SM]n | N166: subtraction | O166: [SM]0 - [P]n - [SM]n
D167: =H14-H13 -> 4.640227531 | E167: =G13-G14 -> 6.800892077 | F167: =E167-D167 -> 2.160664545 | G167: =$G$13-(H13-$H$13)-G13 -> 0 | H167: =M14-M13 -> 0.7705156781 | I167: =L13-L14 -> 8.633871273 | J167: =I167-H167 -> 7.863355595 | K167: =$L$13-(M13-$M$13)-L13 -> 0 | L167: =R14-R13 -> 1.595666339 | M167: − | N167: −
D168: 3.299797909 | E168: 3.161965718 | F168: -0.1378321911 | G168: 2.160664545 | H168: 0.7103358204 | I168: 2.00351549 | J168: =I168-H168 -> 1.29317967 | K168: 7.863355595 | L168: 0.4773493318 | M168: − | N168: −
D169: 1.951157414 | E169: 2.188824223 | F169: 0.2376668087 | G169: 2.022832354 | H169: 0.6967246123 | I169: 1.085513588 | J169: 0.3887889759 | K169: 9.156535265 | L169: -0.09487160864 | M169: − | N169: −
D170: 3.605172607 | E170: 4.025130423 | F170: 0.4199578154 | G170: 2.260499163 | H170: 1.911796814 | I170: 2.14203228 | J170: 0.230235466 | K170: 9.545324241 | L170: 0.1397002065 | M170: − | N170: −
D171: 2.423176138 | E171: 2.728872077 | F171: 0.3056959386 | G171: 2.680456978 | H171: 1.738916141 | I171: 2.390114273 | J171: 0.6511981316 | K171: 9.775559707 | L171: 0.004042261694 | M171: − | N171: −
D172: 1.787488445 | E172: 1.764194512 | F172: -0.02329393321 | G172: 2.986152917 | H172: 1.345680878 | I172: 1.416466312 | J172: 0.07078543312 | K172: 10.42675784 | L172: 0.02592952541 | M172: − | N172: −
D173: 2.042603716 | E173: 2.560500538 | F173: 0.5178968228 | G173: 2.962858984 | H173: 2.1789236 | I173: 2.33682917 | J173: 0.15790557 | K173: 10.49754327 | L173: 0.01459818022 | M173: − | N173: −
D174: 1.822559797 | E174: 1.624120863 | F174: -0.1984389346 | G174: 3.480755807 | H174: 1.92489826 | I174: 1.2740265 | J174: -0.6508717599 | K174: 10.65544884 | L174: 0.02008075136 | M174: − | N174: −
D175: 1.567777857 | E175: 2.679381401 | F175: 1.111603544 | G175: 3.282316872 | H175: 2.479510898 | I175: 1.869040399 | J175: -0.610470499 | K175: 10.00457708 | L175: 0.02851658343 | M175: − | N175: −
D176: 1.438391115 | E176: 1.411793899 | F176: -0.02659721569 | G176: 4.393920416 | H176: 1.888856415 | I176: 1.988168136 | J176: 0.09931172177 | K176: 9.394106583 | L176: -0.02672951438 | M176: − | N176: −
D177: 1.217135013 | E177: 1.146280547 | F177: -0.07085446582 | G177: 4.3673232 | H177: 1.526338042 | I177: 0.9128472298 | J177: -0.6134908127 | K177: 9.493418305 | L177: 0.05675815896 | M177: − | N177: −
D178: 0.7963056733 | E178: 1.251039066 | F178: 0.4547333932 | G178: 4.296468734 | H178: 1.056178199 | I178: 0.6130259873 | J178: -0.4431522114 | K178: 8.879927492 | L178: -0.07297241824 | M178: − | N178: −
D179: 0.141040728 | E179: 0.7388330176 | F179: 0.5977922896 | G179: 4.751202127 | H179: 0.6390354357 | I179: 0.7524532716 | J179: 0.113417836 | K179: 8.436775281 | L179: 0.04707145142 | M179: − | N179: −
D180: 0.4376692883 | E180: 0.7794127963 | F180: 0.341743508 | G180: 5.348994417 | H180: 0.5758548317 | I180: 0.2016375957 | J180: -0.374217236 | K180: 8.550193117 | L180: -0.02159781419 | M180: − | N180: −
G181: 5.690737925 | K181: 8.175975881
D183: Experiment 17 | H183: Experiment 18 | L183: Experiment 19
D184: [P]n - [P]n-1 | E184: [SM]n-1 - [SM]n | F184: subtraction | G184: [SM]0 - [P]n - [SM]n | H184: [P]n - [P]n-1 | I184: [SM]n-1 - [SM]n | J184: subtraction | K184: [SM]0 - [P]n - [SM]n | L184: [P]n - [P]n-1 | M184: [SM]n-1 - [SM]n | N184: subtraction | O184: [SM]0 - [P]n - [SM]n
D185: =H41-H40 -> 3.284528392 | E185: =G40-G41 -> 3.623826295 | F185: =E185-D185 -> 0.3392979031 | G185: =$G$40-(H40-$H$40)-G40 -> 0 | H185: =M41-M40 -> 0.809154555 | I185: =L40-L41 -> 0.6532772748 | J185: =I185-H185 -> -0.1558772801 | K185: =$L$40-(M40-$M$40)-L40 -> 0 | L185: =R41-R40 -> 0.1394125617 | M185: =Q40-Q41 -> 0.1461816584 | N185: =M185-L185 -> 0.006769096716 | O185: =$Q$40-(R40-$R$40)-Q40 -> 0
D186: 1.485281168 | E186: 3.226757842 | F186: =E186-D186 -> 1.741476674 | G186: 0.3392979031 | H186: 0.8449668703 | I186: 1.317218859 | J186: =I186-H186 -> 0.4722519889 | K186: -0.1558772801 | L186: 0.4046076661 | M186: =Q41-Q42 -> -0.3359421905 | N186: =M186-L186 -> -0.7405498567 | O186: =$Q$40-(R41-$R$40)-Q41 -> 0.006769096716
D187: 2.958505796 | E187: 3.586414187 | F187: 0.627908391 | G187: 2.080774577 | H187: 0.7434577734 | I187: 0.9760810044 | J187: 0.232623231 | K187: 0.3163747088 | L187: 0.107810225 | M187: − | N187: −
D188: 4.042240648 | E188: 2.012280082 | F188: -2.029960566 | G188: 2.708682968 | H188: 2.233335263 | I188: 2.706964234 | J188: 0.4736289709 | K188: 0.5489979398 | L188: 0.7098231831 | M188: =Q43-Q44 -> 1.450716331 | N188: 0.7408931477 | O188: =$Q$40-(R43-$R$40)-Q43 -> -0.2499010247
D189: 2.429873715 | E189: 2.779514864 | F189: 0.3496411488 | G189: 0.6787224025 | H189: 1.76838825 | I189: 2.242523011 | J189: 0.4741347614 | K189: 1.022626911 | L189: 0.6616508741 | M189: =Q44-Q45 -> 1.327946173 | N189: 0.6662952987 | O189: =$Q$40-(R44-$R$40)-Q44 -> 0.490992123
D190: 1.857501508 | E190: 2.811010641 | F190: 0.9535091333 | G190: 1.028363551 | H190: 1.558423057 | I190: 1.517113882 | J190: -0.04130917439 | K190: 1.496761672 | L190: 0.8423593678 | M190: =Q45-Q46 -> 0.3310349212 | N190: -0.5113244466 | O190: =$Q$40-(R45-$R$40)-Q45 -> 1.157287422
D191: 2.702559035 | E191: 2.21172169 | F191: -0.4908373445 | G191: 1.981872685 | H191: 2.246757249 | I191: 2.942140862 | J191: 0.6953836131 | K191: 1.455452498 | L191: 1.278361027 | M191: − | N191: −
D192: 1.592023395 | E192: 1.840120533 | F192: 0.2480971386 | G192: 1.49103534 | H192: 2.01950085 | I192: 1.954572535 | J192: -0.06492831523 | K192: 2.150836111 | L192: 1.22646104 | M192: =Q47-Q48 -> 1.023863035 | N192: -0.2025980045 | O192: =$Q$40-(R47-$R$40)-Q47 -> 1.285970746
D193: 1.941255691 | E193: 2.930542601 | F193: 0.98928691 | G193: 1.739132479 | H193: 2.478803006 | I193: 3.335036862 | J193: 0.8562338562 | K193: 2.085907796 | L193: 1.935683075 | M193: 2.597612801 | N193: 0.6619297263 | O193: 1.083372742
D194: 1.802178464 | E194: 1.797696172 | F194: -0.004482291476 | G194: 2.728419389 | H194: 1.453766141 | I194: 2.569163762 | J194: 1.115397621 | K194: 2.942141652 | L194: 1.208319879 | M194: 1.333542872 | N194: 0.1252229932 | O194: 1.745302468
D195: 1.05601525 | E195: 1.53858193 | F195: 0.4825666804 | G195: 2.723937097 | H195: 1.617077152 | I195: 1.374888804 | J195: -0.2421883475 | K195: 4.057539273 | L195: 1.06158054 | M195: 1.759885231 | N195: 0.698304691 | O195: 1.870525461
D196: 1.164349576 | E196: 1.2313448 | F196: 0.06699522446 | G196: 3.206503778 | H196: 1.266268385 | I196: 1.307395124 | J196: 0.04112673865 | K196: 3.815350925 | L196: 0.8906295459 | M196: 0.8040955122 | N196: -0.08653403377 | O196: 2.568830152
D197: 0.5713871377 | E197: 0.9396822482 | F197: 0.3682951105 | G197: 3.273499002 | H197: 0.9852440919 | I197: 1.119870319 | J197: 0.1346262267 | K197: 3.856477664 | L197: 0.5255905486 | M197: 0.8881898907 | N197: 0.3625993421 | O197: 2.482296118
D198: 0.4051742867 | E198: 0.6932515527 | F198: 0.2880772661 | G198: 3.641794112 | H198: 0.5639489846 | I198: 0.8924968411 | J198: 0.3285478565 | K198: 3.99110389 | L198: 0.5397617841 | M198: 0.6188931199 | N198: 0.07913133581 | O198: 2.84489546
G199: 3.929871379 | K199: 4.319651747 | O199: 2.924026796
D201: Experiment 20 | H201: Experiment 21 | L201: Experiment 2
D202: [P]n - [P]n-1 | E202: [SM]n-1 - [SM]n | F202: subtraction | G202: [SM]0 - [P]n - [SM]n | H202: [P]n - [P]n-1 | I202: [SM]n-1 - [SM]n | J202: subtraction | K202: [SM]0 - [P]n - [SM]n | L202: [P]n - [P]n-1 | M202: [SM]n-1 - [SM]n | N202: subtraction | O202: [SM]0 - [P]n - [SM]n
D203: =H68-H67 -> 4.406054474 | E203: =G67-G68 -> 3.507576617 | F203: =E203-D203 -> -0.8984778568 | G203: =$G$67-(H67-$H$67)-G67 -> 0 | H203: =M68-M67 -> 3.538908003 | I203: =L67-L68 -> 2.824372077 | J203: =I203-H203 -> -0.7145359262 | K203: =$L$67-(M67-$M$67)-L67 -> 0 | L203: =R68-R67 -> 4.87229162 | M203: =Q67-Q68 -> 40.81684294 | N203: =M203-L203 -> 35.94455132 | O203: =$Q$67-(R67-$R$67)-Q67 -> 0
D204: 3.15196205 | E204: 5.132832553 | F204: =E204-D204 -> 1.980870503 | G204: -0.8984778568 | H204: 3.522990216 | I204: =L68-L69 -> 36.41591256 | J204: =I204-H204 -> 32.89292234 | K204: =$L$67-(M68-$M$67)-L68 -> -0.7145359262 | L204: 3.114572027 | M204: -30.24900399 | N204: =M204-L204 -> -33.36357602 | O204: 35.94455132
D205: 2.013169122 | E205: 1.709027135 | F205: -0.3041419874 | G205: 1.082392646 | H205: 2.363970262 | I205: − | J205: − | L205: 1.930285656 | M205: 1.532214129 | N205: -0.3980715269 | O205: 2.580975304
D206: 4.078332493 | E206: 4.446004215 | F206: 0.3676717223 | G206: 0.778250659 | H206: 3.595231652 | I206: =L70-L71 -> 2.107820436 | J206: -1.487411216 | K206: =$L$67-(M70-$M$67)-L70 -> -0.1676705534 | L206: 4.013355613 | M206: 3.747941652 | N206: -0.2654139609 | O206: 2.182903777
D207: 2.620912255 | E207: 2.462273547 | F207: -0.1586387083 | G207: 1.145922381 | H207: 2.875239909 | I207: 4.195558401 | J207: 1.320318492 | K207: -1.655081769 | L207: 2.489120359 | M207: 3.013424562 | N207: 0.524304203 | O207: 1.917489817
D208: 1.820587026 | E208: 2.306540017 | F208: 0.4859529917 | G208: 0.987283673 | H208: 1.692154386 | I208: 1.90645196 | J208: 0.2142975742 | K208: -0.334763277 | L208: 1.79476821 | M208: 2.267984902 | N208: 0.4732166917 | O208: 2.44179402
D209: 2.102476275 | E209: 2.664571453 | F209: 0.5620951777 | G209: 1.473236665 | H209: 2.26199525 | I209: 2.725652227 | J209: 0.463656977 | K209: -0.1204657029 | L209: 2.302056839 | M209: 2.120719855 | N209: -0.1813369843 | O209: 2.915010711
D210: 1.727818278 | E210: 1.985059184 | F210: 0.2572409059 | G210: 2.035331842 | H210: 1.796321687 | I210: 2.477061087 | J210: 0.6807393992 | K210: 0.3431912741 | L210: 1.425786818 | M210: 2.180755303 | N210: 0.7549684843 | O210: 2.733673727
D211: 2.08310849 | E211: 2.753250306 | F211: 0.6701418162 | G211: 2.292572748 | H211: 2.100134637 | I211: 2.386056118 | J211: 0.2859214814 | K211: 1.023930673 | L211: 2.132328033 | M211: 2.610921292 | N211: 0.4785932584 | O211: 3.488642211
D212: 1.907056851 | E212: 1.842667443 | F212: -0.06438940833 | G212: 2.962714565 | H212: 1.620920596 | I212: 1.857422993 | J212: 0.2365023969 | K212: 1.309852155 | L212: 1.640832863 | M212: 1.323471923 | N212: -0.3173609402 | O212: 3.96723547
D213: 0.7202365962 | E213: 1.256433093 | F213: 0.5361964963 | G213: 2.898325156 | H213: 1.204722919 | I213: 1.652984529 | J213: 0.4482616107 | K213: 1.546354552 | L213: 1.047821161 | M213: 1.346102574 | N213: 0.2982814129 | O213: 3.649874529
D214: 0.4254410299 | E214: 1.221031995 | F214: 0.7955909654 | G214: 3.434521653 | H214: 0.5727608209 | I214: 1.431554104 | J214: 0.8587932829 | K214: 1.994616162 | L214: 0.7778735747 | M214: 0.6446038034 | N214: -0.1332697713 | O214: 3.948155942
D215: 0.7183126511 | E215: 0.9217031859 | F215: 0.2033905348 | G215: 4.230112618 | H215: 0.795585773 | I215: 0.9016298414 | J215: 0.1060440683 | K215: 2.853409445 | L215: 0.4999906606 | M215: 0.6990954043 | N215: 0.1991047437 | O215: 3.814886171
D216: 0.3527081947 | E216: 0.435755678 | F216: 0.0830474833 | G216: 4.433503153 | H216: 0.6999871936 | I216: 0.703852889 | J216: 0.003865695403 | K216: 2.959453513 | L216: 0.5051661639 | M216: 1.017789667 | N216: 0.5126235034 | O216: 4.013990915
G217: 4.516550636 | K217: 2.963319209 | O217: 4.526614418
D219: Experiment 22 | H219: Experiment 23 | L219: Experiment 34
D220: [P]n - [P]n-1 | E220: [SM]n-1 - [SM]n | F220: subtraction | G220: [SM]0 - [P]n - [SM]n | H220: [P]n - [P]n-1 | I220: [SM]n-1 - [SM]n | J220: subtraction | K220: [SM]0 - [P]n - [SM]n | L220: [P]n - [P]n-1 | M220: [SM]n-1 - [SM]n | N220: subtraction | O220: [SM]0 - [P]n - [SM]n
D221: =H96-H95 -> 1.975148366 | E221: − | F221: − | H221: =M96-M95 -> 0.830009981 | I221: − | J221: − | L221: =R96-R95 -> 4.84586643 | M221: =Q95-Q96 -> 5.806991502 | N221: =M221-L221 -> 0.9611250723 | O221: =$Q$95-(R95-$R$95)-Q95 -> 0
D222: 1.489733157 | E222: − | F222: − | H222: 1.94924284 | I222: − | J222: − | L222: 2.955010806 | M222: 2.7495989 | N222: =M222-L222 -> -0.2054119057 | O222: =$Q$95-(R96-$R$95)-Q96 -> 0.9611250723
D223: 1.324302923 | E223: − | F223: − | H223: 1.578311771 | I223: − | J223: − | L223: 2.191935472 | M223: 2.496994501 | N223: 0.3050590283 | O223: 0.7557131666
D224: 3.177026124 | E224: − | F224: − | H224: 2.390708078 | I224: − | J224: − | L224: 4.058276686 | M224: 4.084786755 | N224: 0.02651006904 | O224: 1.060772195
D225: 2.490078512 | E225: − | F225: − | H225: 2.63800807 | I225: − | J225: − | L225: 2.483746103 | M225: 2.832668065 | N225: 0.3489219617 | O225: 1.087282264
D226: 1.663856154 | E226: − | F226: − | H226: 2.064219834 | I226: − | J226: − | L226: 1.673708619 | M226: 1.727202323 | N226: 0.05349370396 | O226: 1.436204226
D227: 2.642775674 | E227: − | F227: − | H227: 2.271690368 | I227: − | J227: − | L227: 2.266234146 | M227: 2.561995894 | N227: 0.295761748 | O227: 1.48969793
D228: 1.901116428 | E228: − | F228: − | H228: 2.165098487 | I228: − | J228: − | L228: 1.601523188 | M228: 1.830850169 | N228: 0.2293269806 | O228: 1.785459678
D229: 2.337915167 | E229: − | F229: − | H229: 2.071794834 | I229: − | J229: − | L229: 2.063592792 | M229: 2.566926784 | N229: 0.5033339921 | O229: 2.014786658
D230: 1.719444095 | E230: − | F230: − | H230: 2.013198097 | I230: − | J230: − | L230: 1.596330032 | M230: 1.894112005 | N230: 0.2977819731 | O230: 2.51812065
D231: 1.220102602 | E231: − | F231: − | H231: 1.543969388 | I231: − | J231: − | L231: 0.6609412561 | M231: 1.290316821 | N231: 0.6293755646 | O231: 2.815902623
D232: 1.13925292 | E232: − | F232: − | H232: 1.235998747 | I232: − | J232: − | L232: 0.7662334068 | M232: 1.060837037 | N232: 0.2946036301 | O232: 3.445278188
D233: 0.7258002121 | E233: − | F233: − | H233: 0.8165838603 | I233: − | J233: − | L233: 0.8305318926 | M233: 0.6475085638 | N233: -0.1830233288 | O233: 3.739881818
... 20 more rows

Sheet IS order
E1: BL-074, BL-076 + BL-091 + BL-103 | J1: BL-090, BL-095
E2: [SM]0 | F2: 80 mM | J2: [SM]0 | K2: 80 mM
E3: [PhCO2H]0 | F3: 96 mM | J3: [PhCO2H]0 | K3: 96 mM
E4: [PhCONHBr]0 | F4: 96 mM | J4: [PhCONHBr]0 | K4: 96 mM
E5: [(DHQD)2PHAL]0 | F5: 8 mM | J5: [(DHQD)2PHAL]0 | K5: 8 mM
E6: [(4-Tol)2CO]0 | F6: 40 mM | G6: ← internal standard | J6: [(4-Tol)2CO]0 | K6: 20 mM | L6: ← internal standard
E7: [P]0 (83:17 er) | F7: 0 mM | J7: [P]0 (83:17 er) | K7: 0 mM
E8: [PhCONH2]0 | F8: 0 mM | J8: [PhCONH2]0 | K8: 0 mM
E10: Experiment 1 | J10: Experiment 7
E11: t (hours) | F11: shifted t, SM | G11: shifted t, P | H11: [SM] (mM) | I11: [P] (mM) | J11: t (hours) | K11: shifted t, SM | L11: shifted t, P | M11: [SM] (mM) | N11: [P] (mM)
A12: order in (4-Tol)2CO | B12: 0 | E12: 0 | F12: 0 | G12: 0 | H12: 81.07808246 | I12: 0 | J12: =0/60 -> 0 | K12: 0 | L12: 0 | M12: 80.86471909 | N12: 0
E13: =5/60 -> 0.08333333333 | F13: =F12+((H13+H12)/2)^$B$12*(E13-E12) -> 0.08333333333 | G13: =G12+((I13+I12)/2)^$B$12*(E13-E12) -> 0.08333333333 | H13: 61.3271683 | I13: 17.09311471 | J13: =5/60 -> 0.08333333333 | K13: =K12+((M13+M12)/2)^$B$12*(J13-J12) -> 0.08333333333 | L13: =L12+((N13+N12)/2)^$B$12*(J13-J12) -> 0.08333333333 | M13: 61.09420833 | N13: 17.12936266
E14: =10/60 -> 0.1666666667 | F14: 0.1666666667 | G14: =G13+((I14+I13)/2)^$B$12*(E14-E13) -> 0.1666666667 | H14: 54.1675482 | I14: 24.35579875 | J14: =10/60 -> 0.1666666667 | K14: =K13+((M14+M13)/2)^$B$12*(J14-J13) -> 0.1666666667 | L14: =L13+((N14+N13)/2)^$B$12*(J14-J13) -> 0.1666666667 | M14: 53.24402669 | N14: 24.71315157
E15: 0.25 | F15: =F14+((H15+H14)/2)^$B$12*(E15-E14) -> 0.25 | G15: 0.25 | H15: 49.32505523 | I15: 28.84129147 | J15: =15/60 -> 0.25 | K15: =K14+((M15+M14)/2)^$B$12*(J15-J14) -> 0.25 | L15: =L14+((N15+N14)/2)^$B$12*(J15-J14) -> 0.25 | M15: 48.60483895 | N15: 29.25642291
E16: 0.5 | F16: =F15+((H16+H15)/2)^$B$12*(E16-E15) -> 0.5 | G16: 0.5 | H16: 41.06044687 | I16: 36.35950079 | J16: =30/60 -> 0.5 | K16: 0.5 | L16: 0.5 | M16: 40.81953988 | N16: 37.07144085
E17: 0.75 | F17: =F16+((H17+H16)/2)^$B$12*(E17-E16) -> 0.75 | G17: 0.75 | H17: 36.50137066 | I17: 40.6830327 | J17: =45/60 -> 0.75 | K17: 0.75 | L17: 0.75 | M17: 35.46692824 | N17: 41.34273534
E18: 1 | F18: 1 | G18: 1 | H18: 32.90884116 | I18: 43.71985703 | J18: =60/60 -> 1 | K18: 1 | L18: 1 | M18: 32.50280572 | N18: 44.43858897
E19: 1.5 | F19: 1.5 | G19: 1.5 | H19: 28.38880084 | I19: 47.47004976 | J19: =90/60 -> 1.5 | K19: 1.5 | L19: 1.5 | M19: 27.79796842 | N19: 48.42708806
E20: 2 | F20: 2 | G20: 2 | H20: 25.73896822 | I20: 50.11749134 | J20: =120/60 -> 2 | K20: 2 | L20: 2 | M20: 25.23477399 | N20: 50.79043392
E21: 3 | F21: 3 | G21: 3 | H21: 21.67582487 | I21: 53.11085235 | J21: =180/60 -> 3 | K21: 3 | L21: 3 | M21: 21.12829828 | N21: 53.72144455
E22: 4 | F22: 4 | G22: 4 | H22: 18.95388037 | I22: 55.3006173 | J22: =240/60 -> 4 | K22: 4 | L22: 4 | M22: 18.50467571 | N22: 55.8367882
E23: 5 | F23: 5 | G23: 5 | H23: 17.04173528 | I23: 56.74569813 | J23: =300/60 -> 5 | K23: 5 | L23: 5 | M23: 16.63152822 | N23: 57.38244048
E24: 6 | F24: 6 | G24: 6 | H24: 15.31642023 | I24: 58.23180412 | J24: =360/60 -> 6 | K24: 6 | L24: 6 | M24: 14.94981635 | N24: 58.4979393
E25: 7 | F25: 7 | G25: 7 | H25: 14.23209072 | I25: 58.88950864 | J25: =420/60 -> 7 | K25: 7 | L25: 7 | M25: 13.70618361 | N25: 59.36999829
E26: 8 | F26: 8 | G26: 8 | H26: 13.17071068 | I26: 59.54344061 | J26: =480/60 -> 8 | K26: 8 | L26: 8 | M26: 12.4391088 | N26: 60.39360414
E53: Experiment 1 | I53: Experiment 7
E54: [P]n - [P]n-1 | F54: [SM]n-1 - [SM]n | G54: subtraction | H54: [SM]0 - [P]n - [SM]n | I54: [P]n - [P]n-1 | J54: [SM]n-1 - [SM]n | K54: subtraction | L54: [SM]0 - [P]n - [SM]n
E55: =I13-I12 -> 17.09311471 | F55: =H12-H13 -> 19.75091416 | G55: =F55-E55 -> 2.657799452 | H55: =$H$12-(I12-$I$12)-H12 -> 0 | I55: =N13-N12 -> 17.12936266 | J55: =M12-M13 -> 19.77051076 | K55: =J55-I55 -> 2.641148095 | L55: =$M$12-(N12-$N$12)-M12 -> 0
E56: 7.262684045 | F56: 7.159620101 | G56: -0.1030639437 | H56: 2.657799452 | I56: 7.583788911 | J56: 7.850181642 | K56: =J56-I56 -> 0.2663927312 | L56: 2.641148095
E57: 4.485492719 | F57: 4.842492972 | G57: 0.3570002528 | H57: 2.554735508 | I57: 4.543271342 | J57: 4.639187737 | K57: 0.09591639533 | L57: 2.907540827
E58: 7.518209314 | F58: 8.264608355 | G58: 0.7463990414 | H58: 2.911735761 | I58: 7.815017933 | J58: 7.785299068 | K58: -0.0297188653 | L58: 3.003457222
E59: 4.323531912 | F59: 4.559076211 | G59: 0.2355442988 | H59: 3.658134802 | I59: 4.271294495 | J59: 5.352611639 | K59: 1.081317144 | L59: 2.973738357
E60: 3.036824332 | F60: 3.592529502 | G60: 0.5557051695 | H60: 3.893679101 | I60: 3.095853634 | J60: 2.964122523 | K60: -0.1317311104 | L60: 4.055055501
E61: 3.750192725 | F61: 4.520040317 | G61: 0.7698475918 | H61: 4.449384271 | I61: 3.988499089 | J61: 4.704837298 | K61: 0.7163382084 | L61: 3.92332439
E62: 2.647441581 | F62: 2.649832623 | G62: 0.002391041604 | H62: 5.219231862 | I62: 2.363345853 | J62: 2.563194433 | K62: 0.1998485797 | L62: 4.639662599
E63: 2.99336101 | F63: 4.063143352 | G63: 1.069782342 | H63: 5.221622904 | I63: 2.931010639 | J63: 4.106475707 | K63: 1.175465069 | L63: 4.839511178
E64: 2.189764955 | F64: 2.721944493 | G64: 0.5321795384 | H64: 6.291405246 | I64: 2.115343643 | J64: 2.623622578 | K64: 0.508278935 | L64: 6.014976247
E65: 1.445080831 | F65: 1.912145089 | G65: 0.4670642582 | H65: 6.823584785 | I65: 1.545652281 | J65: 1.873147485 | K65: 0.3274952037 | L65: 6.523255182
E66: 1.486105983 | F66: 1.725315049 | G66: 0.2392090661 | H66: 7.290649043 | I66: 1.115498817 | J66: 1.681711866 | K66: 0.5662130488 | L66: 6.850750386
E67: 0.657704527 | F67: 1.084329512 | G67: 0.4266249853 | H67: 7.529858109 | I67: 0.8720589906 | J67: 1.243632743 | K67: 0.3715737519 | L67: 7.416963435
E68: 0.6539319663 | F68: 1.061380047 | G68: 0.4074480808 | H68: 7.956483094 | I68: 1.023605852 | J68: 1.267074811 | K68: 0.2434689594 | L68: 7.788537187
H69: 8.363931175 | L69: 8.032006146

Sheet cat order
D1: BL-074, BL-076 + BL-091 + BL-103 | J1: BL-101, BL-102 | P1: BL-106, BL-108 + BL-115
D2: [SM]0 | E2: 80 mM | J2: [SM]0 | K2: 80 mM | P2: [SM]0 | Q2: 80 mM
D3: [PhCO2H]0 | E3: 96 mM | J3: [PhCO2H]0 | K3: 96 mM | P3: [PhCO2H]0 | Q3: 96 mM
D4: [PhCONHBr]0 | E4: 96 mM | J4: [PhCONHBr]0 | K4: 96 mM | P4: [PhCONHBr]0 | Q4: 96 mM
D5: [(DHQD)2PHAL]0 | E5: 8 mM | J5: [(DHQD)2PHAL]0 | K5: 5 mM | P5: [(DHQD)2PHAL]0 | Q5: 2 mM
D6: [(4-Tol)2CO]0 | E6: 40 mM | F6: ← internal standard | J6: [(4-Tol)2CO]0 | K6: 40 mM | L6: ← internal standard | P6: [(4-Tol)2CO]0 | Q6: 40 mM | R6: ← internal standard
D7: [P]0 (83:17 er) | E7: 0 mM | J7: [P]0 (83:17 er) | K7: 0 mM | P7: [P]0 (83:17 er) | Q7: 0 mM
D8: [PhCONH2]0 | E8: 0 mM | J8: [PhCONH2]0 | K8: 0 mM | P8: [PhCONH2]0 | Q8: 0 mM
D10: Experiment 1 | J10: Experiment 8 | P10: Experiment 12
D11: t (hours) | E11: tcat (SM) | F11: tcat (P) | G11: [SM] (mM) | H11: [P] (mM) | I11: [cat] (mM) | J11: t (hours) | K11: tcat (SM) | L11: tcat (P) | M11: [SM] (mM) | N11: [P] (mM) | O11: [cat] (mM) | P11: t (hours) | Q11: tcat (SM) | R11: tcat (P) | S11: [SM] (mM) | T11: [P] (mM) | U11: [cat] (mM)
A12: order in cat (SM) | B12: 0 | D12: 0 | E12: 0 | F12: 0 | G12: 81.07808246 | H12: 0 | I12: 8 | J12: =0/60 -> 0 | K12: 0 | L12: 0 | M12: 81.07808246 | N12: 0 | O12: 5 | P12: =0/60 -> 0 | Q12: 0 | R12: 0 | S12: 80.90739176 | T12: 0 | U12: 2
A13: order in cat (P) | B13: 1 | D13: =5/60 -> 0.08333333333 | E13: =E12+(($I12+$I13)/2)^$B$12*($D13-$D12) -> 0.08333333333 | F13: =F12+(($I12+$I13)/2)^$B$13*($D13-$D12) -> 0.6666666667 | G13: 61.3271683 | H13: 17.09311471 | I13: 8 | J13: =5/60 -> 0.08333333333 | K13: =K12+(($O12+$O13)/2)^$B$12*($J13-$J12) -> 0.08333333333 | L13: =L12+(($O12+$O13)/2)^$B$13*($J13-$J12) -> 0.4166666667 | M13: 64.35849016 | N13: 13.80528476 | O13: 5 | P13: =5/60 -> 0.08333333333 | Q13: =Q12+(($U12+$U13)/2)^$B$12*($P13-$P12) -> 0.08333333333 | R13: =R12+(($U12+$U13)/2)^$B$13*($P13-$P12) -> 0.1666666667 | S13: 69.59651861 | T13: 7.030274278 | U13: 2
D14: =10/60 -> 0.1666666667 | E14: =E13+(($I13+$I14)/2)^$B$12*($D14-$D13) -> 0.1666666667 | F14: =F13+(($I13+$I14)/2)^$B$13*($D14-$D13) -> 1.333333333 | G14: 54.1675482 | H14: 24.35579875 | I14: 8 | J14: =10/60 -> 0.1666666667 | K14: =K13+(($O13+$O14)/2)^$B$12*($J14-$J13) -> 0.1666666667 | L14: =L13+(($O13+$O14)/2)^$B$13*($J14-$J13) -> 0.8333333333 | M14: 57.69839988 | N14: 20.71842835 | O14: 5 | P14: =10/60 -> 0.1666666667 | Q14: =Q13+(($U13+$U14)/2)^$B$12*($P14-$P13) -> 0.1666666667 | R14: =R13+(($U13+$U14)/2)^$B$13*($P14-$P13) -> 0.3333333333 | S14: 63.10774121 | T14: 12.13717405 | U14: 2
D15: 0.25 | E15: =E14+(($I14+$I15)/2)^$B$12*($D15-$D14) -> 0.25 | F15: =F14+(($I14+$I15)/2)^$B$13*($D15-$D14) -> 2 | G15: 49.32505523 | H15: 28.84129147 | I15: 8 | J15: =15/60 -> 0.25 | K15: =K14+(($O14+$O15)/2)^$B$12*($J15-$J14) -> 0.25 | L15: =L14+(($O14+$O15)/2)^$B$13*($J15-$J14) -> 1.25 | M15: 52.66497519 | N15: 25.49979054 | O15: 5 | P15: =15/60 -> 0.25 | Q15: =Q14+(($U14+$U15)/2)^$B$12*($P15-$P14) -> 0.25 | R15: =R14+(($U14+$U15)/2)^$B$13*($P15-$P14) -> 0.5 | S15: 57.70810716 | T15: 15.69881487 | U15: 2
D16: 0.5 | E16: =E15+(($I15+$I16)/2)^$B$12*($D16-$D15) -> 0.5 | F16: =F15+(($I15+$I16)/2)^$B$13*($D16-$D15) -> 4 | G16: 41.06044687 | H16: 36.35950079 | I16: 8 | J16: =30/60 -> 0.5 | K16: =K15+(($O15+$O16)/2)^$B$12*($J16-$J15) -> 0.5 | L16: =L15+(($O15+$O16)/2)^$B$13*($J16-$J15) -> 2.5 | M16: 44.34158861 | N16: 33.2160996 | O16: 5 | P16: =30/60 -> 0.5 | Q16: 0.5 | R16: =R15+(($U15+$U16)/2)^$B$13*($P16-$P15) -> 1 | S16: 52.059527 | T16: 23.50585142 | U16: 2
D17: 0.75 | E17: 0.75 | F17: 6 | G17: 36.50137066 | H17: 40.6830327 | I17: 8 | J17: =45/60 -> 0.75 | K17: =K16+(($O16+$O17)/2)^$B$12*($J17-$J16) -> 0.75 | L17: 3.75 | M17: 39.25265216 | N17: 37.90043951 | O17: 5 | P17: =45/60 -> 0.75 | Q17: 0.75 | R17: 1.5 | S17: 45.46574124 | T17: 27.93321072 | U17: 2
D18: 1 | E18: 1 | F18: 8 | G18: 32.90884116 | H18: 43.71985703 | I18: 8 | J18: =60/60 -> 1 | K18: 1 | L18: 5 | M18: 35.93875032 | N18: 40.99245394 | O18: 5 | P18: =60/60 -> 1 | Q18: 1 | R18: 2 | S18: 41.91854901 | T18: 31.28080764 | U18: 2
D19: 1.5 | E19: 1.5 | F19: 12 | G19: 28.38880084 | H19: 47.47004976 | I19: 8 | J19: =90/60 -> 1.5 | K19: 1.5 | L19: 7.5 | M19: 31.04934994 | N19: 45.14917756 | O19: 5 | P19: =90/60 -> 1.5 | Q19: =Q18+(($U18+$U19)/2)^$B$12*($P19-$P18) -> 1.5 | R19: =R18+(($U18+$U19)/2)^$B$13*($P19-$P18) -> 3 | S19: 36.3729278 | T19: 35.3550558 | U19: 2
D20: 2 | E20: 2 | F20: 16 | G20: 25.73896822 | H20: 50.11749134 | I20: 8 | J20: =120/60 -> 2 | K20: 2 | L20: 10 | M20: 27.96019632 | N20: 48.04985288 | O20: 5 | P20: =120/60 -> 2 | Q20: 2 | R20: 4 | S20: 33.56223861 | T20: 38.73297781 | U20: 2
D21: 3 | E21: 3 | F21: 24 | G21: 21.67582487 | H21: 53.11085235 | I21: 8 | J21: =180/60 -> 3 | K21: 3 | L21: 15 | M21: 23.76778083 | N21: 51.36012282 | O21: 5 | P21: =180/60 -> 3 | Q21: 3 | R21: 6 | S21: 29.3733009 | T21: 42.79613767 | U21: 2
D22: 4 | E22: 4 | F22: 32 | G22: 18.95388037 | H22: 55.3006173 | I22: 8 | J22: =240/60 -> 4 | K22: 4 | L22: 20 | M22: 20.87341441 | N22: 53.24581988 | O22: 5 | P22: =240/60 -> 4 | Q22: 4 | R22: 8 | S22: 26.69575919 | T22: 45.62608394 | U22: 2
D23: 5 | E23: 5 | F23: 40 | G23: 17.04173528 | H23: 56.74569813 | I23: 8 | J23: =300/60 -> 5 | K23: 5 | L23: 25 | M23: 18.92859982 | N23: 54.91056394 | O23: 5 | P23: =300/60 -> 5 | Q23: 5 | R23: 10 | S23: 24.41699976 | T23: 47.22107719 | U23: 2
D24: 6 | E24: 6 | F24: 48 | G24: 15.31642023 | H24: 58.23180412 | I24: 8 | J24: =360/60 -> 6 | K24: 6 | L24: 30 | M24: 17.04349303 | N24: 56.20826078 | O24: 5 | P24: =360/60 -> 6 | Q24: 6 | R24: 12 | S24: 22.18534652 | T24: 48.64460978 | U24: 2
D25: 7 | E25: 7 | F25: 56 | G25: 14.23209072 | H25: 58.88950864 | I25: 8 | J25: =420/60 -> 7 | K25: 7 | L25: 35 | M25: 15.84000031 | N25: 57.39887828 | O25: 5 | P25: =420/60 -> 7 | Q25: 7 | R25: 14 | S25: 20.65250512 | T25: 49.87693457 | U25: 2
D26: 8 | E26: 8 | F26: 64 | G26: 13.17071068 | H26: 59.54344061 | I26: 8 | J26: =480/60 -> 8 | K26: 8 | L26: 40 | M26: 14.79267814 | N26: 58.02634896 | O26: 5 | P26: =480/60 -> 8 | Q26: 8 | R26: 16 | S26: 18.99944381 | T26: 50.91693021 | U26: 2
P27: =540/60 -> 9 | Q27: 9 | R27: 18 | S27: 18.10601662 | T27: 51.97090304 | U27: 2
P28: =600/60 -> 10 | Q28: 10 | R28: 20 | S28: 17.35354167 | T28: 52.9522478 | U28: 2
D53: Experiment 1 | H53: Experiment 8 | L53: Experiment 12
D54: [P]n - [P]n-1 | E54: [SM]n-1 - [SM]n | F54: subtraction | G54: [SM]0 - [P]n - [SM]n | H54: [P]n - [P]n-1 | I54: [SM]n-1 - [SM]n | J54: subtraction | K54: [SM]0 - [P]n - [SM]n | L54: [P]n - [P]n-1 | M54: [SM]n-1 - [SM]n | N54: subtraction | O54: [SM]0 - [P]n - [SM]n
D55: =H13-H12 -> 17.09311471 | E55: =G12-G13 -> 19.75091416 | F55: =E55-D55 -> 2.657799452 | G55: =$G$12-H12-G12 -> 0 | H55: =N13-N12 -> 13.80528476 | I55: =M12-M13 -> 16.7195923 | J55: =I55-H55 -> 2.914307535 | K55: =$M$12-N12-M12 -> 0 | L55: =T13-T12 -> 7.030274278 | M55: =S12-S13 -> 11.31087315 | N55: =M55-L55 -> 4.280598876 | O55: =$S$12-T12-S12 -> 0
D56: 7.262684045 | E56: 7.159620101 | F56: =E56-D56 -> -0.1030639437 | G56: 2.657799452 | H56: 6.913143582 | I56: 6.660090282 | J56: =I56-H56 -> -0.2530533002 | K56: 2.914307535 | L56: =T14-T13 -> 5.106899776 | M56: =S13-S14 -> 6.488777396 | N56: =M56-L56 -> 1.38187762 | O56: =$S$12-T13-S13 -> 4.280598876
D57: 4.485492719 | E57: 4.842492972 | F57: 0.3570002528 | G57: 2.554735508 | H57: 4.781362193 | I57: 5.033424692 | J57: 0.2520624992 | K57: 2.661254235 | L57: =T16-T14 -> 11.36867737 | M57: =S14-S16 -> 11.04821421 | N57: -0.3204631577 | O57: 5.662476496
D58: 7.518209314 | E58: 8.264608355 | F58: 0.7463990414 | G58: 2.911735761 | H58: 7.716309058 | I58: 8.323386574 | J58: 0.607077516 | K58: 2.913316734 | L58: =T17-T16 -> 4.427359295 | M58: =S16-S17 -> 6.593785763 | N58: 2.166426468 | O58: =$S$12-T16-S16 -> 5.342013338
D59: 4.323531912 | E59: 4.559076211 | F59: 0.2355442988 | G59: 3.658134802 | H59: 4.684339915 | I59: 5.088936457 | J59: 0.4045965419 | K59: 3.52039425 | L59: 3.347596925 | M59: 3.547192229 | N59: 0.1995953034 | O59: 7.508439806
D60: 3.036824332 | E60: 3.592529502 | F60: 0.5557051695 | G60: 3.893679101 | H60: 3.092014433 | I60: 3.313901833 | J60: 0.2218873996 | K60: 3.924990792 | L60: 4.074248159 | M60: 5.545621207 | N60: 1.471373049 | O60: 7.70803511
D61: 3.750192725 | E61: 4.520040317 | F61: 0.7698475918 | G61: 4.449384271 | H61: 4.15672362 | I61: 4.889400385 | J61: 0.7326767653 | K61: 4.146878192 | L61: 3.377922015 | M61: 2.810689197 | N61: -0.567232818 | O61: 9.179408158
D62: 2.647441581 | E62: 2.649832623 | F62: 0.002391041604 | G62: 5.219231862 | H62: 2.900675317 | I62: 3.089153615 | J62: 0.1884782974 | K62: 4.879554957 | L62: 4.063159852 | M62: 4.188937706 | N62: 0.1257778541 | O62: 8.612175341
D63: 2.99336101 | E63: 4.063143352 | F63: 1.069782342 | G63: 5.221622904 | H63: 3.310269943 | I63: 4.192415499 | J63: 0.8821455558 | K63: 5.068033254 | L63: 2.829946276 | M63: 2.677541706 | N63: -0.1524045699 | O63: 8.737953195
D64: 2.189764955 | E64: 2.721944493 | F64: 0.5321795384 | G64: 6.291405246 | H64: 1.885697051 | I64: 2.894366416 | J64: 1.008669366 | K64: 5.95017881 | L64: 1.594993242 | M64: 2.278759429 | N64: 0.6837661868 | O64: 8.585548625
D65: 1.445080831 | E65: 1.912145089 | F65: 0.4670642582 | G65: 6.823584785 | H65: 1.664744069 | I65: 1.94481459 | J65: 0.2800705212 | K65: 6.958848176 | L65: 1.423532596 | M65: 2.23165324 | N65: 0.8081206443 | O65: 9.269314812
D66: 1.486105983 | E66: 1.725315049 | F66: 0.2392090661 | G66: 7.290649043 | H66: 1.297696832 | I66: 1.885106789 | J66: 0.5874099566 | K66: 7.238918697 | L66: 1.232324789 | M66: 1.532841404 | N66: 0.300516615 | O66: 10.07743546
D67: 0.657704527 | E67: 1.084329512 | F67: 0.4266249853 | G67: 7.529858109 | H67: 1.190617506 | I67: 1.203492721 | J67: 0.0128752147 | K67: 7.826328654 | L67: 1.03999564 | M67: 1.653061314 | N67: 0.613065674 | O67: 10.37795207
D68: 0.6539319663 | E68: 1.061380047 | F68: 0.4074480808 | G68: 7.956483094 | H68: 0.6274706737 | I68: 1.047322173 | J68: 0.4198514989 | K68: 7.839203869 | L68: 1.053972831 | M68: 0.8934271845 | N68: -0.1605456464 | O68: 10.99101774
G69: 8.363931175 | K69: 8.259055367 | L69: 0.9813447602 | M69: 0.7524749564 | N69: -0.2288698038 | O69: 10.8304721
O70: 10.60160229

Sheet PhCONHBr order
E1: BL-074, BL-076 + BL-091 + BL-103 | J1: BL-097, BL-116
E2: [SM]0 | F2: 80 mM | J2: [SM]0 | K2: 80 mM
E3: [PhCO2H]0 | F3: 96 mM | J3: [PhCO2H]0 | K3: 96 mM
E4: [PhCONHBr]0 | F4: 96 mM | J4: [PhCONHBr]0 | K4: 64 mM
E5: [(DHQD)2PHAL]0 | F5: 8 mM | J5: [(DHQD)2PHAL]0 | K5: 8 mM
E6: [(4-Tol)2CO]0 | F6: 40 mM | G6: ← internal standard | J6: [(4-Tol)2CO]0 | K6: 40 mM | L6: ← internal standard
E7: [P]0 (83:17 er) | F7: 0 mM | J7: [P]0 (83:17 er) | K7: 0 mM
E8: [PhCONH2]0 | F8: 0 mM | J8: [PhCONH2]0 | K8: 0 mM
E10: Experiment 1 | J10: Experiment 9
E11: t (hours) | F11: shifted t | G11: [PhCONHBr] | H11: [SM] (mM) | I11: [P] (mM) | J11: t (hours) | K11: shifted t | L11: [PhCONHBr] | M11: [SM] (mM) | N11: [P] (mM)
A12: order in PhCONHBr | B12: 1 | E12: 0 | F12: 0 | G12: =96-I12 -> 96 | H12: 81.07808246 | I12: 0 | J12: =0/60 -> 0 | K12: 0 | L12: =64-N12 -> 64 | M12: 80.73670106 | N12: 0
E13: =5/60 -> 0.08333333333 | F13: =F12+((G13+G12)/2)^$B$12*(E13-E12) -> 7.177045243 | G13: =G12-($H$12-H13) -> 76.24908584 | H13: 61.3271683 | I13: 17.09311471 | J13: =5/60 -> 0.08333333333 | K13: =K12+((L13+L12)/2)^$B$12*(J13-J12) -> 4.683033091 | L13: =64-($M$12-M13) -> 48.39279418 | M13: 65.12949525 | N13: 12.99862109
E14: =10/60 -> 0.1666666667 | F14: =F13+((G14+G13)/2)^$B$12*(E14-E13) -> 13.33926554 | G14: =96-I14 -> 71.64420125 | H14: 54.1675482 | I14: 24.35579875 | J14: =10/60 -> 0.1666666667 | K14: =K13+((L14+L13)/2)^$B$12*(J14-J13) -> 8.437326084 | L14: 41.71023766 | M14: 58.44693872 | N14: 18.89489179
E15: 0.25 | F15: 19.12272011 | G15: 67.15870853 | H15: 49.32505523 | I15: 28.84129147 | J15: =15/60 -> 0.25 | K15: 11.75958835 | L15: 38.02405679 | M15: 54.76075786 | N15: 22.45734564
E16: 0.5 | F16: 34.97262108 | G16: 59.64049921 | H16: 41.06044687 | I16: 36.35950079 | J16: =30/60 -> 0.5 | K16: 20.39878059 | L16: 31.08948111 | M16: 47.82618217 | N16: 29.55996326
E17: 0.75 | F17: 49.34230439 | G17: 55.3169673 | H17: 36.50137066 | I17: 40.6830327 | J17: =45/60 -> 0.75 | K17: 27.68592005 | L17: 27.20763459 | M17: 43.94433565 | N17: 33.260662
E18: 1 | F18: 62.79194318 | G18: 52.28014297 | H18: 32.90884116 | I18: 43.71985703 | J18: =60/60 -> 1 | K18: 34.15137738 | L18: 24.51602406 | M18: 41.25272512 | N18: 36.04120695
E19: 1.5 | F19: 87.99446648 | G19: 48.52995024 | H19: 28.38880084 | I19: 47.47004976 | J19: =90/60 -> 1.5 | K19: 45.5253359 | L19: 20.97980998 | M19: 37.71651104 | N19: 39.41594545
E20: 2 | F20: 111.5975812 | G20: 45.88250866 | H20: 25.73896822 | I20: 50.11749134 | J20: =120/60 -> 2 | K20: 55.34046046 | L20: 18.28068828 | M20: 35.01738934 | N20: 41.56702786
E21: 3 | F21: 155.9834094 | G21: 42.88914765 | H21: 21.67582487 | I21: 53.11085235 | J21: =182/60 -> 3.033333333 | K21: 72.53473273 | L21: 14.99854837 | M21: 31.73524943 | N21: 45.09240471
E22: 4 | F22: 197.7776745 | G22: 40.6993827 | H22: 18.95388037 | I22: 55.3006173 | J22: =240/60 -> 4 | K22: 85.83273811 | L22: 12.51456623 | M22: 29.25126729 | N22: 46.71107818
E23: 5 | F23: 237.7545168 | G23: 39.25430187 | H23: 17.04173528 | I23: 56.74569813 | J23: =300/60 -> 5 | K23: 97.65123277 | L23: 11.12242308 | M23: 27.85912414 | N23: 48.21192051
E24: 6 | F24: 276.2657657 | G24: 37.76819588 | H24: 15.31642023 | I24: 58.23180412 | J24: =360/60 -> 6 | K24: 108.1173539 | L24: 9.809819247 | M24: 26.54652031 | N24: 49.28362452
E25: 7 | F25: 313.7051093 | G25: 37.11049136 | H25: 14.23209072 | I25: 58.88950864 | J25: =420/60 -> 7 | K25: 117.3838942 | L25: 8.7232613 | M25: 25.45996236 | N25: 50.08786146
E26: 8 | F26: 350.4886347 | G26: 36.45655939 | H26: 13.17071068 | I26: 59.54344061 | J26: =480/60 -> 8 | K26: 125.6997613 | L26: 7.908472854 | M26: 24.64517392 | N26: 50.77833571
E52: Experiment 1 | I52: Experiment 9
E53: [P]n - [P]n-1 | F53: [SM]n-1 - [SM]n | G53: subtraction | H53: [SM]0 - [P]n - [SM]n | I53: [P]n - [P]n-1 | J53: [SM]n-1 - [SM]n | K53: subtraction | L53: [SM]0 - [P]n - [SM]n
E54: =I13-I12 -> 17.09311471 | F54: =H12-H13 -> 19.75091416 | G54: =F54-E54 -> 2.657799452 | H54: =$H$12-(I12-$I$12)-H12 -> 0 | I54: =N13-N12 -> 12.99862109 | J54: =M12-M13 -> 15.60720582 | K54: =J54-I54 -> 2.608584729 | L54: =$M$12-(N12-$N$12)-M12 -> 0
E55: 7.262684045 | F55: 7.159620101 | G55: -0.1030639437 | H55: 2.657799452 | I55: 5.896270707 | J55: 6.682556527 | K55: =J55-I55 -> 0.7862858202 | L55: 2.608584729
E56: 4.485492719 | F56: 4.842492972 | G56: 0.3570002528 | H56: 2.554735508 | I56: 3.562453848 | J56: 3.686180863 | K56: 0.1237270149 | L56: 3.394870549
E57: 7.518209314 | F57: 8.264608355 | G57: 0.7463990414 | H57: 2.911735761 | I57: 7.102617617 | J57: 6.934575685 | K57: -0.1680419328 | L57: 3.518597564
E58: 4.323531912 | F58: 4.559076211 | G58: 0.2355442988 | H58: 3.658134802 | I58: 3.700698745 | J58: 3.881846523 | K58: 0.1811477784 | L58: 3.350555631
E59: 3.036824332 | F59: 3.592529502 | G59: 0.5557051695 | H59: 3.893679101 | I59: 2.780544946 | J59: 2.691610523 | K59: -0.08893442287 | L59: 3.53170341
E60: 3.750192725 | F60: 4.520040317 | G60: 0.7698475918 | H60: 4.449384271 | I60: 3.374738496 | J60: 3.536214086 | K60: 0.1614755899 | L60: 3.442768987
E61: 2.647441581 | F61: 2.649832623 | G61: 0.002391041604 | H61: 5.219231862 | I61: 2.151082417 | J61: 2.699121694 | K61: 0.5480392771 | L61: 3.604244577
E62: 2.99336101 | F62: 4.063143352 | G62: 1.069782342 | H62: 5.221622904 | I62: 3.525376851 | J62: 3.282139918 | K62: -0.2432369329 | L62: 4.152283854
E63: 2.189764955 | F63: 2.721944493 | G63: 0.5321795384 | H63: 6.291405246 | I63: 1.61867347 | J63: 2.483982139 | K63: 0.8653086691 | L63: 3.909046921
E64: 1.445080831 | F64: 1.912145089 | G64: 0.4670642582 | H64: 6.823584785 | I64: 1.500842328 | J64: 1.392143148 | K64: -0.1086991794 | L64: 4.77435559
E65: 1.486105983 | F65: 1.725315049 | G65: 0.2392090661 | H65: 7.290649043 | I65: 1.071704005 | J65: 1.312603831 | K65: 0.2408998261 | L65: 4.66565641
E66: 0.657704527 | F66: 1.084329512 | G66: 0.4266249853 | H66: 7.529858109 | I66: 0.8042369474 | J66: 1.086557947 | K66: 0.282321 | L66: 4.906556237
E67: 0.6539319663 | F67: 1.061380047 | G67: 0.4074480808 | H67: 7.956483094 | I67: 0.6904742429 | J67: 0.8147884455 | K67: 0.1243142026 | L67: 5.188877237
H68: 8.363931175 | L68: 5.313191439

Sheet BzOH order original
D1: BL-074, BL-076 + BL-091 + BL-103 | I1: BL-096, BL-105 + BL-117 | N1: BL-118, BL-120
D2: [SM]0 | E2: 80 mM | I2: [SM]0 | J2: 80 mM | N2: [SM]0 | O2: 80 mM
D3: [PhCO2H]0 | E3: 96 mM | F3: ← 1.2 equiv. | I3: [PhCO2H]0 | J3: 64 mM | K3: ← 0.8 equiv. | N3: [PhCO2H]0 | O3: 160 mM | P3: ← 2.0 equiv.
D4: [PhCONHBr]0 | E4: 96 mM | I4: [PhCONHBr]0 | J4: 96 mM | N4: [PhCONHBr]0 | O4: 96 mM
D5: [(DHQD)2PHAL]0 | E5: 8 mM | I5: [(DHQD)2PHAL]0 | J5: 8 mM | N5: [(DHQD)2PHAL]0 | O5: 8 mM
D6: [(4-Tol)2CO]0 | E6: 40 mM | F6: ← internal standard | I6: [(4-Tol)2CO]0 | J6: 40 mM | K6: ← internal standard | N6: [(4-Tol)2CO]0 | O6: 40 mM | P6: ← internal standard
D7: [P]0 (83:17 er) | E7: 0 mM | I7: [P]0 (83:17 er) | J7: 0 mM | N7: [P]0 (83:17 er) | O7: 0 mM
D8: [PhCONH2]0 | E8: 0 mM | I8: [PhCONH2]0 | J8: 0 mM | N8: [PhCONH2]0 | O8: 0 mM
D10: Experiment 1 | I10: Experiment 10 | N10: Experiment 13
D11: t (hours) | E11: shifted t | F11: [PhCO2H] (mM) | G11: [SM] (mM) | H11: [P] (mM) | I11: t (hours) | J11: shifted t | K11: [PhCO2H] (mM) | L11: [SM] (mM) | M11: [P] (mM) | N11: t (hours) | O11: shifted t | P11: [PhCO2H] (mM) | Q11: [SM] (mM) | R11: [P] (mM) | T11: t (minutes)
A12: order in BzOH | B12: 1 | D12: 0 | E12: 0 | F12: =96-($B$13*(-$H$12+H12))-($B$14*8) -> 96 | G12: 81.07808246 | H12: 0 | I12: =0/60 -> 0 | J12: 0 | K12: =64-($B$13*(-$M$12+M12))-($B$14*8) -> 64 | L12: 80.90739176 | M12: 0 | N12: =0/60 -> 0 | O12: 0 | P12: =160-($B$13*(-$R$12+R12))-($B$14*8) -> 160 | Q12: 80.82204641 | R12: 0 | T12: =0 -> 0
A13: correction benzamide | B13: 1 | D13: =5/60 -> 0.08333333333 | E13: =E12+((F13+F12)/2)^$B$12*(D13-D12) -> 7.287786887 | F13: =96-($B$13*(-$H$12+H13))-($B$14*8) -> 78.90688529 | G13: 61.3271683 | H13: 17.09311471 | I13: =5/60 -> 0.08333333333 | J13: =J12+((K13+K12)/2)^$B$12*(I13-I12) -> 4.850412439 | K13: =64-($B$13*(-$M$12+M13))-($B$14*8) -> 52.40989853 | L13: 62.65366431 | M13: 11.59010147 | N13: =5/60 -> 0.08333333333 | O13: =O12+((P13+P12)/2)^$B$12*(N13-N12) -> 12.32086414 | P13: =160-($B$13*(-$R$12+R13))-($B$14*8) -> 135.7007395 | Q13: 50.08822786 | R13: 24.29926055 | T13: =5 -> 5
A14: acid equiv. cat | B14: 0 | D14: =10/60 -> 0.1666666667 | E14: =E13+((F14+F13)/2)^$B$12*(D14-D13) -> 13.56074883 | F14: =96-($B$13*(-$H$12+H14))-($B$14*8) -> 71.64420125 | G14: 54.1675482 | H14: 24.35579875 | I14: =10/60 -> 0.1666666667 | J14: =J13+((K14+K13)/2)^$B$12*(I14-I13) -> 8.974420635 | K14: 46.56629818 | L14: 58.41301378 | M14: 17.43370182 | N14: =10/60 -> 0.1666666667 | O14: =O13+((P14+P13)/2)^$B$12*(N14-N13) -> 23.23242057 | P14: 126.1766147 | Q14: 38.9847112 | R14: 33.82338525 | T14: =10 -> 10
D15: 0.25 | E15: 19.3442034 | F15: 67.15870853 | G15: 49.32505523 | H15: 28.84129147 | I15: =15/60 -> 0.25 | J15: 12.70423236 | K15: 42.94918314 | L15: 54.38988979 | M15: 21.05081686 | N15: =15/60 -> 0.25 | O15: 33.51353931 | P15: 120.5702351 | Q15: 34.33215832 | R15: 39.42976489 | T15: =15 -> 15
D16: 0.5 | E16: 35.19410437 | F16: 59.64049921 | G16: 41.06044687 | H16: 36.35950079 | I16: =30/60 -> 0.5 | J16: 22.66511101 | K16: 36.73784608 | L16: 47.69971935 | M16: 27.26215392 | N16: =30/60 -> 0.5 | O16: 62.50856424 | P16: 111.3899643 | Q16: 27.0183854 | R16: 48.61003573 | T16: =30 -> 30
D17: 0.75 | E17: 49.56378768 | F17: 55.3169673 | G17: 36.50137066 | H17: 40.6830327 | I17: =45/60 -> 0.75 | J17: 31.38930721 | K17: 33.05572353 | L17: 43.12800498 | M17: 30.94427647 | N17: =45/60 -> 0.75 | O17: 89.83904527 | P17: 107.253884 | Q17: 22.42879156 | R17: 52.74611603 | T17: =45 -> 45
D18: 1 | E18: 63.01342646 | F18: 52.28014297 | G18: 32.90884116 | H18: 43.71985703 | I18: =60/60 -> 1 | J18: 39.36410255 | K18: 30.74263915 | L18: 39.99855413 | M18: 33.25736085 | N18: =60/60 -> 1 | O18: 116.3199251 | P18: 104.5931547 | Q18: 19.25052858 | R18: 55.40684531 | T18: =60 -> 60
D19: 1.5 | E19: 88.21594977 | F19: 48.52995024 | G19: 28.38880084 | H19: 47.47004976 | I19: =90/60 -> 1.5 | J19: 53.97389928 | K19: 27.69654778 | L19: 36.64630481 | M19: 36.30345222 | N19: =90/60 -> 1.5 | O19: 167.5817743 | P19: 100.454242 | Q19: 14.91384802 | R19: 59.54575795 | T19: =90 -> 90
D20: 2 | E20: 111.8190645 | F20: 45.88250866 | G20: 25.73896822 | H20: 50.11749134 | I20: =120/60 -> 2 | J20: 67.2627622 | K20: 25.4589039 | L20: 33.85532205 | M20: 38.5410961 | N20: =120/60 -> 2 | O20: 217.0965538 | P20: 97.60487608 | Q20: 12.47164342 | R20: 62.39512392 | T20: =120 -> 120
D21: 3 | E21: 156.2048927 | F21: 42.88914765 | G21: 21.67582487 | H21: 53.11085235 | I21: =180/60 -> 3 | J21: 91.21036649 | K21: 22.43630466 | L21: 29.75788902 | M21: 41.56369534 | N21: =180/60 -> 3 | O21: 312.9747486 | P21: 94.15151341 | Q21: 9.361158306 | R21: 65.84848659 | T21: =180 -> 180
D22: 4 | E22: 197.9991578 | F22: 40.6993827 | G22: 18.95388037 | H22: 55.3006173 | I22: =240/60 -> 4 | J22: 112.7653857 | K22: 20.67373385 | L22: 27.37114622 | M22: 43.32626615 | N22: =240/60 -> 4 | O22: 406.3800178 | P22: 92.6590251 | Q22: 7.225595503 | R22: 67.3409749 | T22: =240 -> 240
D23: 5 | E23: 237.9760001 | F23: 39.25430187 | G23: 17.04173528 | H23: 56.74569813 | I23: =300/60 -> 5 | J23: 132.8797895 | K23: 19.55507376 | L23: 25.22529152 | M23: 44.44492624 | N23: =300/60 -> 5 | O23: 498.3775613 | P23: 91.33606185 | Q23: 5.805169859 | R23: 68.66393815 | T23: =300 -> 300
D24: 6 | E24: 276.487249 | F24: 37.76819588 | G24: 15.31642023 | H24: 58.23180412 | I24: =360/60 -> 6 | J24: 151.9088525 | K24: 18.50305214 | L24: 23.70914996 | M24: 45.49694786 | N24: =360/60 -> 6 | O24: 589.4195121 | P24: 90.74783973 | Q24: 4.893459757 | R24: 69.25216027 | T24: =360 -> 360
D25: 7 | E25: 313.9265926 | F25: 37.11049136 | G25: 14.23209072 | H25: 58.88950864 | I25: =420/60 -> 7 | J25: 170.0474905 | K25: 17.77422397 | L25: 21.93672075 | M25: 46.22577603 | N25: =420/60 -> 7 | O25: 679.7934319 | P25: 90 | Q25: 4.17895524 | R25: 70 | T25: =420 -> 420
D26: 8 | E26: 350.710118 | F26: 36.45655939 | G26: 13.17071068 | H26: 59.54344061 | I26: =480/60 -> 8 | J26: 187.5232938 | K26: 17.17738245 | L26: 20.33263889 | M26: 46.82261755 | N26: =480/60 -> 8 | O26: 769.5486691 | P26: 89.51047441 | Q26: 3.39539573 | R26: 70.48952559 | T26: =480 -> 480
D27: BL-176, BL-177
D28: [SM]0 | E28: 80 mM | I28: [SM]0 | J28: 80 mM | N28: [SM]0 | O28: 80 mM
D29: [PhCO2H]0 | E29: 400 mM | F29: ← 5.0 equiv. | I29: [PhCO2H]0 | J29: 64 mM | N29: [PhCO2H]0 | O29: 160 mM
D30: [PhCONHBr]0 | E30: 96 mM | I30: [PhCONHBr]0 | J30: 96 mM | N30: [PhCONHBr]0 | O30: 96 mM
D31: [(DHQD)2PHAL]0 | E31: 8 mM | I31: [(DHQD)2PHAL]0 | J31: 8 mM | N31: [(DHQD)2PHAL]0 | O31: 8 mM
D32: [(4-Tol)2CO]0 | E32: 40 mM | F32: ← internal standard | I32: [(4-Tol)2CO]0 | J32: 40 mM | K32: ← internal standard | N32: [(4-Tol)2CO]0 | O32: 40 mM | P32: ← internal standard
D33: [P]0 (83:17 er) | E33: 0 mM | I33: [P]0 (83:17 er) | J33: 0 mM | N33: [P]0 (83:17 er) | O33: 0 mM
D34: [PhCONH2]0 | E34: 0 mM | I34: [PhCONH2]0 | J34: 0 mM | N34: [PhCONH2]0 | O34: 0 mM
D36: Experiment 26 | I36: Experiment X | N36: Experiment X
D37: t (hours) | E37: shifted t, SM | F37: [PhCO2H] (mM) | G37: [SM] (mM) | H37: [P] (mM) | I37: t (hours) | J37: shifted t, SM | K37: shifted t, P | L37: [SM] (mM) | M37: [P] (mM) | N37: t (hours) | O37: shifted t, SM | P37: shifted t, P | Q37: [SM] (mM) | R37: [P] (mM)
D38: 0 | E38: 0 | F38: =400-($B$13*(-$H$38+H38))-($B$14*8) -> 400 | G38: 80.09661094 | H38: 0 | I38: =0/60 -> 0 | J38: 0 | K38: 0 | N38: =0/60 -> 0 | O38: 0 | P38: 0
D39: =5/60 -> 0.08333333333 | E39: =E38+((F39+F38)/2)^$B$12*(D39-D38) -> 31.82201643 | F39: =400-($B$13*(-$H$38+H39))-($B$14*8) -> 363.7283942 | G39: 34.31220129 | H39: 36.27160578 | I39: =5/60 -> 0.08333333333 | J39: =J38+((L39+L38)/2)^$B$12*(I39-I38) -> 0 | K39: =K38+((M39+M38)/2)^$B$12*(I39-I38) -> 0 | N39: =5/60 -> 0.08333333333 | O39: =O38+((Q39+Q38)/2)^$B$12*(N39-N38) -> 0 | P39: =P38+((R39+R38)/2)^$B$12*(N39-N38) -> 0
D40: =10/60 -> 0.1666666667 | E40: =E39+((F40+F39)/2)^$B$12*(D40-D39) -> 61.50917967 | F40: 348.7635236 | G40: 20.7892691 | H40: 51.23647636 | I40: =10/60 -> 0.1666666667 | J40: =J39+((L40+L39)/2)^$B$12*(I40-I39) -> 0 | K40: 0 | N40: =10/60 -> 0.1666666667 | O40: =O39+((Q40+Q39)/2)^$B$12*(N40-N39) -> 0 | P40: =P39+((R40+R39)/2)^$B$12*(N40-N39) -> 0
D41: 0.25 | E41: 90.24983662 | F41: 341.0122431 | G41: 13.48472701 | H41: 58.9877569 | I41: =15/60 -> 0.25 | J41: =J40+((L41+L40)/2)^$B$12*(I41-I40) -> 0 | K41: 0 | N41: =15/60 -> 0.25 | O41: 0 | P41: 0
D42: 0.5 | E42: 174.2796066 | F42: 331.2259167 | G42: 6.118642745 | H42: 68.77408334 | I42: =30/60 -> 0.5 | J42: 0 | K42: 0 | N42: =30/60 -> 0.5 | O42: 0 | P42: 0
D43: 0.75 | E43: 256.6894379 | F43: 328.0527339 | G43: 3.488823815 | H43: 71.94726608 | I43: =45/60 -> 0.75 | J43: 0 | K43: 0 | N43: =45/60 -> 0.75 | O43: 0 | P43: 0
D44: 1 | E44: 338.4879636 | F44: 326.335472 | G44: 1.916114965 | H44: 73.66452802 | I44: =60/60 -> 1 | J44: 0 | K44: 0 | N44: =60/60 -> 1 | O44: 0 | P44: 0
D45: 1.5 | E45: 501.4189601 | F45: 325.3885139 | G45: 0.7342298167 | H45: 74.61148612 | I45: =90/60 -> 1.5 | J45: 0 | K45: 0 | N45: =90/60 -> 1.5 | O45: 0 | P45: 0
D46: 2 | E46: 663.9918757 | F46: 324.9031483 | G46: 0.291682758 | H46: 75.0968517 | I46: =120/60 -> 2 | J46: 0 | K46: 0 | N46: =120/60 -> 2 | O46: 0 | P46: 0
D47: 3 | E47: 988.4434498 | F47: 324 | G47: 0 | H47: 76 | I47: =180/60 -> 3 | J47: 0 | K47: 0 | N47: =180/60 -> 3 | O47: 0 | P47: 0
D48: 4 | E48: 1312.44345 | F48: 324 | G48: 0 | H48: 76 | I48: =240/60 -> 4 | J48: 0 | K48: 0 | N48: =240/60 -> 4 | O48: 0 | P48: 0
D49: 5 | E49: 1636.44345 | F49: 324 | G49: 0 | H49: 76 | I49: =300/60 -> 5 | J49: 0 | K49: 0 | N49: =300/60 -> 5 | O49: 0 | P49: 0
D50: 6 | E50: 1960.44345 | F50: 324 | G50: 0 | H50: 76 | I50: =360/60 -> 6 | J50: 0 | K50: 0 | N50: =360/60 -> 6 | O50: 0 | P50: 0
D51: 7 | E51: 2284.44345 | F51: 324 | G51: 0 | H51: 76 | I51: =420/60 -> 7 | J51: 0 | K51: 0 | N51: =420/60 -> 7 | O51: 0 | P51: 0
D52: 8 | E52: 2608.44345 | F52: 324 | G52: 0 | H52: 76 | I52: =480/60 -> 8 | J52: 0 | K52: 0 | N52: =480/60 -> 8 | O52: 0 | P52: 0
D78: Experiment 1 | H78: Experiment 10 | L78: Experiment 13
D79: [P]n - [P]n-1 | E79: [SM]n-1 - [SM]n | F79: subtraction | G79: [SM]0 - [P]n - [SM]n | H79: [P]n - [P]n-1 | I79: [SM]n-1 - [SM]n | J79: subtraction | K79: [SM]0 - [P]n - [SM]n | L79: [P]n - [P]n-1 | M79: [SM]n-1 - [SM]n | N79: subtraction | O79: [SM]0 - [P]n - [SM]n
D80: =H13-H12 -> 17.09311471 | E80: =G12-G13 -> 19.75091416 | F80: =E80-D80 -> 2.657799452 | G80: =$G$12-(H12-$H$12)-G12 -> 0 | H80: =M13-M12 -> 11.59010147 | I80: =L12-L13 -> 18.25372745 | J80: =I80-H80 -> 6.663625986 | K80: =$L$12-(M12-$M$12)-L12 -> 0 | L80: =R13-R12 -> 24.29926055 | M80: =Q12-Q13 -> 30.73381856 | N80: =M80-L80 -> 6.434558005 | O80: =$Q$12-(R12-$R$12)-Q12 -> 0
D81: 7.262684045 | E81: 7.159620101 | F81: -0.1030639437 | G81: 2.657799452 | H81: 5.843600354 | I81: 4.240650529 | J81: =I81-H81 -> -1.602949825 | K81: 6.663625986 | L81: 9.524124704 | M81: 11.10351665 | N81: =M81-L81 -> 1.579391948 | O81: =$Q$12-(R13-$R$12)-Q13 -> 6.434558005
D82: 4.485492719 | E82: 4.842492972 | F82: 0.3570002528 | G82: 2.554735508 | H82: 3.617115043 | I82: 4.023123992 | J82: 0.4060089489 | K82: 5.060676161 | L82: 5.606379632 | M82: 4.652552885 | N82: -0.9538267471 | O82: 8.013949954
D83: 7.518209314 | E83: 8.264608355 | F83: 0.7463990414 | G83: 2.911735761 | H83: 6.211337052 | I83: 6.690170443 | J83: 0.4788333905 | K83: 5.46668511 | L83: 9.180270844 | M83: 7.313772919 | N83: -1.866497926 | O83: 7.060123207
D84: 4.323531912 | E84: 4.559076211 | F84: 0.2355442988 | G84: 3.658134802 | H84: 3.682122554 | I84: 4.571714369 | J84: 0.8895918149 | K84: 5.9455185 | L84: 4.136080303 | M84: 4.589593838 | N84: 0.4535135348 | O84: 5.193625281
D85: 3.036824332 | E85: 3.592529502 | F85: 0.5557051695 | G85: 3.893679101 | H85: 2.313084377 | I85: 3.12945085 | J85: 0.8163664732 | K85: 6.835110315 | L85: 2.660729274 | M85: 3.178262977 | N85: 0.5175337029 | O85: 5.647138816
D86: 3.750192725 | E86: 4.520040317 | F86: 0.7698475918 | G86: 4.449384271 | H86: 3.046091371 | I86: 3.352249319 | J86: 0.306157948 | K86: 7.651476788 | L86: 4.138912645 | M86: 4.336680567 | N86: 0.1977679224 | O86: 6.164672519
D87: 2.647441581 | E87: 2.649832623 | F87: 0.002391041604 | G87: 5.219231862 | H87: 2.23764388 | I87: 2.790982758 | J87: 0.553338878 | K87: 7.957634736 | L87: 2.849365966 | M87: 2.442204602 | N87: -0.4071613638 | O87: 6.362440441
D88: 2.99336101 | E88: 4.063143352 | F88: 1.069782342 | G88: 5.221622904 | H88: 3.022599239 | I88: 4.097433027 | J88: 1.074833788 | K88: 8.510973614 | L88: 3.453362676 | M88: 3.11048511 | N88: -0.3428775657 | O88: 5.955279077
D89: 2.189764955 | E89: 2.721944493 | F89: 0.5321795384 | G89: 6.291405246 | H89: 1.762570815 | I89: 2.386742803 | J89: 0.6241719878 | K89: 9.585807403 | L89: 1.492488311 | M89: 2.135562803 | N89: 0.6430744916 | O89: 5.612401511
D90: 1.445080831 | E90: 1.912145089 | F90: 0.4670642582 | G90: 6.823584785 | H90: 1.118660088 | I90: 2.145854697 | J90: 1.027194609 | K90: 10.20997939 | L90: 1.322963246 | M90: 1.420425644 | N90: 0.09746239827 | O90: 6.255476003
D91: 1.486105983 | E91: 1.725315049 | F91: 0.2392090661 | G91: 7.290649043 | H91: 1.052021626 | I91: 1.516141559 | J91: 0.4641199329 | K91: 11.237174 | L91: 0.5882221164 | M91: 0.9117101024 | N91: 0.323487986 | O91: 6.352938401
D92: 0.657704527 | E92: 1.084329512 | F92: 0.4266249853 | G92: 7.529858109 | H92: 0.7288281676 | I92: 1.77242921 | J92: 1.043601042 | K92: 11.70129393 | L92: 0.7478397331 | M92: 0.7145045163 | N92: -0.03333521676 | O92: 6.676426387
D93: 0.6539319663 | E93: 1.061380047 | F93: 0.4074480808 | G93: 7.956483094 | H93: 0.5968415223 | I93: 1.604081863 | J93: 1.007240341 | K93: 12.74489498 | L93: 0.4895255885 | M93: 0.78355951 | N93: 0.2940339215 | O93: 6.643091171
G94: 8.363931175 | K94: 13.75213532 | O94: 6.937125092
D96: Experiment 26 | H96: Experiment X | L96: Experiment X
D97: [P]n - [P]n-1 | E97: [SM]n-1 - [SM]n | F97: subtraction | G97: [SM]0 - [P]n - [SM]n | H97: [P]n - [P]n-1 | I97: [SM]n-1 - [SM]n | J97: subtraction | K97: [SM]0 - [P]n - [SM]n | L97: [P]n - [P]n-1 | M97: [SM]n-1 - [SM]n | N97: subtraction | O97: [SM]0 - [P]n - [SM]n
D98: =H39-H38 -> 36.27160578 | E98: =G38-G39 -> 45.78440965 | F98: =E98-D98 -> 9.512803868 | G98: =$G$38-(H38-$H$38)-G38 -> 0
D99: =H40-H39 -> 14.96487058 | E99: =G39-G40 -> 13.52293218 | F99: =E99-D99 -> -1.441938393 | G99: =$G$38-(H39-$H$38)-G39 -> 9.512803868
D100: 7.751280544 | E100: 7.304542092 | F100: -0.4467384523 | G100: 8.070865475
D101: 9.786326436 | E101: 7.366084265 | F101: -2.420242171 | G101: 7.624127023
D102: 3.173182743 | E102: 2.62981893 | F102: -0.5433638131 | G102: 5.203884852
D103: 1.717261941 | E103: 1.57270885 | F103: -0.1445530909 | G103: 4.660521039
D104: 0.9469580975 | E104: 1.181885148 | F104: 0.2349270504 | G104: 4.515967948
D105: 0.4853655779 | E105: 0.4425470587 | F105: -0.04281851922 | G105: 4.750894998
D106: 0.903148301 | E106: 0.291682758 | F106: -0.6114655431 | G106: 4.708076479
D107: 0 | E107: 0 | F107: 0 | G107: 4.096610936
D108: 0 | E108: 0 | F108: 0 | G108: 4.096610936
D109: 0 | E109: 0 | F109: 0 | G109: 4.096610936
D110: 0 | E110: 0 | F110: 0 | G110: 4.096610936
D111: 0 | E111: 0 | F111: 0 | G111: 4.096610936
G112: 4.096610936

Sheet SM order
E1: BL-074, BL-076 + BL-091 + BL-103 | J1: BL-092, BL-122
E2: [SM]0 | F2: 80 mM | J2: [SM]0 | K2: 40 mM
E3: [PhCO2H]0 | F3: 96 mM | J3: [PhCO2H]0 | K3: 96 mM
E4: [PhCONHBr]0 | F4: 96 mM | J4: [PhCONHBr]0 | K4: 96 mM
E5: [(DHQD)2PHAL]0 | F5: 8 mM | J5: [(DHQD)2PHAL]0 | K5: 8 mM
E6: [(4-Tol)2CO]0 | F6: 40 mM | G6: ← internal standard | J6: [(4-Tol)2CO]0 | K6: 40 mM | L6: ← internal standard
E7: [P]0 (83:17 er) | F7: 0 mM | J7: [P]0 (83:17 er) | K7: 0 mM
E8: [PhCONH2]0 | F8: 0 mM | J8: [PhCONH2]0 | K8: 0 mM
E10: Experiment 1 | J10: Experiment 11
E11: t (hours) | F11: shifted t, SM | G11: shifted t, P | H11: [SM] (mM) | I11: [P] (mM) | J11: t (hours) | K11: shifted t, SM | L11: shifted t, P | M11: [SM] (mM) | N11: [SM] shifted (mM) | O11: [P] (mM)
A12: order in SM | B12: 0.8 | E12: 0 | F12: 0 | G12: 0 | H12: 81.07808246 | I12: 0 | J12: =0/60 -> 0 | K12: 0 | L12: 0 | M12: 40.26078795 | N12: =M12+$B$13 -> 81.26078795 | O12: 0
A13: shifted [SM] (mM) | B13: 41 | E13: =5/60 -> 0.08333333333 | F13: =F12+((H13+H12)/2)^$B$12*(E13-E12) -> 2.528224058 | G13: =G12+((I13+I12)/2)^$B$12*(E13-E12) -> 0.4637156179 | H13: 61.3271683 | I13: 17.09311471 | J13: =5/60 -> 0.08333333333 | K13: =K12+((M13+M12)/2)^$B$12*(J13-J12) -> 1.371241053 | L13: =L12+((O13+O12)/2)^$B$12*(J13-J12) -> 0.3620951105 | M13: 26.02170156 | N13: =M13+$B$13 -> 67.02170156 | O13: 12.54685499
E14: =10/60 -> 0.1666666667 | F14: 4.666404985 | G14: 1.405616661 | H14: 54.1675482 | I14: 24.35579875 | J14: =10/60 -> 0.1666666667 | K14: =K13+((M14+M13)/2)^$B$12*(J14-J13) -> 2.4047217 | L14: =L13+((O14+O13)/2)^$B$12*(J14-J13) -> 1.095066977 | M14: 20.52452604 | N14: 61.52452604 | O14: 17.74777729
E15: 0.25 | F15: 6.624898812 | G15: 2.555635778 | H15: 49.32505523 | I15: 28.84129147 | J15: =15/60 -> 0.25 | K15: 3.256166769 | L15: 1.989126003 | M15: 16.00990488 | N15: 57.00990488 | O15: 21.08641647
E16: 0.5 | F16: 11.89713712 | G16: 6.615563579 | H16: 41.06044687 | I16: 36.35950079 | J16: =30/60 -> 0.5 | K16: 5.211671668 | L16: 5.1286968 | M16: 10.15255769 | N16: 51.15255769 | O16: 26.1952566
E17: 0.75 | F17: 16.56195179 | G17: 11.25537636 | H17: 36.50137066 | I17: 40.6830327 | J17: =45/60 -> 0.75 | K17: 6.572473906 | L17: 8.676536048 | M17: 6.475776849 | N17: 47.47577685 | O17: 28.89311084
E18: 1 | F18: 20.83024954 | G18: 16.24654064 | H18: 32.90884116 | I18: 43.71985703 | J18: =60/60 -> 1 | K18: 7.563220379 | L18: 12.48499685 | M18: 4.707218746 | N18: 45.70721875 | O18: 31.29931524
E19: 1.5 | F19: 28.55885295 | G19: 26.8660249 | H19: 28.38880084 | I19: 47.47004976 | J19: =90/60 -> 1.5 | K19: 8.998172715 | L19: 20.46295189 | M19: 2.763533507 | N19: 43.76353351 | O19: 32.48031109
E20: 2 | F20: 35.55537344 | G20: 38.07746776 | H20: 25.73896822 | I20: 50.11749134 | J20: =120/60 -> 2 | K20: 9.918993909 | L20: 28.62568974 | M20: 1.527250212 | N20: 42.52725021 | O20: 33.15118459
E21: 3 | F21: 48.14193462 | G21: 61.53137325 | H21: 21.67582487 | I21: 53.11085235 | J21: =180/60 -> 3 | K21: 10.9352333 | L21: 45.33170273 | M21: 0.5134303343 | N21: 41.51343033 | O21: 34.39814053
E22: 4 | F22: 59.26567747 | G22: 85.92274295 | H22: 18.95388037 | I22: 55.3006173 | J22: =240/60 -> 4 | K22: 11.39147408 | L22: 62.35827053 | M22: 0.2365029424 | N22: 41.23650294 | O22: 34.77522174
E23: 5 | F23: 69.36228996 | G23: 110.9661878 | H23: 17.04173528 | I23: 56.74569813 | J23: =300/60 -> 5 | K23: 11.60072313 | L23: 79.4890478 | M23: 0.04654459216 | N23: 41.04654459 | O23: 34.92775596
E24: 6 | F24: 78.63406765 | G24: 136.5323947 | H24: 15.31642023 | I24: 58.23180412 | J24: =360/60 -> 6 | K24: 11.65009407 | L24: 96.63812997 | M24: 0 | N24: 41 | O24: 34.86833457
E25: 7 | F25: 87.25599747 | G25: 162.4792511 | H25: 14.23209072 | I25: 58.88950864 | J25: =420/60 -> 7 | K25: 11.65009407 | L25: 113.8117247 | M25: 0 | N25: 0 | O25: 35.05248467
E26: 8 | F26: 95.37330452 | G26: 188.6583105 | H26: 13.17071068 | I26: 59.54344061 | J26: =480/60 -> 8 | K26: 11.65009407 | L26: 131.0110974 | M26: 0 | N26: 0 | O26: 34.99955035
E52: Experiment 1 | I52: Experiment 11
E53: [P]n - [P]n-1 | F53: [SM]n-1 - [SM]n | G53: subtraction | H53: [SM]0 - [P]n - [SM]n | I53: [P]n - [P]n-1 | J53: [SM]n-1 - [SM]n | K53: subtraction | L53: [SM]0 - [P]n - [SM]n
E54: =I13-I12 -> 17.09311471 | F54: =H12-H13 -> 19.75091416 | G54: =F54-E54 -> 2.657799452 | H54: =$H$12-(I12-$I$12)-H12 -> 0 | I54: =O13-O12 -> 12.54685499 | J54: =N12-N13 -> 14.23908638 | K54: =J54-I54 -> 1.692231389 | L54: =$N$12-(O12-$O$12)-N12 -> 0
E55: 7.262684045 | F55: 7.159620101 | G55: -0.1030639437 | H55: 2.657799452 | I55: 5.200922298 | J55: 5.497175523 | K55: 0.296253225 | L55: =$N$12-(O13-$O$12)-N13 -> 1.692231389
E56: 4.485492719 | F56: 4.842492972 | G56: 0.3570002528 | H56: 2.554735508 | I56: 3.338639181 | J56: 4.514621164 | K56: 1.175981982 | L56: 1.988484614
E57: 7.518209314 | F57: 8.264608355 | G57: 0.7463990414 | H57: 2.911735761 | I57: 5.108840123 | J57: 5.857347183 | K57: 0.7485070603 | L57: 3.164466597
E58: 4.323531912 | F58: 4.559076211 | G58: 0.2355442988 | H58: 3.658134802 | I58: 2.69785424 | J58: 3.676780845 | K58: 0.9789266047 | L58: 3.912973657
E59: 3.036824332 | F59: 3.592529502 | G59: 0.5557051695 | H59: 3.893679101 | I59: 2.4062044 | J59: 1.768558103 | K59: -0.6376462972 | L59: 4.891900261
E60: 3.750192725 | F60: 4.520040317 | G60: 0.7698475918 | H60: 4.449384271 | I60: 1.180995855 | J60: 1.943685238 | K60: 0.762689383 | L60: 4.254253964
E61: 2.647441581 | F61: 2.649832623 | G61: 0.002391041604 | H61: 5.219231862 | I61: 0.6708734943 | J61: 1.236283296 | K61: 0.5654098013 | L61: 5.016943347
E62: 2.99336101 | F62: 4.063143352 | G62: 1.069782342 | H62: 5.221622904 | I62: 1.246955943 | J62: 1.013819878 | K62: -0.2331360659 | L62: 5.582353149
E63: 2.189764955 | F63: 2.721944493 | G63: 0.5321795384 | H63: 6.291405246 | I63: 0.3770812135 | J63: 0.2769273919 | K63: -0.1001538216 | L63: 5.349217083
E64: 1.445080831 | F64: 1.912145089 | G64: 0.4670642582 | H64: 6.823584785 | I64: 0.152534218 | J64: 0.1899583503 | K64: 0.03742413223 | L64: 5.249063261
E65: 1.486105983 | F65: 1.725315049 | G65: 0.2392090661 | H65: 7.290649043 | I65: -0.0594213946 | J65: 0.04654459216 | K65: 0.1059659868 | L65: 5.286487393
E66: 0.657704527 | F66: 1.084329512 | G66: 0.4266249853 | H66: 7.529858109 | I66: 0.1841501074 | J66: 41 | K66: 40.81584989 | L66: 5.39245338
E67: 0.6539319663 | F67: 1.061380047 | G67: 0.4074480808 | H67: 7.956483094 | I67: -0.05293432257 | J67: 0 | K67: 0.05293432257 | L67: 46.20830327
H68: 8.363931175 | L68: 46.2612376

Sheet SM order (fake SM)
E1: BL-074, BL-076 + BL-091 + BL-103 | J1: BL-092, BL-122
E2: [SM]0 | F2: 80 mM | J2: [SM]0 | K2: 40 mM
E3: [PhCO2H]0 | F3: 96 mM | J3: [PhCO2H]0 | K3: 96 mM
E4: [PhCONHBr]0 | F4: 96 mM | J4: [PhCONHBr]0 | K4: 96 mM
E5: [(DHQD)2PHAL]0 | F5: 8 mM | J5: [(DHQD)2PHAL]0 | K5: 8 mM
E6: [(4-Tol)2CO]0 | F6: 40 mM | G6: ← internal standard | J6: [(4-Tol)2CO]0 | K6: 40 mM | L6: ← internal standard
E7: [P]0 (83:17 er) | F7: 0 mM | J7: [P]0 (83:17 er) | K7: 0 mM
E8: [PhCONH2]0 | F8: 0 mM | J8: [PhCONH2]0 | K8: 0 mM
E10: Experiment 1 | J10: Experiment 11
E11: t (hours) | F11: shifted t, SM | G11: shifted t, P | H11: [SM] (mM) | I11: [P] (mM) | J11: t (hours) | K11: shifted t, SM | L11: shifted t, P | M11: [SM] (mM) | N11: [SM] shifted (mM) | O11: [P] (mM)
A12: order in SM | B12: 1 | E12: 0 | F12: 0 | G12: 0 | H12: 81.07808246 | I12: 0 | J12: =0/60 -> 0 | K12: 0 | L12: 0 | M12: 40.26078795 | N12: =M12+$B$13 -> 81.26078795 | O12: 0
A13: shifted [SM] (mM) | B13: 41 | E13: =5/60 -> 0.08333333333 | F13: =F12+((H13+H12)/2)^$B$12*(E13-E12) -> 6.044293759 | G13: =G12+((I13+I12)/2)^$B$12*(E13-E12) -> 0.7122131129 | H13: =$H$12-I13 -> 63.98496775 | I13: 17.09311471 | J13: =5/60 -> 0.08333333333 | K13: =K12+((M13+M12)/2)^$B$12*(J13-J12) -> 2.832280037 | L13: =L12+((O13+O12)/2)^$B$12*(J13-J12) -> 0.5227856247 | M13: =$M$12-O13 -> 27.71393295 | N13: =M13+$B$13 -> 68.71393295 | O13: 12.54685499
E14: =10/60 -> 0.1666666667 | F14: 11.07376257 | G14: 2.439251174 | H14: =$H$12-I14 -> 56.72228371 | I14: 24.35579875 | J14: =10/60 -> 0.1666666667 | K14: =K13+((M14+M13)/2)^$B$12*(J14-J13) -> 4.925069354 | L14: =L13+((O14+O13)/2)^$B$12*(J14-J13) -> 1.78506197 | M14: =$M$12-O14 -> 22.51301065 | N14: 63.51301065 | O14: 17.74777729
E15: 0.25 | F15: 15.61372402 | G15: 4.6557966 | H15: 52.23679099 | I15: 28.84129147 | J15: =15/60 -> 0.25 | K15: 6.66204361 | L15: 3.403153377 | M15: 19.17437147 | N15: 60.17437147 | O15: 21.08641647
E16: 0.5 | F16: 27.7331456 | G16: 12.80589563 | H16: 44.71858167 | I16: 36.35950079 | J16: =30/60 -> 0.5 | K16: 10.81703146 | L16: 9.31336251 | M16: 14.06553135 | N16: 55.06553135 | O16: 26.1952566
E17: 0.75 | F17: 38.37234953 | G17: 22.43621232 | H17: 40.39504976 | I17: 40.6830327 | J17: =45/60 -> 0.75 | K17: 13.99618252 | L17: 16.19940844 | M17: 11.36767711 | N17: 52.36767711 | O17: 28.89311084
E18: 1 | F18: 48.09150893 | G18: 32.98657354 | H18: 37.35822543 | I18: 43.71985703 | J18: =60/60 -> 1 | K18: 16.53732625 | L18: 23.7234617 | M18: 8.96147271 | N18: 49.96147271 | O18: 31.29931524
E19: 1.5 | F19: 65.83307346 | G19: 55.78405023 | H19: 33.6080327 | I19: 47.47004976 | J19: =90/60 -> 1.5 | K19: 20.72281364 | L19: 39.66836828 | M19: 7.780476855 | N19: 48.78047685 | O19: 32.48031109
E20: 2 | F20: 81.97522941 | G20: 80.18093551 | H20: 30.96059112 | I20: 50.11749134 | J20: =120/60 -> 2 | K20: 24.44533369 | L20: 56.0762422 | M20: 7.10960336 | N20: 48.10960336 | O20: 33.15118459
E21: 3 | F21: 111.43914 | G21: 131.7951073 | H21: 27.96723011 | I21: 53.11085235 | J21: =180/60 -> 3 | K21: 30.93145908 | L21: 89.85090476 | M21: 5.862647417 | N21: 46.86264742 | O21: 34.39814053
E22: 4 | F22: 138.3114877 | G22: 186.0008422 | H22: 25.77746516 | I22: 55.3006173 | J22: =240/60 -> 4 | K22: 36.60556589 | L22: 124.4375859 | M22: 5.485566203 | N22: 46.4855662 | O22: 34.77522174
E23: 5 | F23: 163.3664124 | G23: 242.0239999 | H23: 24.33238433 | I23: 56.74569813 | J23: =300/60 -> 5 | K23: 42.01486499 | L23: 159.2890747 | M23: 5.333031985 | N23: 46.33303199 | O23: 34.92775596
E24: 6 | F24: 186.9557437 | G24: 299.512751 | H24: 22.84627834 | I24: 58.23180412 | J24: =360/60 -> 6 | K24: 47.37760767 | L24: 194.18712 | M24: 5.39245338 | N24: 46.39245338 | O24: 34.86833457
E25: 7 | F25: 209.4731698 | G25: 358.0734074 | H25: 22.18857382 | I25: 58.88950864 | J25: =420/60 -> 7 | K25: 52.677986 | L25: 229.1475296 | M25: 5.208303273 | N25: 0 | O25: 35.05248467
E26: 8 | F26: 231.3347777 | G26: 417.289882 | H26: 21.53464185 | I26: 59.54344061 | J26: =480/60 -> 8 | K26: 57.91275643 | L26: 264.1735471 | M26: 5.261237595 | N26: 0 | O26: 34.99955035
E52: Experiment 1 | I52: Experiment 11
E53: [P]n - [P]n-1 | F53: [SM]n-1 - [SM]n | G53: subtraction | H53: [SM]0 - [P]n - [SM]n | I53: [P]n - [P]n-1 | J53: [SM]n-1 - [SM]n | K53: subtraction | L53: [SM]0 - [P]n - [SM]n
E54: =I13-I12 -> 17.09311471 | F54: =H12-H13 -> 17.09311471 | G54: =F54-E54 -> 0 | H54: =$H$12-(I12-$I$12)-H12 -> 0 | I54: =O13-O12 -> 12.54685499 | J54: =N12-N13 -> 12.54685499 | K54: =J54-I54 -> 0 | L54: =$N$12-(O12-$O$12)-N12 -> 0
E55: 7.262684045 | F55: 7.262684045 | G55: 0 | H55: 0 | I55: 5.200922298 | J55: 5.200922298 | K55: 8.881784197e-15 | L55: =$N$12-(O13-$O$12)-N13 -> 0
E56: 4.485492719 | F56: 4.485492719 | G56: 0 | H56: 0 | I56: 3.338639181 | J56: 3.338639181 | K56: 3.552713679e-15 | L56: 0
E57: 7.518209314 | F57: 7.518209314 | G57: 0 | H57: 0 | I57: 5.108840123 | J57: 5.108840123 | K57: 0 | L57: 0
E58: 4.323531912 | F58: 4.323531912 | G58: 0 | H58: 0 | I58: 2.69785424 | J58: 2.69785424 | K58: 3.552713679e-15 | L58: 0
E59: 3.036824332 | F59: 3.036824332 | G59: 0 | H59: 0 | I59: 2.4062044 | J59: 2.4062044 | K59: -3.552713679e-15 | L59: 0
E60: 3.750192725 | F60: 3.750192725 | G60: 0 | H60: 0 | I60: 1.180995855 | J60: 1.180995855 | K60: 0 | L60: 0
E61: 2.647441581 | F61: 2.647441581 | G61: 0 | H61: 0 | I61: 0.6708734943 | J61: 0.6708734943 | K61: 0 | L61: 0
E62: 2.99336101 | F62: 2.99336101 | G62: 0 | H62: 0 | I62: 1.246955943 | J62: 1.246955943 | K62: 0 | L62: 0
E63: 2.189764955 | F63: 2.189764955 | G63: 0 | H63: 0 | I63: 0.3770812135 | J63: 0.3770812135 | K63: 0 | L63: 0
E64: 1.445080831 | F64: 1.445080831 | G64: 0 | H64: 0 | I64: 0.152534218 | J64: 0.152534218 | K64: 0 | L64: 0
E65: 1.486105983 | F65: 1.486105983 | G65: 0 | H65: 0 | I65: -0.0594213946 | J65: -0.0594213946 | K65: 0 | L65: 0
E66: 0.657704527 | F66: 0.657704527 | G66: 0 | H66: 0 | I66: 0.1841501074 | J66: 46.39245338 | K66: 46.20830327 | L66: 0
E67: 0.6539319663 | F67: 0.6539319663 | G67: 0 | H67: 0 | I67: -0.05293432257 | J67: 0 | K67: 0.05293432257 | L67: 46.20830327
H68: 0 | L68: 46.2612376

Sheet 5 equiv. BzOH same excess
D1: BL-176, BL-177 | I1: BL-183, BL-185 | N1: BL-182, BL-186
D2: [SM]0 | E2: 80 mM | I2: [SM]0 | J2: 40 mM | N2: [SM]0 | O2: 40 mM
D3: [PhCO2H]0 | E3: 400 mM | F3: ← 5.0 equiv. | G3: initial rate (mM hour-1) | I3: [PhCO2H]0 | J3: 360 mM | L3: initial rate (mM hour-1) | N3: [PhCO2H]0 | O3: 360 mM | Q3: initial rate (mM hour-1)
D4: [PhCONHBr]0 | E4: 96 mM | G4: =SLOPE(H12:H14,D12:D14) -> 309.5638096 | I4: [PhCONHBr]0 | J4: 56 mM | L4: =SLOPE(M12:M14,I12:I14) -> 129.2604124 | N4: [PhCONHBr]0 | O4: 56 mM | Q4: =SLOPE(R12:R14,N12:N14) -> 193.8558649
D5: [(DHQD)2PHAL]0 | E5: 8 mM | I5: [(DHQD)2PHAL]0 | J5: 8 mM | N5: [(DHQD)2PHAL]0 | O5: 8 mM
D6: [(4-Tol)2CO]0 | E6: 40 mM | F6: ← internal standard | I6: [(4-Tol)2CO]0 | J6: 40 mM | K6: ← internal standard | N6: [(4-Tol)2CO]0 | O6: 40 mM | P6: ← internal standard
D7: [P]0 (83:17 er) | E7: 0 mM | I7: [P]0 (83:17 er) | J7: 0 mM | N7: [P]0 (83:17 er) | O7: 0 mM
D8: [PhCONH2]0 | E8: 0 mM | I8: [PhCONH2]0 | J8: 40 mM | N8: [PhCONH2]0 | O8: 0 mM
D10: Experiment 26 | I10: Experiment 28 | N10: Experiment 29
D11: t (hours) | E11: shifted t, SM | F11: shifted t, P | G11: [SM] (mM) | H11: [P] (mM) | I11: t (hours) | J11: shifted t, SM | K11: shifted t, P | L11: [SM] (mM) | M11: [P] (mM) | N11: t (hours) | O11: shifted t, SM | P11: shifted t, P | Q11: [SM] (mM) | R11: [P] (mM)
A12: shifted t, SM | B12: =6/60 -> 0.1 | D12: =0/60 -> 0 | E12: − | F12: − | G12: 80.09661094 | H12: 0 | I12: =0/60 -> 0 | J12: =I12+$B$12 -> 0.1 | K12: =I12+$B$13 -> 0.1 | L12: 40.41481895 | M12: =0+$B$14 -> 40 | N12: =0/60 -> 0 | O12: =N12+$B$12 -> 0.1 | P12: =N12+$B$13 -> 0.1 | Q12: 39.89119524 | R12: =0+$B$14 -> 40
A13: shifted t, P | B13: =6/60 -> 0.1 | D13: =5/60 -> 0.08333333333 | E13: − | F13: − | G13: 34.31220129 | H13: 36.84417489 | I13: =5/60 -> 0.08333333333 | J13: =I13+$B$12 -> 0.1833333333 | K13: =I13+$B$13 -> 0.1833333333 | L13: 17.09105851 | M13: =14.5872955292582+$B$14 -> 54.58729553 | N13: =2.5/60 -> 0.04166666667 | O13: =N13+$B$12 -> 0.1416666667 | P13: =N13+$B$13 -> 0.1416666667 | Q13: 15.89368777 | R13: =13.5343355195556+$B$14 -> 53.53433552
A14: shifted [P] (mM) | B14: 40 | D14: =10/60 -> 0.1666666667 | E14: − | F14: − | G14: 20.7892691 | H14: 51.59396826 | I14: =10/60 -> 0.1666666667 | J14: 0.2666666667 | K14: 0.2666666667 | L14: 12.79026869 | M14: =21.5434020708922+$B$14 -> 61.54340207 | N14: =7.5/60 -> 0.125 | O14: 0.225 | P14: 0.225 | Q14: 11.1742215 | R14: =25.3233846752224+$B$14 -> 65.32338468
D15: =15/60 -> 0.25 | E15: − | F15: − | G15: 13.48472701 | H15: 59.10169421 | I15: =15/60 -> 0.25 | J15: 0.35 | K15: 0.35 | L15: 9.10545632 | M15: =25.7651858378447+$B$14 -> 65.76518584 | N15: =12.5/60 -> 0.2083333333 | O15: 0.3083333333 | P15: 0.3083333333 | Q15: 7.15278056 | R15: =30.62801091352+$B$14 -> 70.62801091
D16: =30/60 -> 0.5 | E16: − | F16: − | G16: 6.118642745 | H16: 69.7518322 | I16: =30/60 -> 0.5 | J16: 0.6 | K16: 0.6 | L16: 4.725022275 | M16: =31.9491026894875+$B$14 -> 71.94910269 | N16: =22.5/60 -> 0.375 | O16: 0.475 | P16: 0.475 | Q16: 2.097949069 | R16: =34.594249208177+$B$14 -> 74.59424921
D17: =45/60 -> 0.75 | E17: − | F17: − | G17: 3.488823815 | H17: 72.92875055 | I17: =45/60 -> 0.75 | J17: 0.85 | K17: 0.85 | L17: 2.787343689 | M17: =34.596866636518+$B$14 -> 74.59686664 | N17: =37.5/60 -> 0.625 | O17: 0.725 | P17: 0.725 | Q17: 0.8216557929 | R17: =36.9662463601285+$B$14 -> 76.96624636
D18: =60/60 -> 1 | E18: − | F18: − | G18: 1.916114965 | H18: 74.5982002 | I18: =60/60 -> 1 | J18: 1.1 | K18: 1.1 | L18: 1.71722544 | M18: =35.8249752593411+$B$14 -> 75.82497526 | N18: =52.5/60 -> 0.875 | O18: 0.975 | P18: 0.975 | Q18: 0.2742870385 | R18: =37.6063987097133+$B$14 -> 77.60639871
D19: =90/60 -> 1.5 | E19: − | F19: − | G19: 0.7342298167 | H19: 75.80078842 | I19: =90/60 -> 1.5 | J19: 1.6 | K19: 1.6 | L19: 0.6627362815 | M19: =36.0814783711295+$B$14 -> 76.08147837 | N19: =75/60 -> 1.25 | O19: 1.35 | P19: 1.35 | Q19: 0 | R19: =38+$B$14 -> 78
D20: =120/60 -> 2 | E20: − | F20: − | G20: 0.291682758 | H20: 76.08840489 | I20: =120/60 -> 2 | J20: 2.1 | K20: 2.1 | L20: 0.3373028615 | M20: =36.5215386061787+$B$14 -> 76.52153861 | N20: =105/60 -> 1.75 | O20: 1.85 | P20: 1.85 | Q20: 0 | R20: 78
D21: =180/60 -> 3 | E21: − | F21: − | G21: 0 | H21: 76.12452282 | I21: =180/60 -> 3 | J21: 3.1 | K21: 3.1 | L21: 0 | M21: =36.6302267828237+$B$14 -> 76.63022678 | N21: =150/60 -> 2.5 | O21: 2.6 | P21: 2.6 | Q21: 0 | R21: 78
D22: =240/60 -> 4 | E22: − | F22: − | G22: 0 | H22: 76.68355524 | I22: =240/60 -> 4 | J22: 4.1 | K22: 4.1 | L22: 0 | M22: =37+$B$14 -> 77 | N22: =210/60 -> 3.5 | O22: 3.6 | P22: 3.6 | Q22: 0 | R22: 78
D23: =300/60 -> 5 | E23: − | F23: − | G23: 0 | H23: 77 | I23: =300/60 -> 5 | J23: 5.1 | K23: 5.1 | L23: 0 | M23: =37+$B$14 -> 77 | N23: =270/60 -> 4.5 | O23: 4.6 | P23: 4.6 | Q23: 0 | R23: 78
D24: =360/60 -> 6 | E24: − | F24: − | G24: 0 | H24: 77 | I24: =360/60 -> 6 | J24: 6.1 | K24: 6.1 | L24: 0 | M24: =37+$B$14 -> 77 | N24: =330/60 -> 5.5 | O24: 5.6 | P24: 5.6 | Q24: 0 | R24: 78
D25: =420/60 -> 7 | E25: − | F25: − | G25: 0 | H25: 77 | I25: =420/60 -> 7 | J25: 7.1 | K25: 7.1 | L25: 0 | M25: =37+$B$14 -> 77 | N25: =390/60 -> 6.5 | O25: 6.6 | P25: 6.6 | Q25: 0 | R25: 78
D26: =480/60 -> 8 | E26: − | F26: − | G26: 0 | H26: 77 | I26: =480/60 -> 8 | J26: 8.1 | K26: 8.1 | L26: 0 | M26: =37+$B$14 -> 77 | N26: =450/60 -> 7.5 | O26: 7.6 | P26: 7.6 | Q26: 0 | R26: 78
N27: =510/60 -> 8.5 | O27: 8.6 | P27: 8.6 | Q27: 0 | R27: 78
D53: Experiment 26 | H53: Experiment 28 | L53: Experiment 29
D54: [P]n - [P]n-1 | E54: [SM]n-1 - [SM]n | F54: subtraction | G54: [SM]0 - [P]n - [SM]n | H54: [P]n - [P]n-1 | I54: [SM]n-1 - [SM]n | J54: subtraction | K54: [SM]0 - [P]n - [SM]n | L54: [P]n - [P]n-1 | M54: [SM]n-1 - [SM]n | N54: subtraction | O54: [SM]0 - [P]n - [SM]n
D55: =H13-H12 -> 36.84417489 | E55: =G12-G13 -> 45.78440965 | F55: =E55-D55 -> 8.940234765 | G55: =$G$12-(H12-$H$12)-G12 -> 0 | H55: =M13-M12 -> 14.58729553 | I55: =L12-L13 -> 23.32376045 | J55: =I55-H55 -> 8.736464916 | K55: =$L$12-M12-L12+$M$12 -> 0 | L55: =R13-R12 -> 13.53433552 | M55: =Q12-Q13 -> 23.99750747 | N55: =M55-L55 -> 10.46317196 | O55: =$Q$12-R12-Q12+$R$12 -> 0
D56: 14.74979338 | E56: 13.52293218 | F56: -1.226861193 | G56: 8.940234765 | H56: 6.956106542 | I56: 4.300789815 | J56: =I56-H56 -> -2.655316727 | K56: 8.736464916 | L56: 11.78904916 | M56: 4.719466263 | N56: =M56-L56 -> -7.069582892 | O56: =$Q$12-R13-Q13+$R$12 -> 10.46317196
D57: 7.507725951 | E57: 7.304542092 | F57: -0.2031838589 | G57: 7.713373572 | H57: 4.221783767 | I57: 3.684812373 | J57: -0.5369713942 | K57: 6.081148189 | L57: 5.304626238 | M57: 4.021440942 | N57: -1.283185296 | O57: 3.393589063
D58: 10.65013798 | E58: 7.366084265 | F58: -3.284053719 | G58: 7.510189713 | H58: 6.183916852 | I58: 4.380434045 | J58: -1.803482806 | K58: 5.544176795 | L58: 3.966238295 | M58: 5.054831491 | N58: 1.088593196 | O58: 2.110403767
D59: 3.176918349 | E59: 2.62981893 | F59: -0.5470994182 | G59: 4.226135994 | H59: 2.647763947 | I59: 1.937678586 | J59: -0.7100853615 | K59: 3.740693988 | L59: 2.371997152 | M59: 1.276293276 | N59: -1.095703876 | O59: 3.198996963
D60: 1.66944965 | E60: 1.57270885 | F60: -0.09674080007 | G60: 3.679036576 | H60: 1.228108623 | I60: 1.070118249 | J60: -0.1579903737 | K60: 3.030608627 | L60: 0.6401523496 | M60: 0.5473687543 | N60: -0.09278359526 | O60: 2.103293088
D61: 1.202588223 | E61: 1.181885148 | F61: -0.02070307465 | G61: 3.582295776 | H61: 0.2565031118 | I61: 1.054489158 | J61: 0.7979860467 | K61: 2.872618253 | L61: 0.3936012903 | M61: 0.2742870385 | N61: -0.1193142518 | O61: 2.010509492
D62: 0.2876164693 | E62: 0.4425470587 | F62: 0.1549305894 | G62: 3.561592701 | H62: 0.440060235 | I62: 0.32543342 | J62: -0.114626815 | K62: 3.6706043 | L62: 0 | M62: 0 | N62: 0 | O62: 1.891195241
D63: 0.03611792834 | E63: 0.291682758 | F63: 0.2555648296 | G63: 3.71652329 | H63: 0.1086881766 | I63: 0.3373028615 | J63: 0.2286146849 | K63: 3.555977485 | L63: 0 | M63: 0 | N63: 0 | O63: 1.891195241
G64: 3.97208812 | H64: 0.3697732172 | I64: 0 | J64: -0.3697732172 | K64: 3.78459217 | L64: 0 | M64: 0 | N64: 0 | O64: 1.891195241
H65: 0 | I65: 0 | J65: 0 | K65: 3.414818953 | L65: 0 | M65: 0 | N65: 0 | O65: 1.891195241
H66: 0 | I66: 0 | J66: 0 | K66: 3.414818953 | L66: 0 | M66: 0 | N66: 0 | O66: 1.891195241
H67: 0 | I67: 0 | J67: 0 | K67: 3.414818953 | L67: 0 | M67: 0 | N67: 0 | O67: 1.891195241
H68: 0 | I68: 0 | J68: 0 | K68: 3.414818953 | L68: 0 | M68: 0 | N68: 0 | O68: 1.891195241
K69: 3.414818953 | L69: 0 | M69: 0 | N69: 0 | O69: 1.891195241
O70: 1.891195241

Sheet 5 equiv. BzOH cat order
D1: BL-176, BL-177 | J1: BL-178, BL-179 | P1: BL-188, BL-189, BL-190
D2: [SM]0 | E2: 80 mM | J2: [SM]0 | K2: 80 mM | P2: [SM]0 | Q2: 80 mM
D3: [PhCO2H]0 | E3: 400 mM | J3: [PhCO2H]0 | K3: 400 mM | P3: [PhCO2H]0 | Q3: 400 mM
D4: [PhCONHBr]0 | E4: 96 mM | J4: [PhCONHBr]0 | K4: 96 mM | P4: [PhCONHBr]0 | Q4: 96 mM
D5: [(DHQD)2PHAL]0 | E5: 8 mM | J5: [(DHQD)2PHAL]0 | K5: 2 mM | P5: [(DHQD)2PHAL]0 | Q5: 0.8 mM
D6: [(4-Tol)2CO]0 | E6: 40 mM | F6: ← internal standard | J6: [(4-Tol)2CO]0 | K6: 40 mM | L6: ← internal standard | P6: [(4-Tol)2CO]0 | Q6: 40 mM | R6: ← internal standard
D7: [P]0 (83:17 er) | E7: 0 mM | J7: [P]0 (83:17 er) | K7: 0 mM | P7: [P]0 (83:17 er) | Q7: 0 mM
D8: [PhCONH2]0 | E8: 0 mM | J8: [PhCONH2]0 | K8: 0 mM | P8: [PhCONH2]0 | Q8: 0 mM
D10: Experiment 26 | J10: Experiment 27 | P10: Experiment 30
D11: t (hours) | E11: tcat (SM) | F11: tcat (P) | G11: [SM] (mM) | H11: [P] (mM) | I11: [cat] (mM) | J11: t (hours) | K11: tcat (SM) | L11: tcat (P) | M11: [SM] (mM) | N11: [P] (mM) | O11: [cat] (mM) | P11: t (hours) | Q11: tcat (SM) | R11: tcat (P) | S11: [SM] (mM) | T11: [P] (mM) | U11: [cat] (mM) | W11: t (minutes)
A12: order in cat (SM) | B12: 0 | D12: 0 | E12: 0 | F12: 0 | G12: 80.09661094 | H12: 0 | I12: 8 | J12: =0/60 -> 0 | K12: 0 | L12: 0 | M12: 80.26730164 | N12: 0 | O12: 2 | P12: =0/60 -> 0 | Q12: 0 | R12: 0 | T12: 0 | U12: 0.8 | W12: =0 -> 0
A13: order in cat (P) | B13: 0 | D13: =5/60 -> 0.08333333333 | E13: =E12+(($I12+$I13)/2)^$B$12*($D13-$D12) -> 0.08333333333 | F13: =F12+(($I12+$I13)/2)^$B$13*($D13-$D12) -> 0.08333333333 | G13: 34.31220129 | H13: 36.27160578 | I13: 8 | J13: =5/60 -> 0.08333333333 | K13: =K12+(($O12+$O13)/2)^$B$12*($J13-$J12) -> 0.08333333333 | L13: =L12+(($O12+$O13)/2)^$B$13*($J13-$J12) -> 0.08333333333 | M13: 43.18982869 | N13: 13.36261679 | O13: 2 | P13: =5/60 -> 0.08333333333 | Q13: =Q12+(($U12+$U13)/2)^$B$12*($P13-$P12) -> 0.08333333333 | R13: =R12+(($U12+$U13)/2)^$B$13*($P13-$P12) -> 0.08333333333 | T13: 5.116722364 | U13: 0.8 | W13: =5 -> 5
D14: =10/60 -> 0.1666666667 | E14: =E13+(($I13+$I14)/2)^$B$12*($D14-$D13) -> 0.1666666667 | F14: =F13+(($I13+$I14)/2)^$B$13*($D14-$D13) -> 0.1666666667 | G14: 20.7892691 | H14: 51.23647636 | I14: 8 | J14: =10/60 -> 0.1666666667 | K14: =K13+(($O13+$O14)/2)^$B$12*($J14-$J13) -> 0.1666666667 | L14: =L13+(($O13+$O14)/2)^$B$13*($J14-$J13) -> 0.1666666667 | M14: 26.73448506 | N14: 22.36430205 | O14: 2 | P14: =10/60 -> 0.1666666667 | Q14: =Q13+(($U13+$U14)/2)^$B$12*($P14-$P13) -> 0.1666666667 | R14: =R13+(($U13+$U14)/2)^$B$13*($P14-$P13) -> 0.1666666667 | T14: 9.417508725 | U14: 0.8 | W14: =10 -> 10
D15: 0.25 | E15: =E14+(($I14+$I15)/2)^$B$12*($D15-$D14) -> 0.25 | F15: =F14+(($I14+$I15)/2)^$B$13*($D15-$D14) -> 0.25 | G15: 13.48472701 | H15: 58.9877569 | I15: 8 | J15: =15/60 -> 0.25 | K15: =K14+(($O14+$O15)/2)^$B$12*($J15-$J14) -> 0.25 | L15: =L14+(($O14+$O15)/2)^$B$13*($J15-$J14) -> 0.25 | M15: 21.59884345 | N15: 29.95550788 | O15: 2 | P15: =15/60 -> 0.25 | Q15: =Q14+(($U14+$U15)/2)^$B$12*($P15-$P14) -> 0.25 | R15: =R14+(($U14+$U15)/2)^$B$13*($P15-$P14) -> 0.25 | T15: 13.26401606 | U15: 0.8 | W15: =15 -> 15
D16: 0.5 | E16: =E15+(($I15+$I16)/2)^$B$12*($D16-$D15) -> 0.5 | F16: =F15+(($I15+$I16)/2)^$B$13*($D16-$D15) -> 0.5 | G16: 6.118642745 | H16: 68.77408334 | I16: 8 | J16: =30/60 -> 0.5 | K16: =K15+(($O15+$O16)/2)^$B$12*($J16-$J15) -> 0.5 | L16: =L15+(($O15+$O16)/2)^$B$13*($J16-$J15) -> 0.5 | M16: 14.75444453 | N16: 45.19175485 | O16: 2 | P16: =30/60 -> 0.5 | Q16: 0.5 | R16: 0.5 | T16: 23.32055422 | U16: 0.8 | W16: =30 -> 30
D17: 0.75 | E17: 0.75 | F17: =F16+(($I16+$I17)/2)^$B$13*($D17-$D16) -> 0.75 | G17: 3.488823815 | H17: 71.94726608 | I17: 8 | J17: =45/60 -> 0.75 | K17: =K16+(($O16+$O17)/2)^$B$12*($J17-$J16) -> 0.75 | L17: 0.75 | M17: 10.88103647 | N17: 54.89440133 | O17: 2 | P17: =45/60 -> 0.75 | Q17: 0.75 | R17: 0.75 | T17: 31.12748076 | U17: 0.8 | W17: =45 -> 45
D18: 1 | E18: 1 | F18: 1 | G18: 1.916114965 | H18: 73.66452802 | I18: 8 | J18: =60/60 -> 1 | K18: 1 | L18: 1 | M18: 8.813320262 | N18: 60.05018733 | O18: 2 | P18: =60/60 -> 1 | Q18: 1 | R18: 1 | T18: 37.44865576 | U18: 0.8 | W18: =60 -> 60
D19: 1.5 | E19: 1.5 | F19: 1.5 | G19: 0.7342298167 | H19: 74.61148612 | I19: 8 | J19: =90/60 -> 1.5 | K19: 1.5 | L19: 1.5 | N19: 66.43907558 | O19: 2 | P19: =90/60 -> 1.5 | Q19: =Q18+(($U18+$U19)/2)^$B$12*($P19-$P18) -> 1.5 | R19: =R18+(($U18+$U19)/2)^$B$13*($P19-$P18) -> 1.5 | T19: 47.26917125 | U19: 0.8 | W19: =90 -> 90
D20: 2 | E20: 2 | F20: 2 | G20: 0.291682758 | H20: 75.0968517 | I20: 8 | J20: =120/60 -> 2 | K20: 2 | L20: 2 | M20: 2.215587211 | N20: 69.74898202 | O20: 2 | P20: =120/60 -> 2 | Q20: 2 | R20: 2 | T20: 51.91245808 | U20: 0.8 | W20: =120 -> 120
D21: 3 | E21: 3 | F21: 3 | G21: 0 | H21: 76 | I21: 8 | J21: =180/60 -> 3 | K21: 3 | L21: 3 | M21: 1.005817642 | N21: 72.95113593 | O21: 2 | P21: =180/60 -> 3 | Q21: 3 | R21: 3 | T21: 60.31043158 | U21: 0.8 | W21: =180 -> 180
D22: 4 | E22: 4 | F22: 4 | G22: 0 | H22: 76 | I22: 8 | J22: =240/60 -> 4 | K22: 4 | L22: 4 | M22: 0.1405581541 | N22: 74.22265354 | O22: 2 | P22: =240/60 -> 4 | Q22: 4 | R22: 4 | T22: 64.50397486 | U22: 0.8 | W22: =240 -> 240
D23: 5 | E23: 5 | F23: 5 | G23: 0 | H23: 76 | I23: 8 | J23: =300/60 -> 5 | K23: 5 | L23: 5 | M23: 0.04484275862 | N23: 74.72149902 | O23: 2 | P23: =300/60 -> 5 | Q23: 5 | R23: 5 | T23: 67.05751961 | U23: 0.8 | W23: =300 -> 300
D24: 6 | E24: 6 | F24: 6 | G24: 0 | H24: 76 | I24: 8 | J24: =360/60 -> 6 | K24: 6 | L24: 6 | M24: 0 | N24: 74.93529717 | O24: 2 | P24: =360/60 -> 6 | Q24: 6 | R24: 6 | T24: 68.63152544 | U24: 0.8 | W24: =360 -> 360
D25: 7 | E25: 7 | F25: 7 | G25: 0 | H25: 76 | I25: 8 | J25: =420/60 -> 7 | K25: 7 | L25: 7 | M25: 0 | N25: 75.14478352 | O25: 2 | P25: =420/60 -> 7 | Q25: 7 | R25: 7 | T25: 69.48578 | U25: 0.8 | W25: =420 -> 420
D26: 8 | E26: 8 | F26: 8 | G26: 0 | H26: 76 | I26: 8 | J26: =480/60 -> 8 | K26: 8 | L26: 8 | M26: 0 | N26: 75.41552039 | O26: 2 | P26: =480/60 -> 8 | Q26: 8 | R26: 8 | T26: 70.43184903 | U26: 0.8 | W26: =480 -> 480
P27: 9 | Q27: 9 | R27: 9 | T27: 70.76248044 | U27: 0.8 | W27: 540
D29: BL-191, BL-193, BL-197, BL-198 | J29: BL-201, BL-207 | P29: BL-212, BL-213
D30: [SM]0 | E30: 80 mM | J30: [SM]0 | K30: 80 mM | P30: [SM]0 | Q30: 80 mM
D31: [PhCO2H]0 | E31: 400 mM | J31: [PhCO2H]0 | K31: 400 mM | P31: [PhCO2H]0 | Q31: 400 mM
D32: [PhCONHBr]0 | E32: 96 mM | J32: [PhCONHBr]0 | K32: 96 mM | P32: [PhCONHBr]0 | Q32: 96 mM
D33: [(DHQD)2PHAL]0 | E33: 0.08 mM | J33: [(DHQD)2PHAL]0 | K33: 0.8 mM | P33: [(DHQ)2PHAL]0 | Q33: 0.8 mM
D34: [(4-Tol)2CO]0 | E34: 40 mM | F34: ← internal standard | J34: [(4-Tol)2CO]0 | K34: 40 mM | L34: ← internal standard | P34: [(4-Tol)2CO]0 | Q34: 40 mM | R34: ← internal standard
D35: [P]0 (83:17 er) | E35: 0 mM | J35: [P]0 (83:17 er) | K35: 0 mM | P35: [P]0 (83:17 er) | Q35: 0 mM
D36: [PhCONH2]0 | E36: 0 mM | J36: [PhCONH2]0 | K36: 0 mM | P36: [PhCONH2]0 | Q36: 0 mM
J37: [Ad=Ad]0 | K37: 4 mM
D38: Experiment 31 | J38: Experiment 32 | P38: Experiment 33
D39: t (hours) | E39: tcat (SM) | F39: tcat (P) | G39: [SM] (mM) | H39: [P] (mM) | I39: [cat] (mM) | J39: t (hours) | K39: tcat (SM) | L39: tcat (P) | M39: [SM] (mM) | N39: [P] (mM) | O39: [cat] (mM) | P39: t (hours) | Q39: tcat (SM) | R39: tcat (P) | S39: [SM] (mM) | T39: [P] (mM) | U39: [cat] (mM)
D40: =0/60 -> 0 | E40: 0 | F40: 0 | H40: 0 | I40: 0.08 | J40: =0/60 -> 0 | K40: − | L40: − | N40: 0 | O40: − | P40: =0/60 -> 0 | Q40: − | R40: − | T40: 0 | U40: −
D41: =15/60 -> 0.25 | E41: =E40+(($I40+$I41)/2)^$B$12*($D41-$D40) -> 0.25 | F41: =F40+(($I40+$I41)/2)^$B$13*($D41-$D40) -> 0.25 | H41: 1.527297121 | I41: 0.08 | J41: =2.5/60 -> 0.04166666667 | K41: − | L41: − | N41: 3.037707473 | O41: − | P41: =5/60 -> 0.08333333333 | Q41: − | R41: − | T41: 6.814858008 | U41: −
D42: =30/60 -> 0.5 | E42: =E41+(($I41+$I42)/2)^$B$12*($D42-$D41) -> 0.5 | F42: =F41+(($I41+$I42)/2)^$B$13*($D42-$D41) -> 0.5 | H42: 2.608132047 | I42: 0.08 | J42: =7.5/60 -> 0.125 | K42: − | L42: − | N42: 7.15819753 | O42: − | P42: =10/60 -> 0.1666666667 | Q42: − | R42: − | T42: 12.26613132 | U42: −
D43: =45/60 -> 0.75 | E43: =E42+(($I42+$I43)/2)^$B$12*($D43-$D42) -> 0.75 | F43: =F42+(($I42+$I43)/2)^$B$13*($D43-$D42) -> 0.75 | H43: 3.561548414 | I43: 0.08 | J43: =12.5/60 -> 0.2083333333 | K43: − | L43: − | N43: 10.9711699 | O43: − | P43: =15/60 -> 0.25 | Q43: − | R43: − | T43: 16.70909648 | U43: −
D44: =60/60 -> 1 | E44: =E43+(($I43+$I44)/2)^$B$12*($D44-$D43) -> 1 | F44: =F43+(($I43+$I44)/2)^$B$13*($D44-$D43) -> 1 | H44: 4.705959923 | I44: 0.08 | J44: =22.5/60 -> 0.375 | K44: − | L44: − | N44: 17.73435396 | O44: − | P44: =30/60 -> 0.5 | Q44: − | R44: − | T44: 27.16819146 | U44: −
D45: =90/60 -> 1.5 | E45: 1.5 | F45: =F44+(($I44+$I45)/2)^$B$13*($D45-$D44) -> 1.5 | H45: 6.758414352 | I45: 0.08 | J45: =37.5/60 -> 0.625 | K45: − | L45: − | N45: 26.2929732 | O45: − | P45: =45/60 -> 0.75 | Q45: − | R45: − | T45: 34.48803481 | U45: −
D46: =120/60 -> 2 | E46: 2 | F46: 2 | H46: 8.689971092 | I46: 0.08 | J46: =52.5/60 -> 0.875 | K46: − | L46: − | N46: 32.66050275 | O46: − | P46: =66.5/60 -> 1.108333333 | Q46: − | R46: − | T46: 40.88896629 | U46: −
D47: =180/60 -> 3 | E47: 3 | F47: 3 | H47: 12.46639261 | I47: 0.08 | J47: =75/60 -> 1.25 | K47: − | L47: − | N47: 40.9160877 | O47: − | P47: =90/60 -> 1.5 | Q47: − | R47: − | T47: 47.09294657 | U47: −
D48: =240/60 -> 4 | E48: 4 | F48: 4 | H48: 15.86516178 | I48: 0.08 | J48: =105/60 -> 1.75 | K48: − | L48: − | N48: 47.41004567 | O48: − | P48: =120/60 -> 2 | Q48: − | R48: − | T48: 51.63545119 | U48: −
D49: =300/60 -> 5 | E49: 5 | F49: 5 | H49: 18.88714922 | I49: 0.08 | J49: =150/60 -> 2.5 | K49: − | L49: − | N49: 54.52242343 | O49: − | P49: =189/60 -> 3.15 | Q49: − | R49: − | T49: 57.68261689 | U49: −
D50: =360/60 -> 6 | E50: 6 | F50: 6 | H50: 21.65329652 | I50: 0.08 | J50: =210/60 -> 3.5 | K50: − | L50: − | N50: 59.21023156 | O50: − | P50: =240/60 -> 4 | Q50: − | R50: − | T50: 61.257525 | U50: −
D51: =420/60 -> 7 | E51: 7 | F51: 7 | H51: 23.89887069 | I51: 0.08 | J51: =270/60 -> 4.5 | K51: − | L51: − | N51: 61.69802015 | O51: − | P51: =300/60 -> 5 | Q51: − | R51: − | T51: 63.39493318 | U51: −
D52: =480/60 -> 8 | E52: 8 | F52: 8 | H52: 26.11319098 | I52: 0.08 | J52: =330/60 -> 5.5 | K52: − | L52: − | N52: 63.26526398 | O52: − | P52: =360/60 -> 6 | Q52: − | R52: − | T52: 64.64371616 | U52: −
D53: =540/60 -> 9 | E53: 9 | F53: 9 | H53: 27.8876184 | I53: 0.08 | J53: =390/60 -> 6.5 | K53: − | L53: − | N53: 64.20963719 | O53: − | P53: =420/60 -> 7 | Q53: − | R53: − | T53: 65.78156096 | U53: −
D54: =600/60 -> 10 | E54: 10 | F54: 10 | H54: 29.64165214 | I54: 0.08 | J54: =450/60 -> 7.5 | K54: − | L54: − | N54: 64.80489881 | O54: − | P54: =480/60 -> 8 | Q54: − | R54: − | T54: 66.6725818 | U54: −
D55: =660/60 -> 11 | E55: 11 | F55: 11 | H55: 31.22758903 | I55: 0.08 | J55: =510/60 -> 8.5 | K55: − | L55: − | N55: 65.10812006 | O55: −
D56: 12 | E56: 12 | F56: 12 | H56: 32.36110211 | I56: 0.08
D57: 13 | E57: 13 | F57: 13 | H57: 33.59330697 | I57: 0.08
D58: 14 | E58: 14 | F58: 14 | H58: 34.65754398 | I58: 0.08
D59: 15 | E59: 15 | F59: 15 | H59: 35.34387211 | I59: 0.08
D60: 16 | E60: 16 | F60: 16 | H60: 36.3009319 | I60: 0.08
D61: 17.0416 | E61: 17.0416 | F61: 17.0416 | H61: 37.06979707 | I61: 0.08
D62: 18 | E62: 18 | F62: 18 | H62: 37.86451172 | I62: 0.08
D63: 19 | E63: 19 | F63: 19 | H63: 38.33236769 | I63: 0.08
D64: 20 | E64: 20 | F64: 20 | H64: 39.00022029 | I64: 0.08
D65: 21 | E65: 21 | F65: 21 | H65: 39.64071934 | I65: 0.08
D66: 22 | E66: 22 | F66: 22 | H66: 40.37975541 | I66: 0.08
D67: 23 | E67: 23 | F67: 23 | H67: 40.70143233 | I67: 0.08
D68: 24 | E68: 24 | F68: 24 | H68: 41.5183281 | I68: 0.08
D69: BL-366, BL-368
D70: [SM]0 | E70: 80 mM | J70: [SM]0 | P70: [SM]0
D71: [PhCO2H]0 | E71: 400 mM | J71: [PhCO2H]0 | P71: [PhCO2H]0
D72: [PhCONHBr]0 | E72: 96 mM | J72: [PhCONHBr]0 | P72: [PhCONHBr]0
D73: [(DHQD)2PHAL]0 | E73: 0.8 mM | J73: [(DHQD)2PHAL]0 | P73: [(DHQD)2PHAL]0
D74: [(4-Tol)2CO]0 | E74: 40 mM | F74: ← internal standard | J74: [(4-Tol)2CO]0 | L74: ← internal standard | P74: [(4-Tol)2CO]0 | R74: ← internal standard
D75: [P]0 (83:17 er) | E75: 0 mM | J75: [P]0 (83:17 er) | P75: [P]0 (83:17 er)
D76: [PhCONH2]0 | E76: 0 mM | J76: [PhCONH2]0 | P76: [PhCONH2]0
D77: [Ad=Ad]0 | E77: 8 mM
D78: Experiment 44 | J78: Experiment X | P78: Experiment X
D79: t (hours) | E79: tcat (SM) | F79: tcat (P) | G79: [SM] (mM) | H79: [P] (mM) | I79: [cat] (mM) | J79: t (hours) | K79: tcat (SM) | L79: tcat (P) | M79: [SM] (mM) | N79: [P] (mM) | O79: [cat] (mM) | P79: t (hours) | Q79: tcat (SM) | R79: tcat (P) | S79: [SM] (mM) | T79: [P] (mM) | U79: [cat] (mM)
D80: 0 | E80: − | F80: − | G80: 80.05393826 | H80: 0 | I80: −
D81: =5/60 -> 0.08333333333 | E81: − | F81: − | G81: 59.79493453 | H81: 5.013462633 | I81: −
D82: =10/60 -> 0.1666666667 | E82: − | F82: − | G82: 54.88603451 | H82: 10.27620658 | I82: −
D83: 0.25 | E83: − | F83: − | G83: 51.96095051 | H83: 12.69122776 | I83: −
D84: 0.5 | E84: − | F84: − | G84: 39.41904757 | H84: 22.10623364 | I84: −
D85: 0.75 | E85: − | F85: − | G85: 34.0219399 | H85: 28.62958004 | I85: −
D86: 1 | E86: − | F86: − | G86: 23.18745097 | H86: 34.1727302 | I86: −
D87: 1.5 | E87: − | F87: − | G87: 19.83761072 | H87: 42.41334508 | I87: −
D88: 2 | E88: − | F88: − | G88: 13.86231574 | H88: 46.62876548 | I88: −
D89: 3 | E89: − | F89: − | G89: 8.833988532 | H89: 50.81831761 | I89: −
D90: 4 | E90: − | F90: − | G90: 4.398171027 | H90: 54.78054684 | I90: −
D91: 5 | E91: − | F91: − | G91: 2.026793847 | H91: 56.39267426 | I91: −
D92: 6 | E92: − | F92: − | G92: 1.801870663 | H92: 57.77914601 | I92: −
D93: 7 | E93: − | F93: − | G93: 1.067048336 | H93: 58.54108396 | I93: −
D94: 8 | E94: − | F94: − | G94: 1.218232639 | H94: 59.35749774 | I94: −
D121: Experiment 26 | H121: Experiment 27 | L121: Experiment 30
D122: [P]n - [P]n-1 | E122: [SM]n-1 - [SM]n | F122: subtraction | G122: [SM]0 - [P]n - [SM]n | H122: [P]n - [P]n-1 | I122: [SM]n-1 - [SM]n | J122: subtraction | K122: [SM]0 - [P]n - [SM]n | L122: [P]n - [P]n-1 | M122: [SM]n-1 - [SM]n | N122: subtraction | O122: [SM]0 - [P]n - [SM]n
D123: =H13-H12 -> 36.27160578 | E123: =G12-G13 -> 45.78440965 | F123: =E123-D123 -> 9.512803868 | G123: =$G$12-H12-G12 -> 0 | H123: =N13-N12 -> 13.36261679 | I123: =M12-M13 -> 37.07747295 | J123: =I123-H123 -> 23.71485615 | K123: =$M$12-N12-M12 -> 0 | L123: =T13-T12 -> 5.116722364 | M123: =S12-S13 -> 0 | N123: =M123-L123 -> -5.116722364 | O123: =$S$12-T12-S12 -> 0
D124: 14.96487058 | E124: 13.52293218 | F124: =E124-D124 -> -1.441938393 | G124: 9.512803868 | H124: 9.001685253 | I124: 16.45534363 | J124: =I124-H124 -> 7.453658377 | K124: 23.71485615 | L124: =T14-T13 -> 4.30078636 | M124: =S13-S14 -> 0 | N124: =M124-L124 -> -4.30078636 | O124: =$S$12-T13-S13 -> -5.116722364
D125: 7.751280544 | E125: 7.304542092 | F125: -0.4467384523 | G125: 8.070865475 | H125: 7.591205833 | I125: 5.135641608 | J125: -2.455564225 | K125: 31.16851453 | L125: =T16-T14 -> 13.90304549 | M125: =S14-S16 -> 0 | N125: -13.90304549 | O125: =$S$12-T14-S14 -> -9.417508725
D126: 9.786326436 | E126: 7.366084265 | F126: -2.420242171 | G126: 7.624127023 | H126: 15.23624697 | I126: 6.844398924 | J126: -8.391848047 | K126: 28.71295031 | L126: =T17-T16 -> 7.806926545 | M126: =S16-S17 -> 0 | N126: -7.806926545 | O126: =$S$12-T16-S16 -> -23.32055422
D127: 3.173182743 | E127: 2.62981893 | F127: -0.5433638131 | G127: 5.203884852 | H127: 9.702646478 | I127: 3.873408053 | J127: -5.829238425 | K127: 20.32110226 | L127: 6.321175 | M127: 0 | N127: -6.321175 | O127: -31.12748076
D128: 1.717261941 | E128: 1.57270885 | F128: -0.1445530909 | G128: 4.660521039 | H128: 5.155786004 | I128: 2.067716212 | J128: -3.088069791 | K128: 14.49186383 | L128: 9.820515488 | M128: 0 | N128: -9.820515488 | O128: -37.44865576
D129: 0.9469580975 | E129: 1.181885148 | F129: 0.2349270504 | G129: 4.515967948 | H129: 6.38888825 | I129: 8.813320262 | J129: 2.424432012 | K129: 11.40379404 | L129: 4.64328683 | M129: 0 | N129: -4.64328683 | O129: -47.26917125
D130: 0.4853655779 | E130: 0.4425470587 | F130: -0.04281851922 | G130: 4.750894998 | H130: 3.309906438 | I130: -2.215587211 | J130: -5.525493649 | K130: 13.82822605 | L130: 8.397973505 | M130: 0 | N130: -8.397973505 | O130: -51.91245808
D131: 0.903148301 | E131: 0.291682758 | F131: -0.6114655431 | G131: 4.708076479 | H131: 3.202153908 | I131: 1.209769569 | J131: -1.992384339 | K131: 8.302732406 | L131: 4.193543281 | M131: 0 | N131: -4.193543281 | O131: -60.31043158
D132: 0 | E132: 0 | F132: 0 | G132: 4.096610936 | H132: 1.271517614 | I132: 0.8652594879 | J132: -0.4062581266 | K132: 6.310348068 | L132: 2.553544742 | M132: 0 | N132: -2.553544742 | O132: -64.50397486
D133: 0 | E133: 0 | F133: 0 | G133: 4.096610936 | H133: 0.4988454823 | I133: 0.09571539545 | J133: -0.4031300868 | K133: 5.904089941 | L133: 1.574005839 | M133: 0 | N133: -1.574005839 | O133: -67.05751961
D134: 0 | E134: 0 | F134: 0 | G134: 4.096610936 | H134: 0.2137981437 | I134: 0.04484275862 | J134: -0.1689553851 | K134: 5.500959854 | L134: 0.8542545577 | M134: 0 | N134: -0.8542545577 | O134: -68.63152544
D135: 0 | E135: 0 | F135: 0 | G135: 4.096610936 | H135: 0.2094863521 | I135: 0 | J135: -0.2094863521 | K135: 5.332004469 | L135: 0.9460690238 | M135: 0 | N135: -0.9460690238 | O135: -69.48578
D136: 0 | E136: 0 | F136: 0 | G136: 4.096610936 | H136: 0.2707368697 | I136: 0 | J136: -0.2707368697 | K136: 5.122518117 | L136: 0.3306314092 | M136: 0 | N136: -0.3306314092 | O136: -70.43184903
G137: 4.096610936 | K137: 4.851781247 | L137: =T50-T27 -> -9.504955434 | M137: =S27-S50 -> 0 | N137: 9.504955434 | O137: -70.76248044
O138: =$S$12-T50-S50 -> -61.257525
D140: Experiment 31 | H140: Experiment X | L140: Experiment X
D141: [P]n - [P]n-1 | E141: [SM]n-1 - [SM]n | F141: subtraction | G141: [SM]0 - [P]n - [SM]n | H141: [P]n - [P]n-1 | I141: [SM]n-1 - [SM]n | J141: subtraction | K141: [SM]0 - [P]n - [SM]n | L141: [P]n - [P]n-1 | M141: [SM]n-1 - [SM]n | N141: subtraction | O141: [SM]0 - [P]n - [SM]n
D180: tcat (hours) | E180: [P]calc (mM) | F180: t (hours) 0.1 mol% | G180: tcat (hours, sanity check)
D181: 0 | E181: 0 | F181: 0 | G181: 0
D182: 0.01 | E182: =75.6823584712771*(1-EXP((-0.899212139239885)*(D182^0.711351170572747))) -> 2.528120566 | F182: =F181+(LOG(D182-D181)/LOG(0.08)) -> 1.823303622 | G182: =G181+((0.08+0.08)/2)^$B$13*($F182-$F181) -> 1.823303622
D183: 0.05 | E183: =75.6823584712771*(1-EXP((-0.899212139239885)*(D183^0.711351170572747))) -> 7.662898351 | F183: =F182+(LOG(D183-D182)/LOG(0.08)) -> 3.097738163 | G183: =G182+((0.08+0.08)/2)^$B$13*($F183-$F182) -> 3.097738163
D184: 0.09 | E184: 11.32968285 | F184: 4.372172704 | G184: 4.372172704
D185: 0.13 | E185: 14.37539061 | F185: 5.646607245 | G185: 5.646607245
D186: 0.17 | E186: 17.03143872 | F186: 6.921041785 | G186: =G185+((0.08+0.08)/2)^$B$13*($F186-$F185) -> 6.921041785
D187: 0.21 | E187: 19.40728853 | F187: 8.195476326 | G187: 8.195476326
D188: 0.25 | E188: 21.5664983 | F188: 9.469910867 | G188: 9.469910867
D189: 0.29 | E189: 23.55044391 | F189: 10.74434541 | G189: 10.74434541
D190: 0.33 | E190: 25.38812655 | F190: 12.01877995 | G190: 12.01877995
D191: 0.37 | E191: 27.10095663 | F191: 13.29321449 | G191: 13.29321449
D192: 0.41 | E192: 28.70536105 | F192: 14.56764903 | G192: 14.56764903
D193: 0.45 | E193: 30.2143234 | F193: 15.84208357 | G193: 15.84208357
D194: 0.49 | E194: 31.63835093 | F194: 17.11651811 | G194: 17.11651811
D195: 0.53 | E195: 32.98611197 | F195: 18.39095265 | G195: 18.39095265
D196: 0.57 | E196: 34.26487265 | F196: 19.66538719 | G196: 19.66538719
D197: 0.61 | E197: 35.48080607 | F197: 20.93982173 | G197: 20.93982173
D198: 0.65 | E198: 36.63921719 | F198: 22.21425627 | G198: 22.21425627
D199: 0.69 | E199: 37.74471024 | F199: 23.48869082 | G199: 23.48869082
D200: 0.73 | E200: 38.80131585 | F200: 24.76312536 | G200: 24.76312536
D201: 0.77 | E201: 39.81258939 | F201: 26.0375599 | G201: 26.0375599
D202: 0.81 | E202: 40.78168814 | F202: 27.31199444 | G202: 27.31199444
D203: 0.85 | E203: 41.71143265 | F203: 28.58642898 | G203: 28.58642898
D204: 0.89 | E204: 42.60435624 | F204: =F203+(LOG(D204-D203)/LOG(0.08)) -> 29.86086352 | G204: 29.86086352
D205: 0.93 | E205: 43.46274529 | F205: 31.13529806 | G205: 31.13529806
D206: 0.97 | E206: 44.28867239 | F206: 32.4097326 | G206: 32.4097326
D207: 1.01 | E207: 45.0840238 | F207: 33.68416714 | G207: 33.68416714
D208: 1.05 | E208: 45.85052253 | F208: 34.95860168 | G208: 34.95860168
D209: 1.09 | E209: 46.5897477 | F209: 36.23303622 | G209: 36.23303622
D210: 1.13 | E210: 47.30315107 | F210: 37.50747076 | G210: 37.50747076
D211: 1.17 | E211: 47.99207104 | F211: 38.7819053 | G211: 38.7819053
D212: 1.21 | E212: 48.65774484 | F212: 40.05633984 | G212: 40.05633984
D213: 1.25 | E213: 49.3013189 | F213: 41.33077439 | G213: 41.33077439
D214: 1.29 | E214: 49.92385797 | F214: 42.60520893 | G214: 42.60520893
D215: 1.33 | E215: 50.52635308 | F215: 43.87964347 | G215: 43.87964347
D216: 1.37 | E216: 51.10972839 | F216: 45.15407801 | G216: 45.15407801
D217: 1.41 | E217: 51.67484739 | F217: 46.42851255 | G217: 46.42851255
D218: 1.45 | E218: 52.22251825 | F218: 47.70294709 | G218: 47.70294709
D219: 1.49 | E219: 52.75349863 | F219: 48.97738163 | G219: 48.97738163
D220: 1.53 | E220: 53.26849993 | F220: 50.25181617 | G220: 50.25181617
D221: 1.57 | E221: 53.76819108 | F221: 51.52625071 | G221: 51.52625071
D222: 1.61 | E222: 54.25320199 | F222: 52.80068525 | G222: 52.80068525
D223: 1.65 | E223: 54.72412656 | F223: 54.07511979 | G223: 54.07511979
D224: 1.69 | E224: 55.18152545 | F224: 55.34955433 | G224: 55.34955433
D225: 1.73 | E225: 55.62592856 | F225: 56.62398887 | G225: 56.62398887
D226: 1.77 | E226: 56.0578373 | F226: 57.89842342 | G226: 57.89842342
D227: 1.81 | E227: 56.47772662 | F227: 59.17285796 | G227: 59.17285796
D228: 1.85 | E228: 56.88604684 | F228: 60.4472925 | G228: 60.4472925
D229: 1.89 | E229: 57.28322538 | F229: 61.72172704 | G229: 61.72172704
D230: 1.93 | E230: 57.66966828 | F230: 62.99616158 | G230: 62.99616158
D231: 1.97 | E231: 58.0457616 | F231: 64.27059612 | G231: 64.27059612
D232: 2.01 | E232: 58.41187276 | F232: 65.54503066 | G232: 65.54503066
D233: 2.05 | E233: 58.76835167 | F233: 66.8194652 | G233: 66.8194652
D234: 2.09 | E234: 59.11553186 | F234: 68.09389974 | G234: 68.09389974
D235: 2.13 | E235: 59.45373149 | F235: 69.36833428 | G235: 69.36833428
D236: 2.17 | E236: 59.78325423 | F236: 70.64276882 | G236: 70.64276882
D237: 2.21 | E237: 60.10439018 | F237: 71.91720336 | G237: 71.91720336
D238: 2.25 | E238: 60.41741662 | F238: 73.1916379 | G238: 73.1916379
D239: 2.29 | E239: 60.72259876 | F239: 74.46607245 | G239: 74.46607245
D240: 2.33 | E240: 61.02019042 | F240: 75.74050699 | G240: 75.74050699
D241: 2.37 | E241: 61.31043467 | F241: 77.01494153 | G241: 77.01494153
D242: 2.41 | E242: 61.59356442 | F242: 78.28937607 | G242: 78.28937607
D243: 2.45 | E243: 61.86980295 | F243: 79.56381061 | G243: 79.56381061
D244: 2.49 | E244: 62.13936444 | F244: 80.83824515 | G244: 80.83824515
D245: 2.53 | E245: 62.40245444 | F245: 82.11267969 | G245: 82.11267969
D246: 2.57 | E246: 62.65927031 | F246: 83.38711423 | G246: 83.38711423
D247: 2.61 | E247: =75.6823584712771*(1-EXP((-0.899212139239885)*(D247^0.711351170572747))) -> 62.91000168 | F247: =F246+(LOG(D247-D246)/LOG(0.08)) -> 84.66154877 | G247: =G246+((0.08+0.08)/2)^$B$13*($F247-$F246) -> 84.66154877
D248: 2.65 | E248: 63.15483076 | F248: 85.93598331 | G248: 85.93598331
D249: 2.69 | E249: 63.3939328 | F249: 87.21041785 | G249: 87.21041785
D250: 2.73 | E250: 63.62747634 | F250: 88.48485239 | G250: 88.48485239
D251: 2.77 | E251: 63.85562361 | F251: 89.75928693 | G251: 89.75928693
D252: 2.81 | E252: 64.0785308 | F252: 91.03372147 | G252: 91.03372147
D253: 2.85 | E253: 64.29634833 | F253: 92.30815602 | G253: 92.30815602
D254: 2.89 | E254: 64.50922116 | F254: 93.58259056 | G254: 93.58259056
D255: 2.93 | E255: 64.717289 | F255: 94.8570251 | G255: 94.8570251
D256: 2.97 | E256: 64.92068658 | F256: 96.13145964 | G256: 96.13145964
D257: 3.01 | E257: 65.11954385 | F257: 97.40589418 | G257: 97.40589418
D258: 3.05 | E258: 65.31398621 | F258: 98.68032872 | G258: 98.68032872
D259: 3.09 | E259: 65.50413472 | F259: 99.95476326 | G259: 99.95476326
D260: 3.13 | E260: 65.69010624 | F260: 101.2291978 | G260: 101.2291978
D261: 3.17 | E261: 65.87201369 | F261: 102.5036323 | G261: 102.5036323
D262: 3.21 | E262: 66.04996613 | F262: 103.7780669 | G262: 103.7780669
D263: 3.25 | E263: 66.224069 | F263: 105.0525014 | G263: 105.0525014
D264: 3.29 | E264: 66.39442422 | F264: 106.326936 | G264: 106.326936
D265: 3.33 | E265: 66.56113036 | F265: 107.6013705 | G265: 107.6013705
D266: 3.37 | E266: 66.72428278 | F266: 108.875805 | G266: 108.875805
D267: 3.41 | E267: 66.88397373 | F267: 110.1502396 | G267: 110.1502396
... 1710 more rows

Sheet 5. equiv. BzOH SM order
E1: BL-176, BL-177 | J1: BL-291, BL-296
E2: [SM]0 | F2: 80 mM | J2: [SM]0 | K2: 96 mM
E3: [PhCO2H]0 | F3: 400 mM | J3: [PhCO2H]0 | K3: 400 mM
E4: [PhCONHBr]0 | F4: 96 mM | J4: [PhCONHBr]0 | K4: 96 mM
E5: [(DHQD)2PHAL]0 | F5: 8 mM | J5: [(DHQD)2PHAL]0 | K5: 8 mM
E6: [(4-Tol)2CO]0 | F6: 40 mM | G6: ← internal standard | J6: [(4-Tol)2CO]0 | K6: 40 mM | L6: ← internal standard
E7: [P]0 (83:17 er) | F7: 0 mM | J7: [P]0 (83:17 er) | K7: 0 mM
E8: [PhCONH2]0 | F8: 0 mM | J8: [PhCONH2]0 | K8: 0 mM
E10: Experiment 26 | J10: Experiment 40
E11: t (hours) | F11: shifted t, SM | G11: shifted t, P | H11: [SM] (mM) | I11: [P] (mM) | J11: t (hours) | K11: shifted t, SM | L11: shifted t, P | M11: [SM] (mM) | N11: [SM] shifted (mM) | O11: [P] (mM)
A12: order in SM | B12: 0 | E12: 0 | F12: 0 | G12: 0 | H12: 80.09661094 | I12: =0+B14 -> 0 | J12: =0/60 -> 0 | K12: 0 | L12: 0 | M12: 96.39757278 | N12: =M12+$B$13 -> 96.39757278 | O12: 0
A13: shifted [SM] (mM) | B13: 0 | E13: =5/60 -> 0.08333333333 | F13: =F12+((H13+H12)/2)^$B$12*(E13-E12) -> 0.08333333333 | G13: =G12+((I13+I12)/2)^$B$12*(E13-E12) -> 0.08333333333 | H13: 34.31220129 | I13: =36.8441748850957+B14 -> 36.84417489 | J13: =5/60 -> 0.08333333333 | K13: =K12+((M13+M12)/2)^$B$12*(J13-J12) -> 0.08333333333 | L13: =L12+((O13+O12)/2)^$B$12*(J13-J12) -> 0.08333333333 | M13: 45.57867185 | N13: =M13+$B$13 -> 45.57867185 | O13: 37.43666236
A14: shifted [P] (mM) | B14: 0 | E14: =10/60 -> 0.1666666667 | F14: 0.1666666667 | G14: 0.1666666667 | H14: 20.7892691 | I14: =51.5939682630285+B14 -> 51.59396826 | J14: =10/60 -> 0.1666666667 | K14: =K13+((M14+M13)/2)^$B$12*(J14-J13) -> 0.1666666667 | L14: =L13+((O14+O13)/2)^$B$12*(J14-J13) -> 0.1666666667 | M14: 31.43742758 | N14: 31.43742758 | O14: 52.17505474
E15: 0.25 | F15: 0.25 | G15: 0.25 | H15: 13.48472701 | I15: =59.1016942135852+B14 -> 59.10169421 | J15: =15/60 -> 0.25 | K15: 0.25 | L15: 0.25 | M15: 25.75153367 | N15: 25.75153367 | O15: 61.35055333
E16: 0.5 | F16: 0.5 | G16: 0.5 | H16: 6.118642745 | I16: =69.7518321970552+B14 -> 69.7518322 | J16: =30/60 -> 0.5 | K16: 0.5 | L16: 0.5 | M16: 15.63303676 | N16: 15.63303676 | O16: 71.66006966
E17: 0.75 | F17: 0.75 | G17: 0.75 | H17: 3.488823815 | I17: =72.9287505456324+B14 -> 72.92875055 | J17: =45/60 -> 0.75 | K17: 0.75 | L17: 0.75 | M17: 11.20897976 | N17: 11.20897976 | O17: 75.65206453
E18: 1 | F18: 1 | G18: 1 | H18: 1.916114965 | I18: =74.5982001958501+B14 -> 74.5982002 | J18: =60/60 -> 1 | K18: 1 | L18: 1 | M18: 8.991552692 | N18: 8.991552692 | O18: 78.97133701
E19: 1.5 | F19: 1.5 | G19: 1.5 | H19: 0.7342298167 | I19: =75.8007884183971+B14 -> 75.80078842 | J19: =90/60 -> 1.5 | K19: 1.5 | L19: 1.5 | M19: 6.238514325 | N19: 6.238514325 | O19: 80.8250046
E20: 2 | F20: 2 | G20: 2 | H20: 0.291682758 | I20: =76.0884048877125+B14 -> 76.08840489 | J20: =120/60 -> 2 | K20: 2 | L20: 2 | M20: 4.833194833 | N20: 4.833194833 | O20: 82.42648588
E21: 3 | F21: 3 | G21: 3 | H21: 0.0001 | I21: =76.1245228160574+B14 -> 76.12452282 | J21: 3 | K21: 3 | L21: 3 | M21: 3.443294221 | N21: 3.443294221 | O21: 83.70168667
E22: 4 | F22: 4 | G22: 4 | H22: 0.0001 | I22: =76.6835552360747+B14 -> 76.68355524 | J22: =240/60 -> 4 | K22: 4 | L22: 4 | M22: 2.6769171 | N22: 2.6769171
E23: 5 | F23: 5 | G23: 5 | H23: 0.0001 | I23: =77+B14 -> 77 | J23: =300/60 -> 5 | K23: 5 | M23: 2.281627967 | N23: 2.281627967
E24: 6 | F24: 6 | G24: 6 | H24: 0.0001 | I24: =77+B14 -> 77 | J24: =360/60 -> 6 | K24: 6 | M24: 1.816900902 | N24: 1.816900902
E25: 7 | F25: 7 | G25: 7 | H25: 0.0001 | I25: =77+B14 -> 77 | J25: =420/60 -> 7 | K25: 7 | M25: 1.61872197 | N25: 1.61872197
E26: 8 | F26: 8 | G26: 8 | H26: 0.0001 | I26: =77+B14 -> 77 | J26: =480/60 -> 8 | K26: 8 | M26: 1.508389308 | N26: 1.508389308
E52: Experiment 26 | I52: Experiment 40
E53: [P]n - [P]n-1 | F53: [SM]n-1 - [SM]n | G53: subtraction | H53: [SM]0 - [P]n - [SM]n | I53: [P]n - [P]n-1 | J53: [SM]n-1 - [SM]n | K53: subtraction | L53: [SM]0 - [P]n - [SM]n
E54: =I13-I12 -> 36.84417489 | F54: =H12-H13 -> 45.78440965 | G54: =F54-E54 -> 8.940234765 | H54: =$H$12-(I12-$I$12)-H12 -> 0 | I54: =O13-O12 -> 37.43666236 | J54: =N12-N13 -> 50.81890092 | K54: =J54-I54 -> 13.38223856 | L54: =$N$12-(O12-$O$12)-N12 -> 0
E55: 14.74979338 | F55: 13.52293218 | G55: -1.226861193 | H55: =$H$12-(I13-$I$12)-H13 -> 8.940234765 | I55: 14.73839238 | J55: 14.14124428 | K55: -0.5971481042 | L55: =$N$12-(O13-$O$12)-N13 -> 13.38223856
E56: 7.507725951 | F56: 7.304542092 | G56: -0.2031838589 | H56: 7.713373572 | I56: 9.175498584 | J56: 5.685893903 | K56: -3.489604682 | L56: 12.78509046
E57: 10.65013798 | F57: 7.366084265 | G57: -3.284053719 | H57: 7.510189713 | I57: 10.30951634 | J57: 10.11849691 | K57: -0.191019424 | L57: 9.295485776
E58: 3.176918349 | F58: 2.62981893 | G58: -0.5470994182 | H58: 4.226135994 | I58: 3.99199487 | J58: 4.424057 | K58: 0.43206213 | L58: 9.104466352
E59: 1.66944965 | F59: 1.57270885 | G59: -0.09674080007 | H59: 3.679036576 | I59: 3.319272473 | J59: 2.21742707 | K59: -1.101845403 | L59: 9.536528482
E60: 1.202588223 | F60: 1.181885148 | G60: -0.02070307465 | H60: 3.582295776 | I60: 1.853667595 | J60: 2.753038367 | K60: 0.8993707724 | L60: 8.434683079
E61: 0.2876164693 | F61: 0.4425470587 | G61: 0.1549305894 | H61: 3.561592701 | I61: 1.601481274 | J61: 1.405319492 | K61: -0.1961617825 | L61: 9.334053851
E62: 0.03611792834 | F62: 0.291582758 | G62: 0.2554648296 | H62: 3.71652329 | I62: 1.27520079 | J62: 1.389900613 | K62: 0.1146998222 | L62: 9.137892069
E63: 0.55903242 | F63: 0 | G63: -0.55903242 | H63: 3.97198812 | I63: -83.70168667 | J63: 0.7663771206 | K63: 84.46806379 | L63: 9.252591891
E64: 0.3164447639 | F64: 0 | G64: -0.3164447639 | H64: 3.4129557 | I64: 0 | J64: 0.3952891329 | K64: 0.3952891329 | L64: 93.72065568
E65: 0 | F65: 0 | G65: 0 | H65: 3.096510936 | I65: 0 | J65: 0.4647270648 | K65: 0.4647270648 | L65: 94.11594481
E66: 0 | F66: 0 | G66: 0 | H66: 3.096510936 | I66: 0 | J66: 0.1981789327 | K66: 0.1981789327 | L66: 94.58067188
E67: 0 | F67: 0 | G67: 0 | H67: 3.096510936 | I67: 0 | J67: 0.1103326611 | K67: 0.1103326611 | L67: 94.77885081
H68: 3.096510936 | L68: 94.88918347

Sheet 5. equiv. BzOH BzOH order
E1: BL-176, BL-177 | J1: BL-292, BL-297
E2: [SM]0 | F2: 80 mM | J2: [SM]0 | K2: 80 mM
E3: [PhCO2H]0 | F3: 400 mM | J3: [PhCO2H]0 | K3: 360 mM
E4: [PhCONHBr]0 | F4: 96 mM | J4: [PhCONHBr]0 | K4: 96 mM
E5: [(DHQD)2PHAL]0 | F5: 8 mM | J5: [(DHQD)2PHAL]0 | K5: 8 mM
E6: [(4-Tol)2CO]0 | F6: 40 mM | G6: ← internal standard | J6: [(4-Tol)2CO]0 | K6: 40 mM | L6: ← internal standard
E7: [P]0 (83:17 er) | F7: 0 mM | J7: [P]0 (83:17 er) | K7: 0 mM
E8: [PhCONH2]0 | F8: 0 mM | J8: [PhCONH2]0 | K8: 0 mM
E10: Experiment 26 | J10: Experiment 41
E11: t (hours) | F11: shifted t | G11: [PhCO2H] | H11: [SM] (mM) | I11: [P] (mM) | J11: t (hours) | K11: shifted t | L11: [PhCO2H] | M11: [SM] (mM) | N11: [SM] shifted (mM) | O11: [P] (mM)
A12: order in BzOH | B12: 1 | E12: 0 | F12: 0 | G12: =400-($B$15*(-$I$12+I12))-($B$16*8) -> 384 | H12: 80.09661094 | I12: =0+B14 -> 0 | J12: =0/60 -> 0 | K12: 0 | L12: =360-($B$15*(-$O$12+O12))-($B$16*8) -> 344 | M12: 80.48066501 | N12: =M12+$B$13 -> 80.48066501 | O12: 0
A13: shifted [SM] (mM) | B13: 0 | E13: =5/60 -> 0.08333333333 | F13: =F12+((G13+G12)/2)^$B$12*(E13-E12) -> 28.92965209 | G13: =400-($B$15*(-$I$12+I13))-($B$16*8) -> 310.3116502 | H13: 34.31220129 | I13: =36.8441748850957+B14 -> 36.84417489 | J13: =5/60 -> 0.08333333333 | K13: =K12+((L13+L12)/2)^$B$12*(J13-J12) -> 25.97128562 | L13: =360-($B$15*(-$O$12+O13))-($B$16*8) -> 279.3108548 | M13: 30.20034789 | N13: =M13+$B$13 -> 30.20034789 | O13: 32.34457259
A14: shifted [P] (mM) | B14: 0 | E14: =10/60 -> 0.1666666667 | F14: =F13+((G14+G13)/2)^$B$12*(E14-E13) -> 53.55980683 | G14: =400-($B$15*(-$I$12+I14))-($B$16*8) -> 280.8120635 | H14: 20.7892691 | I14: =51.5939682630285+B14 -> 51.59396826 | J14: =10/60 -> 0.1666666667 | K14: =K13+((L14+L13)/2)^$B$12*(J14-J13) -> 48.15600921 | L14: 253.1225114 | M14: 17.74774118 | N14: 17.74774118 | O14: 45.43874432
A15: correction benzamide | B15: 2 | E15: 0.25 | F15: 76.33516829 | G15: 265.7966116 | H15: 13.48472701 | I15: =59.1016942135852+B14 -> 59.10169421 | J15: =15/60 -> 0.25 | K15: 68.68404622 | L15: 239.5503768 | M15: 15.09171372 | N15: 15.09171372 | O15: 52.22481159
A16: acid equiv. cat | B16: 2 | E16: 0.5 | F16: 140.1217867 | G16: 244.4963356 | H16: 6.118642745 | I16: =69.7518321970552+B14 -> 69.7518322 | J16: =30/60 -> 0.5 | K16: 126.3443262 | L16: 221.7318627 | M16: 7.855777421 | N16: 7.855777421 | O16: 61.13406866
E17: 0.75 | F17: 200.451641 | G17: 238.1424989 | H17: 3.488823815 | I17: =72.9287505456324+B14 -> 72.92875055 | J17: =45/60 -> 0.75 | K17: 180.9003905 | L17: 214.7166517 | M17: 4.517474455 | N17: 4.517474455 | O17: 64.64167413
E18: 1 | F18: 259.5699033 | G18: 234.8035996 | H18: 1.916114965 | I18: =74.5982001958501+B14 -> 74.5982002 | J18: =60/60 -> 1 | K18: 234.114279 | L18: 210.9944568 | M18: 3.026754092 | N18: 3.026754092 | O18: 66.50277161
E19: 1.5 | F19: 376.370409 | G19: 232.3984232 | H19: 0.7342298167 | I19: =75.8007884183971+B14 -> 75.80078842 | J19: =90/60 -> 1.5 | K19: 338.7998389 | L19: 207.7477826 | M19: 1.375268368 | N19: 1.375268368 | O19: 68.12610869
E20: 2 | F20: 492.4258124 | G20: 231.8231902 | H20: 0.291682758 | I20: =76.0884048877125+B14 -> 76.08840489 | J20: =120/60 -> 2 | K20: 442.6626519 | L20: 207.7034694 | M20: 0.6798139457 | N20: 0.6798139457 | O20: 68.14826528
E21: 3 | F21: 724.2128847 | G21: 231.7509544 | H21: 0 | I21: =76.1245228160574+B14 -> 76.12452282 | J21: =181.333/60 -> 3.022216667 | K21: 655.3996111 | L21: 208.5232781 | M21: 0.2010445606 | N21: 0.2010445606 | O21: 67.73836095
E22: 4 | F22: 955.4048066 | G22: 230.6328895 | H22: 0 | I22: =76.6835552360747+B14 -> 76.68355524 | J22: =240/60 -> 4 | K22: 858.0923839 | L22: 206.0732197 | M22: 0.1147954206 | N22: 0.1147954206 | O22: 68.96339015
E23: 5 | F23: 1185.721251 | G23: 230 | H23: 0 | I23: =77+B14 -> 77 | J23: =300/60 -> 5 | K23: 1065.90828 | L23: 209.5585718 | M23: 0 | N23: 0 | O23: 67.22071412
E24: 6 | F24: 1415.721251 | G24: 230 | H24: 0 | I24: =77+B14 -> 77 | J24: =360/60 -> 6 | K24: 1273.057392 | L24: 204.7396534 | M24: 0 | N24: 0 | O24: 69.6301733
E25: 7 | F25: 1645.721251 | G25: 230 | H25: 0 | I25: =77+B14 -> 77 | J25: =420/60 -> 7 | K25: 1479.128382 | L25: 207.4023257 | M25: 0 | N25: 0 | O25: 68.29883713
E26: 8 | F26: 1875.721251 | G26: 230 | H26: 0 | I26: =77+B14 -> 77 | J26: =480/60 -> 8 | K26: 1685.59673 | L26: 205.5343709 | M26: 0 | N26: 0 | O26: 69.23281455
M27: could add these results to BzOH order tab
E52: Experiment 26 | I52: Experiment 41
E53: [P]n - [P]n-1 | F53: [SM]n-1 - [SM]n | G53: subtraction | H53: [SM]0 - [P]n - [SM]n | I53: [P]n - [P]n-1 | J53: [SM]n-1 - [SM]n | K53: subtraction | L53: [SM]0 - [P]n - [SM]n
E54: =I13-I12 -> 36.84417489 | F54: =H12-H13 -> 45.78440965 | G54: =F54-E54 -> 8.940234765 | H54: =$H$12-(I12-$I$12)-H12 -> 0 | I54: =O13-O12 -> 32.34457259 | J54: =N12-N13 -> 50.28031713 | K54: =J54-I54 -> 17.93574453 | L54: =$N$12-(O12-$O$12)-N12 -> 0
E55: 14.74979338 | F55: 13.52293218 | G55: -1.226861193 | H55: 8.940234765 | I55: 13.09417173 | J55: 12.45260671 | K55: -0.6415650181 | L55: =$N$12-(O13-$O$12)-N13 -> 17.93574453
E56: 7.507725951 | F56: 7.304542092 | G56: -0.2031838589 | H56: 7.713373572 | I56: 6.786067265 | J56: 2.656027455 | K56: -4.13003981 | L56: 17.29417951
E57: 10.65013798 | F57: 7.366084265 | G57: -3.284053719 | H57: 7.510189713 | I57: 8.90925707 | J57: 7.2359363 | K57: -1.67332077 | L57: 13.1641397
E58: 3.176918349 | F58: 2.62981893 | G58: -0.5470994182 | H58: 4.226135994 | I58: 3.507605477 | J58: 3.338302966 | K58: -0.1693025118 | L58: 11.49081894
E59: 1.66944965 | F59: 1.57270885 | G59: -0.09674080007 | H59: 3.679036576 | I59: 1.861097476 | J59: 1.490720363 | K59: -0.3703771137 | L59: 11.32151642
E60: 1.202588223 | F60: 1.181885148 | G60: -0.02070307465 | H60: 3.582295776 | I60: 1.623337082 | J60: 1.651485725 | K60: 0.02814864316 | L60: 10.95113931
E61: 0.2876164693 | F61: 0.4425470587 | G61: 0.1549305894 | H61: 3.561592701 | I61: 0.02215659164 | J61: 0.6954544219 | K61: 0.6732978303 | L61: 10.97928795
E62: 0.03611792834 | F62: 0.291682758 | G62: 0.2555648296 | H62: 3.71652329 | I62: -0.409904329 | J62: 0.4787693851 | K62: 0.8886737141 | L62: 11.65258578
E63: 0.55903242 | F63: 0 | G63: -0.55903242 | H63: 3.97208812 | I63: 1.225029201 | J63: 0.08624913999 | K63: -1.138780061 | L63: 12.5412595
E64: 0.3164447639 | F64: 0 | G64: -0.3164447639 | H64: 3.4130557 | I64: -1.742676036 | J64: 0.1147954206 | K64: 1.857471456 | L64: 11.40247944
E65: 0 | F65: 0 | G65: 0 | H65: 3.096610936 | I65: 2.409459183 | J65: 0 | K65: -2.409459183 | L65: 13.25995089
E66: 0 | F66: 0 | G66: 0 | H66: 3.096610936 | I66: -1.331336176 | J66: 0 | K66: 1.331336176 | L66: 10.85049171
E67: 0 | F67: 0 | G67: 0 | H67: 3.096610936 | I67: 0.9339774208 | J67: 0 | K67: -0.9339774208 | L67: 12.18182789
H68: 3.096610936 | L68: 11.24785047

Sheet lower T
D1: BL-226, BL-256 | I1: BL-265, BL-277 | N1: BL-266, BL-278
D2: [SM]0 | E2: 80 mM | I2: [SM]0 | J2: 80 mM | N2: [SM]0 | O2: 80 mM
D3: [PhCO2H]0 | E3: 96 mM | F3: ← 1.2 equiv. | I3: [PhCO2H]0 | J3: 96 mM | K3: ← 1.2 equiv. | N3: [PhCO2H]0 | O3: 96 mM | P3: ← 1.2 equiv.
D4: [PhCON(t-Bu)Br]0 | E4: 96 mM | I4: [PhCON(t-Bu)Br]0 | J4: 96 mM | N4: [PhCON(t-Bu)Br]0 | O4: 96 mM
D5: [(DHQD)2PHAL]0 | E5: 0.8 mM | I5: [(DHQD)2PHAL]0 | J5: 0.8 mM | N5: [(DHQD)2PHAL]0 | O5: 0.8 mM
D6: [(4-Tol)2CO]0 | E6: 40 mM | F6: ← internal standard | I6: [(4-Tol)2CO]0 | J6: 40 mM | K6: ← internal standard | N6: [(4-Tol)2CO]0 | O6: 40 mM | P6: ← internal standard
D7: [P]0 (83:17 er) | E7: 0 mM | I7: [P]0 (83:17 er) | J7: 0 mM | N7: [P]0 (83:17 er) | O7: 0 mM
D8: [PhCONH2]0 | E8: 0 mM | I8: [PhCONH2]0 | J8: 0 mM | N8: [PhCONH2]0 | O8: 0 mM
D9: T (°C) = | E9: 4 | I9: T (°C) = | J9: −15 | N9: T (°C) = | O9: −78
D11: Experiment 35 | I11: Experiment 37 | N11: Experiment 38
A12: Ea = 14.5 kJ mol-1 | D12: t (minutes) | E12: shifted t, SM | F12: shifted t, P | G12: [SM] (mM) | H12: [P] (mM) | I12: t (minutes) | J12: shifted t, SM | K12: shifted t, P | L12: [SM] (mM) | M12: [P] (mM) | N12: t (minutes) | O12: shifted t, SM | P12: shifted t, P | Q12: [SM] (mM) | R12: [P] (mM)
A13: ln A = 8.91 | D13: 0 | E13: − | F13: − | G13: − | H13: 0 | I13: 0 | J13: − | K13: − | L13: − | M13: 0 | N13: 0 | O13: − | P13: − | R13: 0
D14: 5 | E14: − | F14: − | G14: − | H14: 67.73539421 | I14: 5 | J14: − | K14: − | L14: − | M14: 46.31647706 | N14: 5 | O14: − | P14: − | R14: 5.061046007
D15: 10 | E15: − | F15: − | G15: − | H15: 69 | I15: 10 | J15: − | K15: − | L15: − | M15: 58.29707516 | N15: 10 | O15: − | P15: − | R15: 6.608043763
D16: 15 | E16: − | F16: − | G16: − | H16: 69 | I16: 15 | J16: − | K16: − | L16: − | M16: 62.77895704 | N16: 15 | O16: − | P16: − | R16: 5.702859678
D17: 30 | E17: − | F17: − | G17: − | H17: 69 | I17: 30 | J17: − | K17: − | L17: − | M17: 65.8057741 | N17: 30 | O17: − | P17: − | R17: 9.173325414
D18: 45 | E18: − | F18: − | G18: − | H18: 69 | I18: 45 | J18: − | K18: − | L18: − | M18: 66.84030911 | N18: 45 | O18: − | P18: − | R18: 13.44869085
D19: 60 | E19: − | F19: − | G19: − | H19: 68.48826116 | I19: 60 | J19: − | K19: − | L19: − | M19: 67 | N19: 60 | O19: − | P19: − | R19: 14.37477421
D20: 90 | E20: − | F20: − | G20: − | H20: 69 | I20: 90 | J20: − | K20: − | L20: − | M20: 67 | N20: 90 | O20: − | P20: − | R20: 18.80092087
D21: 120 | E21: − | F21: − | G21: − | H21: 69 | I21: 120 | J21: − | K21: − | L21: − | M21: 67 | N21: 120 | O21: − | P21: − | R21: 21.41920848
D22: 180 | E22: − | F22: − | G22: − | H22: 69 | I22: 180 | J22: − | K22: − | L22: − | M22: 67 | N22: 180 | O22: − | P22: − | R22: 28.51952
D23: 240 | E23: − | F23: − | G23: − | H23: 69 | I23: 240 | J23: − | K23: − | L23: − | M23: 67 | N23: 240 | O23: − | P23: − | R23: 31.90057859
D24: 300 | E24: − | F24: − | G24: − | H24: 69 | I24: 300 | J24: − | K24: − | L24: − | M24: 67 | N24: 300 | O24: − | P24: − | R24: 36.01836023
D25: 360 | E25: − | F25: − | G25: − | H25: 69 | I25: 360 | J25: − | K25: − | L25: − | M25: 67 | N25: 360 | O25: − | P25: − | R25: 39.61518875
D26: 420 | E26: − | F26: − | G26: − | H26: 69 | I26: 420 | J26: − | K26: − | L26: − | M26: 67 | N26: 420 | O26: − | P26: − | R26: 41.87439222
D27: − | E27: − | F27: − | G27: − | H27: − | I27: 480 | J27: − | K27: − | L27: − | M27: 67 | N27: 480 | O27: − | P27: − | R27: 44.17469103
D28: − | E28: − | F28: − | G28: − | H28: − | I28: − | J28: − | K28: − | L28: − | M28: − | N28: 1440 | O28: − | P28: − | Q28: − | R28: 57.79619613
D29: BL-294, BL-295
D30: [SM]0 | E30: 80 mM | I30: [SM]0 | J30: 80 mM | N30: [SM]0 | O30: 80 mM
D31: [PhCO2H]0 | E31: 96 mM | F31: ← 1.2 equiv. | I31: [PhCO2H]0 | J31: 96 mM | K31: ← 1.2 equiv. | N31: [PhCO2H]0 | O31: 96 mM | P31: ← 1.2 equiv.
D32: [PhCON(t-Bu)Br]0 | E32: 96 mM | I32: [PhCON(t-Bu)Br]0 | J32: 96 mM | N32: [PhCON(t-Bu)Br]0 | O32: 96 mM
D33: [(DHQD)2PHAL]0 | E33: 0.8 mM | I33: [(DHQD)2PHAL]0 | J33: 0.8 mM | N33: [(DHQD)2PHAL]0 | O33: 0.8 mM
D34: [(4-Tol)2CO]0 | E34: 40 mM | F34: ← internal standard | I34: [(4-Tol)2CO]0 | J34: 40 mM | K34: ← internal standard | N34: [(4-Tol)2CO]0 | O34: 40 mM | P34: ← internal standard
D35: [P]0 (83:17 er) | E35: 0 mM | I35: [P]0 (83:17 er) | J35: 0 mM | N35: [P]0 (83:17 er) | O35: 0 mM
D36: [PhCONH2]0 | E36: 0 mM | I36: [PhCONH2]0 | J36: 0 mM | N36: [PhCONH2]0 | O36: 0 mM
D37: T (°C) = | E37: −30 | I37: T (°C) = | N37: T (°C) =
D39: Experiment 42 | I39: Experiment X | N39: Experiment X
D40: t (minutes) | E40: shifted t, SM | F40: shifted t, P | G40: [SM] (mM) | H40: [P] (mM) | I40: t (minutes) | J40: shifted t, SM | K40: shifted t, P | L40: [SM] (mM) | M40: [P] (mM) | N40: t (minutes) | O40: shifted t, SM | P40: shifted t, P | Q40: [SM] (mM) | R40: [P] (mM)
D41: 0 | E41: − | F41: − | G41: 80.13928361 | H41: 0 | I41: 0 | J41: − | K41: − | L41: − | M41: 0 | N41: 0 | O41: − | P41: −
D42: 5 | E42: − | F42: − | G42: 23.51146597 | H42: 30.76609709 | I42: 5 | J42: − | K42: − | L42: − | M42: 46.31647706 | N42: 5 | O42: − | P42: −
D43: 10 | E43: − | F43: − | G43: 14.97319202 | H43: 42.34029594 | I43: 10 | J43: − | K43: − | L43: − | M43: 58.29707516 | N43: 10 | O43: − | P43: −
D44: 15 | E44: − | F44: − | G44: 12.13620798 | H44: 49.59604228 | I44: 15 | J44: − | K44: − | L44: − | M44: 62.77895704 | N44: 15 | O44: − | P44: −
D45: 30 | E45: − | F45: − | G45: 3.933229357 | H45: 58.24327876 | I45: 30 | J45: − | K45: − | L45: − | M45: 65.8057741 | N45: 30 | O45: − | P45: −
D46: 45 | E46: − | F46: − | G46: 1.749776709 | H46: 61.4420592 | I46: 45 | J46: − | K46: − | L46: − | M46: 66.84030911 | N46: 45 | O46: − | P46: −
D47: 60 | E47: − | F47: − | G47: 0.8822121859 | H47: 62.4587759 | I47: 60 | J47: − | K47: − | L47: − | M47: 67 | N47: 60 | O47: − | P47: −
D48: 90 | E48: − | F48: − | G48: 0.67398895 | H48: 63.14421711 | I48: 90 | J48: − | K48: − | L48: − | M48: 67 | N48: 90 | O48: − | P48: −
D49: 120 | E49: − | F49: − | G49: 0.8547365301 | H49: 63.8863312 | I49: 120 | J49: − | K49: − | L49: − | M49: 67 | N49: 120 | O49: − | P49: −
D50: 180 | E50: − | F50: − | G50: 0.4100902876 | H50: 64 | I50: 180 | J50: − | K50: − | L50: − | M50: 67 | N50: 180 | O50: − | P50: −
D51: 240 | E51: − | F51: − | G51: 0 | H51: 64 | I51: 240 | J51: − | K51: − | L51: − | M51: 67 | N51: 240 | O51: − | P51: −
D52: 300 | E52: − | F52: − | G52: 0 | H52: 64 | I52: 300 | J52: − | K52: − | L52: − | M52: 67 | N52: 300 | O52: − | P52: −
D53: 360 | E53: − | F53: − | G53: 0 | H53: 64 | I53: 360 | J53: − | K53: − | L53: − | M53: 67 | N53: 360 | O53: − | P53: −
D54: 420 | E54: − | F54: − | G54: 0 | H54: 64 | I54: 420 | J54: − | K54: − | L54: − | M54: 67 | N54: 420 | O54: − | P54: −
D55: − | E55: − | F55: − | G55: − | H55: − | I55: 480 | J55: − | K55: − | L55: − | M55: 67 | N55: 480 | O55: − | P55: −
D56: − | E56: − | F56: − | G56: − | H56: − | I56: − | J56: − | K56: − | L56: − | M56: − | N56: − | O56: − | P56: − | Q56: − | R56: −
D82: Experiment 35 | H82: Experiment 37 | L82: Experiment 38
D83: [P]n - [P]n-1 | E83: [SM]n-1 - [SM]n | F83: subtraction | G83: [SM]0 - [P]n - [SM]n | H83: [P]n - [P]n-1 | I83: [SM]n-1 - [SM]n | J83: subtraction | K83: [SM]0 - [P]n - [SM]n | L83: [P]n - [P]n-1 | M83: [SM]n-1 - [SM]n | N83: subtraction | O83: [SM]0 - [P]n - [SM]n
D84: =H14-H13 -> 67.73539421 | E84: =G13-G14 ->  | F84: =E84-D84 ->  | G84: =$G$13-(H13-$H$13)-G13 ->  | H84: =M14-M13 -> 46.31647706 | I84: =L13-L14 ->  | J84: =I84-H84 ->  | K84: =$L$13-M13-L13+$M$13 ->  | L84: =R14-R13 -> 5.061046007 | M84: =Q13-Q14 -> 0 | N84: =M84-L84 -> -5.061046007 | O84: =$Q$13-R13-Q13+$R$13 -> 0
D85: =H15-H14 -> 1.264605793 | E85: =G14-G15 ->  | H85: 11.9805981 | J85: =I85-H85 ->  | L85: 1.546997756 | M85: 0 | N85: =M85-L85 -> -1.546997756 | O85: -5.061046007
D86: =H16-H15 -> 0 | E86: =G15-G16 ->  | H86: 4.481881885 | L86: -0.9051840844 | M86: 0 | N86: 0.9051840844 | O86: -6.608043763
D87: =H17-H16 -> 0 | E87: =G16-G17 ->  | H87: 3.026817059 | L87: 3.470465736 | M87: 0 | N87: -3.470465736 | O87: -5.702859678
D88: =H18-H17 -> 0 | E88: =G17-G18 ->  | H88: 1.034535008 | L88: 4.275365433 | M88: 0 | N88: -4.275365433 | O88: -9.173325414
H89: 0.1596908886 | L89: 0.9260833621 | M89: 0 | N89: -0.9260833621 | O89: -13.44869085
H90: 0 | L90: 4.426146658 | M90: 0 | N90: -4.426146658 | O90: -14.37477421
D91: =H21-H20 -> 0 | E91: =G20-G21 ->  | G91: =$G$13-(H20-$H$13)-G20 ->  | H91: 0 | L91: 2.618287611 | M91: 0 | N91: -2.618287611 | O91: -18.80092087
D92: 0 | H92: 0 | L92: 7.100311526 | M92: 0 | N92: -7.100311526 | O92: -21.41920848
D93: 0 | H93: 0 | L93: 3.38105859 | M93: 0 | N93: -3.38105859 | O93: -28.51952
D94: 0 | H94: 0 | L94: 4.117781632 | M94: 0 | N94: -4.117781632 | O94: -31.90057859
D95: 0 | H95: 0 | L95: 3.596828523 | M95: 0 | N95: -3.596828523 | O95: -36.01836023
D96: 0 | L96: 2.259203472 | M96: 0 | N96: -2.259203472 | O96: -39.61518875
L97: 2.300298808 | M97: 0 | N97: -2.300298808 | O97: -41.87439222
L98: 13.6215051 | O98: -44.17469103
O99: =$Q$13-R28-Q28+$R$13 -> 
D101: Experiment 42 | H101: Experiment X | L101: Experiment X
D102: [P]n - [P]n-1 | E102: [SM]n-1 - [SM]n | F102: subtraction | G102: [SM]0 - [P]n - [SM]n | H102: [P]n - [P]n-1 | I102: [SM]n-1 - [SM]n | J102: subtraction | K102: [SM]0 - [P]n - [SM]n | L102: [P]n - [P]n-1 | M102: [SM]n-1 - [SM]n | N102: subtraction | O102: [SM]0 - [P]n - [SM]n

Sheet alternative bromenium
D1: BL-074, BL-076 + BL-091 + BL-103 | G1: BL-169, BL-174 − not reproducible | K1: BL-172, BL-175 − not reproducible
D2: [SM]0 | E2: 80 mM | G2: [SM]0 | H2: 80 mM | J2: (S)-1 | K2: [SM]0 | L2: 80 mM | N2: (R)-1
D3: [PhCO2H]0 | E3: 96 mM | G3: [PhCO2H]0 | H3: 96 mM | K3: [PhCO2H]0 | L3: 96 mM
D4: [PhCONHBr]0 | E4: 96 mM | G4: [(S)-1]0 | H4: 96 mM | K4: [(R)-1]0 | L4: 96 mM
D5: [(DHQD)2PHAL]0 | E5: 8 mM | G5: [(DHQD)2PHAL]0 | H5: 8 mM | K5: [(DHQD)2PHAL]0 | L5: 8 mM
D6: [(4-Tol)2CO]0 | E6: 40 mM | G6: [(4-Tol)2CO]0 | H6: 40 mM | K6: [(4-Tol)2CO]0 | L6: 40 mM
D7: [P]0 (83:17 er) | E7: 0 mM | G7: [P]0 (83:17 er) | H7: 0 mM | K7: [P]0 (83:17 er) | L7: 0 mM
D8: [PhCONH2]0 | E8: 0 mM | G8: [PhCONH2]0 | H8: 0 mM | K8: [PhCONH2]0 | L8: 0 mM
D10: Experiment 1 | G10: Experiment 24 | K10: Experiment 25
D11: t (hours) | E11: [SM] (mM) | F11: [P] (mM) | G11: t (hours) | H11: [SM] (mM) | I11: [P] (mM) | J11: [dibromide] (mM) | K11: t (hours) | L11: [SM] (mM) | M11: [P] (mM) | N11: [dibromide] (mM)
D12: =0/60 -> 0 | E12: 81.07808246 | F12: 0 | G12: =0/60 -> 0 | H12: 80.22462896 | I12: 0 | J12: 0 | K12: =0/60 -> 0 | L12: 80.30997431 | M12: 0 | N12: 0
D13: =5/60 -> 0.08333333333 | E13: 61.3271683 | F13: 17.09311471 | G13: =5/60 -> 0.08333333333 | H13: 12.62077066 | I13: 7.09864877 | J13: 25 | K13: =5/60 -> 0.08333333333 | L13: 0.8819319086 | M13: 26.33709483 | N13: 5.26
D14: =10/60 -> 0.1666666667 | E14: 54.1675482 | F14: 24.35579875 | G14: =10/60 -> 0.1666666667 | H14: 0 | I14: 10.86348619 | J14: 26 | K14: =10/60 -> 0.1666666667 | L14: 5.160953649 | M14: 34.5005893 | N14: 3.99
D15: =15/60 -> 0.25 | E15: 49.32505523 | F15: 28.84129147 | G15: =15.5/60 -> 0.2583333333 | H15: 7.70220246 | I15: 14.19124419 | J15: 26 | K15: =15/60 -> 0.25 | L15: 0.4915404731 | M15: 37.2412511 | N15: 3.96
D16: =30/60 -> 0.5 | E16: 41.06044687 | F16: 36.35950079 | G16: =30/60 -> 0.5 | H16: 2.654895268 | I16: 19.56509169 | J16: 26 | K16: =30/60 -> 0.5 | L16: 0 | M16: 42.65449544 | N16: 3.61
D17: =45/60 -> 0.75 | E17: 36.50137066 | F17: 40.6830327 | G17: =45/60 -> 0.75 | H17: 0 | I17: 22.42031023 | J17: 26 | K17: =45/60 -> 0.75 | L17: 0 | M17: 44.75780047 | N17: 3
D18: =60/60 -> 1 | E18: 32.90884116 | F18: 43.71985703 | G18: =60/60 -> 1 | H18: 4.833686123 | I18: 25.01653768 | J18: 26 | K18: =60/60 -> 1 | L18: 0 | M18: 46.13259256 | N18: 3
D19: =90/60 -> 1.5 | E19: 28.38880084 | F19: 47.47004976 | G19: =90/60 -> 1.5 | H19: 2.32135244 | I19: 27.41846579 | J19: 26 | K19: =90/60 -> 1.5 | L19: 0 | M19: 47.53807256 | N19: 3
D20: =120/60 -> 2 | E20: 25.73896822 | F20: 50.11749134 | G20: =120/60 -> 2 | H20: 0 | I20: 28.31352985 | J20: 26 | K20: =120/60 -> 2 | L20: 0 | M20: 47.90904694 | N20: 3
D21: =180/60 -> 3 | E21: 21.67582487 | F21: 53.11085235 | G21: =180/60 -> 3 | H21: 0.643852726 | I21: 30.3944525 | J21: 26 | K21: =180/60 -> 3 | L21: 0 | M21: 48 | N21: 3
D22: =240/60 -> 4 | E22: 18.95388037 | F22: 55.3006173 | G22: =240/60 -> 4 | H22: 0.5621423986 | I22: 30.86000941 | J22: 26 | K22: =240/60 -> 4 | L22: 0 | M22: 48 | N22: 3
D23: =300/60 -> 5 | E23: 17.04173528 | F23: 56.74569813 | G23: =300/60 -> 5 | H23: 0 | I23: 31.19349528 | J23: 26 | K23: =300/60 -> 5 | L23: 0 | M23: 48 | N23: 3
D24: =360/60 -> 6 | E24: 15.31642023 | F24: 58.23180412 | G24: =360/60 -> 6 | H24: 0 | I24: 30.97876713 | J24: 26 | K24: =360/60 -> 6 | L24: 0 | M24: 48 | N24: 3
D25: =420/60 -> 7 | E25: 14.23209072 | F25: 58.88950864 | G25: =420/60 -> 7 | H25: 0 | I25: 31.5759666 | J25: 26 | K25: =420/60 -> 7 | L25: 0 | M25: 48 | N25: 3
D26: =480/60 -> 8 | E26: 13.17071068 | F26: 59.54344061 | G26: =480/60 -> 8 | H26: 0 | I26: 31.46841191 | J26: 26 | K26: =480/60 -> 8 | L26: 0 | M26: 48 | N26: 3
D27: BL-224, BL-230 | G27: BL-226, BL-256 | K27: BL-270, BL-272
D28: [SM]0 | E28: 80 mM | G28: [SM]0 | H28: 80 mM | K28: [SM]0 | L28: 80 mM
D29: [PhCO2H]0 | E29: 96 mM | G29: [PhCO2H]0 | H29: 96 mM | K29: [PhCO2H]0 | L29: 96 mM
D30: [PhCON(t-Bu)Br]0 | E30: 96 mM | G30: [PhCON(t-Bu)Br]0 | H30: 96 mM | K30: [PhCON(t-Bu)Br]0 | L30: 96 mM
D31: [(DHQD)2PHAL]0 | E31: 8 mM | G31: [(DHQD)2PHAL]0 | H31: 0.8 mM | K31: [(DHQD)2PHAL]0 | L31: 0.08 mM
D32: [(4-Tol)2CO]0 | E32: 40 mM | G32: [(4-Tol)2CO]0 | H32: 40 mM | K32: [(4-Tol)2CO]0 | L32: 40 mM
D33: [P]0 (83:17 er) | E33: 0 mM | G33: [P]0 (83:17 er) | H33: 0 mM | K33: [P]0 (83:17 er) | L33: 0 mM
D34: [PhCONH2]0 | E34: 0 mM | G34: [PhCONH2]0 | H34: 0 mM | K34: [PhCONH2]0 | L34: 0 mM
D36: Experiment 34 | G36: Experiment 35 | K36: Experiment 36
D37: t (hours) | E37: [SM] (mM) | F37: [P] (mM) | G37: t (hours) | H37: [SM] (mM) | I37: [P] (mM) | J37: [dibromide] (mM) | K37: t (hours) | L37: [SM] (mM) | M37: [P] (mM) | N37: [dibromide] (mM)
D38: =0/60 -> 0 | E38: 79.96859291 | F38: 0 | G38: =0/60 -> 0 | H38: 80.18195629 | I38: 0 | J38: − | K38: =0/60 -> 0 | L38: − | M38: 0
D39: =5/60 -> 0.08333333333 | E39: 3.166258471 | F39: 70.01555915 | G39: =5/60 -> 0.08333333333 | H39: 3.547273925 | I39: 67.73539421 | J39: − | K39: =5/60 -> 0.08333333333 | L39: − | M39: 33.24157991
D40: =10/60 -> 0.1666666667 | E40: 1.945300267 | F40: 70.46697744 | G40: =10/60 -> 0.1666666667 | H40: 2.326567521 | I40: 69 | J40: − | K40: =10/60 -> 0.1666666667 | L40: − | M40: 47.02889014
D41: =15/60 -> 0.25 | E41: 1.464952938 | F41: 70.62254724 | G41: =15/60 -> 0.25 | H41: 2.099869649 | I41: 69 | J41: − | K41: =15/60 -> 0.25 | L41: − | M41: 55.57406165
D42: =30/60 -> 0.5 | E42: 0.7373091233 | F42: 71.47777686 | G42: =30/60 -> 0.5 | H42: 1.948163153 | I42: 69 | J42: − | K42: =30/60 -> 0.5 | L42: − | M42: 62.40243272
D43: =45/60 -> 0.75 | E43: 0.6637568965 | F43: 72 | G43: =45/60 -> 0.75 | H43: 1.890096727 | I43: 69 | J43: − | K43: =45/60 -> 0.75 | L43: − | M43: 63.45584788
D44: =60/60 -> 1 | E44: 0.598166466 | G44: =60/60 -> 1 | J44: − | K44: =60/60 -> 1 | L44: − | M44: 62.98782626
D45: =90/60 -> 1.5 | E45: 0.5287084331 | F45: 72 | G45: =90/60 -> 1.5 | H45: 1.833323625 | I45: 69 | J45: − | K45: =90/60 -> 1.5 | L45: − | M45: 63
D46: =120/60 -> 2 | E46: 0.573472276 | F46: 72 | G46: =120/60 -> 2 | H46: 1.812898489 | I46: 69 | J46: − | K46: =120/60 -> 2 | L46: − | M46: 63
D47: =180/60 -> 3 | E47: 0.4982214358 | F47: 72 | G47: =180/60 -> 3 | H47: 1.812119461 | I47: 69 | J47: − | K47: =180/60 -> 3 | L47: − | M47: 63
D48: =240/60 -> 4 | E48: 0.4230280046 | F48: 72 | G48: =240/60 -> 4 | H48: 1.843487701 | I48: 69 | J48: − | K48: =240/60 -> 4 | L48: − | M48: 63
D49: =300/60 -> 5 | E49: 0.4747204041 | F49: 72 | G49: =300/60 -> 5 | H49: 1.828144635 | I49: 69 | J49: − | K49: =300/60 -> 5 | L49: − | M49: 63
D50: =360/60 -> 6 | E50: 0.4487214558 | F50: 72 | G50: =360/60 -> 6 | H50: 1.741463214 | I50: 69 | J50: − | K50: =360/60 -> 6 | L50: − | M50: 63
D51: =420/60 -> 7 | E51: 0.4407291209 | F51: 72 | G51: =420/60 -> 7 | H51: 1.678928835 | I51: 69 | J51: − | K51: =420/60 -> 7 | L51: − | M51: 63
K52: =480/60 -> 8 | L52: − | M52: 63
D53: BL-312, BL-314 | G53: BL-397, BL-398
D54: [SM]0 | E54: 80 mM | G54: [SM]0 | H54: 80 mM | K54: [SM]0 | L54: 80 mM
D55: [PhCO2H]0 | E55: 96 mM | G55: [PhCO2H]0 | H55: 96 mM | K55: [PhCO2H]0 | L55: 96 mM
D56: [PhCONMeBr]0 | E56: 96 mM | G56: [Br-2-pyrrolidone]0 | H56: 96 mM | K56: [PhCON(t-Bu)Br]0 | L56: 96 mM
D57: [(DHQD)2PHAL]0 | E57: 8 mM | G57: [(DHQD)2PHAL]0 | H57: 8 mM | K57: [(DHQD)2PHAL]0 | L57: 8 mM
D58: [(4-Tol)2CO]0 | E58: 40 mM | G58: [(4-Tol)2CO]0 | H58: 40 mM | K58: [(4-Tol)2CO]0 | L58: 40 mM
D59: [P]0 (83:17 er) | E59: 0 mM | G59: [P]0 (83:17 er) | H59: 0 mM | K59: [P]0 (83:17 er) | L59: 0 mM
D60: [PhCONH2]0 | E60: 0 mM | G60: [PhCONH2]0 | H60: 0 mM | K60: [PhCONH2]0 | L60: 0 mM
D62: Experiment 43 | G62: Experiment 45 | K62: Experiment X
D63: t (hours) | E63: [SM] (mM) | F63: [P] (mM) | G63: t (hours) | H63: [SM] (mM) | I63: [P] (mM) | J63: [dibromide] (mM) | K63: t (minutes) | L63: [SM] (mM) | M63: [P] (mM) | N63: [dibromide] (mM)
D64: =0/60 -> 0 | E64: 80.22462896 | F64: 0 | G64: =0/60 -> 0 | H64: − | I64: 0 | J64: −
D65: =5/60 -> 0.08333333333 | E65: 12.13341964 | F65: 56.47163539 | G65: =5/60 -> 0.08333333333 | H65: − | I65: 2.158557111 | J65: −
D66: =10/60 -> 0.1666666667 | E66: 10.61146903 | F66: 58.5939779 | G66: =10/60 -> 0.1666666667 | H66: − | I66: 3.436984061 | J66: −
D67: =15/60 -> 0.25 | E67: 9.946035651 | F67: 58.75887649 | G67: =15/60 -> 0.25 | H67: − | I67: 4.612119328 | J67: −
D68: =30/60 -> 0.5 | E68: 9.606329749 | F68: 58.95527829 | G68: =30/60 -> 0.5 | H68: − | I68: 6.907739627 | J68: −
D69: =45/60 -> 0.75 | E69: 9 | F69: 57.6822391 | G69: =45/60 -> 0.75 | H69: − | I69: 9.526626173 | J69: −
D70: =60/60 -> 1 | E70: 9 | F70: 58.8713897 | G70: =60/60 -> 1 | H70: − | I70: 11.05654814 | J70: −
D71: =90/60 -> 1.5 | E71: 9 | F71: 59.10709566 | G71: =90/60 -> 1.5 | H71: − | I71: 13.01917091 | J71: −
D72: =120/60 -> 2 | E72: 8.977480742 | F72: 58.33318668 | G72: =120/60 -> 2 | H72: − | I72: 14.97245325 | J72: −
D73: =180/60 -> 3 | E73: 8.730686826 | F73: 58.11083094 | G73: =180/60 -> 3 | H73: − | I73: 17.49646438 | J73: −
D74: =240/60 -> 4 | E74: 8.010778853 | F74: 58.20426609 | G74: =240/60 -> 4 | H74: − | I74: 20.0472861 | J74: −
D75: =300/60 -> 5 | E75: 8.020858411 | F75: 58.74501436 | G75: =300/60 -> 5 | H75: − | I75: 21.69280732 | J75: −
D76: =360/60 -> 6 | E76: 8 | F76: 58 | G76: =360/60 -> 6 | H76: − | I76: 22.79245404 | J76: −
D77: =420/60 -> 7 | E77: 8 | F77: 58 | G77: =420/60 -> 7 | H77: − | I77: 23.85384097 | J77: −
D78: =480/60 -> 8 | E78: 8 | F78: 58 | G78: =480/60 -> 8 | H78: − | I78: 25.27935128 | J78: −
D106: Experiment 1 | H106: Experiment 24 | L106: Experiment 25
D107: [P]n - [P]n-1 | E107: [SM]n-1 - [SM]n | F107: subtraction | G107: [SM]0 - [P]n - [SM]n | H107: [P]n - [P]n-1 | I107: [SM]n-1 - [SM]n | J107: subtraction | K107: [SM]0 - [P]n - [SM]n - [dibromide]n | L107: [P]n - [P]n-1 | M107: [SM]n-1 - [SM]n | N107: subtraction | O107: [SM]0 - [P]n - [SM]n
D108: =F13-F12 -> 17.09311471 | E108: =E12-E13 -> 19.75091416 | F108: =E108-D108 -> 2.657799452 | G108: =$E$12-(E12+F12) -> 0 | H108: =I13-I12 -> 7.09864877 | I108: =H12-H13 -> 67.60385831 | J108: =I108-H108 -> 60.50520954 | K108: =$H$12-(H12+I12)-J12 -> 0 | L108: =M13-M12 -> 26.33709483 | M108: =L12-L13 -> 79.4280424 | N108: =M108-L108 -> 53.09094757 | O108: =$L$12-(L12+M12) -> 0
D109: 7.262684045 | E109: 7.159620101 | F109: =E109-D109 -> -0.1030639437 | G109: 2.657799452 | H109: 3.764837416 | I109: 12.62077066 | J109: 8.855933239 | K109: 35.50520954 | L109: 8.163494465 | M109: -4.279021741 | N109: =M109-L109 -> -12.44251621 | O109: 53.09094757
D110: 4.485492719 | E110: 4.842492972 | F110: 0.3570002528 | G110: 2.554735508 | H110: 3.327758003 | I110: -7.70220246 | J110: -11.02996046 | K110: 43.36114277 | L110: 2.7406618 | M110: 4.669413176 | N110: 1.928751377 | O110: 40.64843136
D111: 7.518209314 | E111: 8.264608355 | F111: 0.7463990414 | G111: 2.911735761 | H111: 5.373847501 | I111: 5.047307192 | J111: =I111-H111 -> -0.3265403091 | K111: 32.33118231 | L111: 5.413244346 | M111: 0.4915404731 | N111: -4.921703873 | O111: 42.57718274
D112: 4.323531912 | E112: 4.559076211 | F112: 0.2355442988 | G112: 3.658134802 | H112: 2.855218543 | I112: 2.654895268 | J112: -0.2003232751 | K112: 32.004642 | L112: 2.103305029 | M112: 0 | N112: -2.103305029 | O112: 37.65547887
D113: 3.036824332 | E113: 3.592529502 | F113: 0.5557051695 | G113: 3.893679101 | H113: 2.596227444 | I113: -4.833686123 | J113: -7.429913568 | K113: 31.80431873 | L113: 1.37479209 | M113: 0 | N113: -1.37479209 | O113: 35.55217384
D114: 3.750192725 | E114: 4.520040317 | F114: 0.7698475918 | G114: 4.449384271 | H114: 2.401928109 | I114: 2.512333683 | J114: 0.1104055742 | K114: 24.37440516 | L114: 1.405480001 | M114: 0 | N114: -1.405480001 | O114: 34.17738175
D115: 2.647441581 | E115: 2.649832623 | F115: 0.002391041604 | G115: 5.219231862 | H115: 0.8950640671 | I115: 2.32135244 | J115: 1.426288373 | K115: 24.48481073 | L115: 0.3709743736 | M115: 0 | N115: -0.3709743736 | O115: 32.77190175
D116: 2.99336101 | E116: 4.063143352 | F116: 1.069782342 | G116: 5.221622904 | H116: 2.080922647 | I116: -0.643852726 | J116: -2.724775373 | K116: 25.91109911 | L116: 0.09095306188 | M116: 0 | N116: -0.09095306188 | O116: 32.40092737
D117: 2.189764955 | E117: 2.721944493 | F117: 0.5321795384 | G117: 6.291405246 | H117: 0.4655569058 | I117: 0.08171032743 | J117: -0.3838465784 | K117: 23.18632373 | L117: 0 | M117: 0 | N117: 0 | O117: 32.30997431
D118: 1.445080831 | E118: 1.912145089 | F118: 0.4670642582 | G118: 6.823584785 | H118: 0.3334858686 | I118: 0.5621423986 | J118: 0.22865653 | K118: 22.80247716 | L118: 0 | M118: 0 | N118: 0 | O118: 32.30997431
D119: 1.486105983 | E119: 1.725315049 | F119: 0.2392090661 | G119: 7.290649043 | H119: -0.214728141 | I119: 0 | J119: 0.214728141 | K119: 23.03113369 | L119: 0 | M119: 0 | N119: 0 | O119: 32.30997431
D120: 0.657704527 | E120: 1.084329512 | F120: 0.4266249853 | G120: 7.529858109 | H120: 0.5971994665 | I120: 0 | J120: -0.5971994665 | K120: 23.24586183 | L120: 0 | M120: 0 | N120: 0 | O120: 32.30997431
D121: 0.6539319663 | E121: 1.061380047 | F121: 0.4074480808 | G121: 7.956483094 | H121: -0.1075546903 | I121: 0 | J121: 0.1075546903 | K121: 22.64866236 | L121: 0 | M121: 0 | N121: 0 | O121: 32.30997431
G122: 8.363931175 | K122: 22.75621705 | O122: 32.30997431
D124: Experiment 34 | H124: Experiment 44 | L124: Experiment X
D125: [P]n - [P]n-1 | E125: [SM]n-1 - [SM]n | F125: subtraction | G125: [SM]0 - [P]n - [SM]n | H125: [P]n - [P]n-1 | I125: [SM]n-1 - [SM]n | J125: subtraction | K125: [SM]0 - [P]n - [SM]n - [dibromide]n | L125: [P]n - [P]n-1 | M125: [SM]n-1 - [SM]n | N125: subtraction | O125: [SM]0 - [P]n - [SM]n
D126: =F39-F38 -> 70.01555915 | E126: =E38-E39 -> 76.80233444 | F126: =E126-D126 -> 6.786775287 | G126: =$E$38-F38-E38 -> 0 | H126: =I65-I64 -> 2.158557111 | I126: =H64-H65 ->  | J126: =I126-H126 ->  | K126: N/A
D127: =F40-F39 -> 0.4514182863 | E127: 1.220958204 | F127: =E127-D127 -> 0.7695399177 | G127: =$E$38-F39-E39 -> 6.786775287 | H127: =I66-I65 -> 1.278426951 | I127: =H65-H66 ->  | J127: =I127-H127 ->  | K127: N/A
E128: 0.4803473292 | F128: 0.4803473292 | G128: 7.556315205 | H128: 1.175135267 | K128: N/A
E129: 0.7276438148 | F129: 0.7276438148 | H129: 2.295620299 | K129: N/A
D130: =F43-F42 -> 0.5222231373 | E130: 0.07355222677 | F130: -0.4486709106 | G130: 7.753506925 | H130: 2.618886546 | K130: N/A
E131: 0.06559043051 | F131: 0.06559043051 | G131: 7.304836015 | H131: 1.529921971 | K131: N/A
E132: 0.06945803283 | F132: 0.06945803283 | H132: 1.962622767 | K132: N/A
D133: =F46-F45 -> 0 | E133: -0.04476384286 | F133: -0.04476384286 | G133: 7.439884478 | H133: 1.953282338 | K133: N/A
D134: 0 | E134: 0.07525084022 | F134: 0.07525084022 | G134: 7.395120635 | H134: 2.524011128 | K134: N/A
D135: 0 | E135: 0.0751934312 | F135: 0.0751934312 | G135: 7.470371475 | H135: 2.550821728 | K135: N/A
D136: 0 | E136: -0.0516923995 | F136: -0.0516923995 | G136: 7.545564907 | H136: 1.645521213 | K136: N/A
D137: 0 | E137: 0.02599894826 | F137: 0.02599894826 | G137: 7.493872507 | H137: 1.099646722 | K137: N/A
D138: 0 | E138: 0.007992334924 | F138: 0.007992334924 | G138: 7.519871455 | H138: 1.061386926 | K138: N/A
G139: 7.52786379 | H139: 1.425510313 | K139: N/A

Sheet New Table (hidden)
A1: Experiment 1 | E1: Experiment 2 | I1: Experiment 3 | M1: Experiment 4 | Q1: Experiment 5 | U1: Experiment 6 | Y1: Experiment 7 | AC1: Experiment 8 | AG1: Experiment 9 | AK1: Experiment 10 | AO1: Experiment 11 | AS1: Experiment 12 | AW1: Experiment 13 | BA1: Experiment 26 | BE1: Experiment 30
A2: t (seconds) | B2: [SM]/[SM]0 (mM) | C2: [P]/[SM]0 (mM) | D2: ([SM]0 - [SM] - [P])/[SM]0 (mM) | E2: t (seconds) | F2: [SM]/[SM]0 (mM) | G2: [P]/[SM]0 (mM) | H2: ([SM]0 - [SM] - [P])/[SM]0 (mM) | I2: t (seconds) | J2: [SM]/[SM]0 (mM) | K2: [P]/[SM]0 (mM) | L2: ([SM]0 - [SM] - [P])/[SM]0 (mM) | M2: t (seconds) | N2: [SM]/[SM]0 (mM) | O2: [P]/[SM]0 (mM) | P2: ([SM]0 - [SM] - [P])/[SM]0 (mM) | Q2: t (seconds) | R2: [SM]/[SM]0 (mM) | S2: [P]/[SM]0 (mM) | T2: ([SM]0 - [SM] - [P])/[SM]0 (mM) | U2: t (seconds) | V2: [SM]/[SM]0 (mM) | W2: [P]/[SM]0 (mM) | X2: ([SM]0 - [SM] - [P])/[SM]0 (mM) | Y2: t (seconds) | Z2: [SM]/[SM]0 (mM) | AA2: [P]/[SM]0 (mM) | AB2: ([SM]0 - [SM] - [P])/[SM]0 (mM) | AC2: t (seconds) | AD2: [SM]/[SM]0 (mM) | AE2: [P]/[SM]0 (mM) | AF2: ([SM]0 - [SM] - [P])/[SM]0 (mM) | AG2: t (seconds) | AH2: [SM]/[SM]0 (mM) | AI2: [P]/[SM]0 (mM) | AJ2: ([SM]0 - [SM] - [P])/[SM]0 (mM) | AK2: t (seconds) | AL2: [SM]/[SM]0 (mM) | AM2: [P]/[SM]0 (mM) | AN2: ([SM]0 - [SM] - [P])/[SM]0 (mM) | AO2: t (seconds) | AP2: [SM]/[SM]0 (mM) | AQ2: [P]/[SM]0 (mM) | AR2: ([SM]0 - [SM] - [P])/[SM]0 (mM) | AS2: t (seconds) | AT2: [SM]/[SM]0 (mM) | AU2: [P]/[SM]0 (mM) | AV2: ([SM]0 - [SM] - [P])/[SM]0 (mM) | AW2: t (seconds) | AX2: [SM]/[SM]0 (mM) | AY2: [P]/[SM]0 (mM) | AZ2: ([SM]0 - [SM] - [P])/[SM]0 (mM) | BA2: t (seconds) | BB2: [SM]/[SM]0 (mM) | BC2: [P]/[SM]0 (mM) | BD2: ([SM]0 - [SM] - [P])/[SM]0 (mM) | BE2: t (seconds) | BF2: [SM]/[SM]0 (mM) | BG2: [P]/[SM]0 (mM) | BH2: ([SM]0 - [SM] - [P])/[SM]0 (mM)
A3: =60*'P inhibition, or deactivation'!D12 -> 0 | B3: ='P inhibition, or deactivation'!F12/'P inhibition, or deactivation'!$F$12 -> 1 | C3: ='P inhibition, or deactivation'!G12/'P inhibition, or deactivation'!$F$12 -> 0 | D3: =('P inhibition, or deactivation'!H56)/'P inhibition, or deactivation'!$F$12 -> 0 | E3: =60*'P inhibition, or deactivation'!H12 -> 0 | F3: ='P inhibition, or deactivation'!K12/'P inhibition, or deactivation'!$K$12 -> 1 | G3: ='P inhibition, or deactivation'!L12/'P inhibition, or deactivation'!$K$12 -> 0.9708737864 | H3: =('P inhibition, or deactivation'!L56)/'P inhibition, or deactivation'!$K$12 -> 0 | I3: =60*'P inhibition, or deactivation'!M12 -> 0 | J3: ='P inhibition, or deactivation'!P12/'P inhibition, or deactivation'!$P$12 -> 1 | K3: ='P inhibition, or deactivation'!Q12/'P inhibition, or deactivation'!$P$12 -> 2.884615385 | L3: ='P inhibition, or deactivation'!P56/'P inhibition, or deactivation'!$P$12 -> 0 | M3: =60*'P spiked reactions'!D12 -> 0 | N3: ='P spiked reactions'!G12/'P spiked reactions'!$G$12 -> 1 | O3: ='P spiked reactions'!H12/'P spiked reactions'!$G$12 -> 0.9616642311 | P3: =('P spiked reactions'!G55)/'P spiked reactions'!$G$12 -> 0 | Q3: =60*'P spiked reactions'!I12 -> 0 | R3: ='P spiked reactions'!L12/'P spiked reactions'!$L$12 -> 1 | S3: ='P spiked reactions'!M12/'P spiked reactions'!$L$12 -> 0.9827427043 | T3: =('P spiked reactions'!K55)/'P spiked reactions'!$L$12 -> 0 | U3: =60*'P spiked reactions'!N12 -> 0 | V3: ='P spiked reactions'!Q12/'P spiked reactions'!$Q$12 -> 1 | W3: ='P spiked reactions'!R12/'P spiked reactions'!$Q$12 -> 0.9592808296 | X3: ='P spiked reactions'!O55/'P spiked reactions'!$Q$12 -> 0 | Y3: =60*60*'IS order'!J12 -> 0 | Z3: ='IS order'!M12/'IS order'!$M$12 -> 1 | AA3: ='IS order'!N12/'IS order'!$M$12 -> 0 | AB3: ='IS order'!L55/'IS order'!$M$12 -> 0 | AC3: =60*60*'cat order'!J12 -> 0 | AD3: ='cat order'!M12/'cat order'!$M$12 -> 1 | AE3: ='cat order'!N12/'cat order'!$M$12 -> 0 | AF3: =('cat order'!K55)/'cat order'!$M$12 -> 0 | AG3: =60*60*'PhCONHBr order'!J12 -> 0 | AH3: ='PhCONHBr order'!M12/'PhCONHBr order'!$M$12 -> 1 | AI3: ='PhCONHBr order'!N12/'PhCONHBr order'!$M$12 -> 0 | AJ3: =('PhCONHBr order'!L54)/'PhCONHBr order'!$M$12 -> 0 | AK3: =60*60*#REF! ->  | AL3: =#REF!/#REF! ->  | AM3: =#REF!/#REF! ->  | AN3: =(#REF!)/#REF! ->  | AO3: =60*60*'SM order'!J12 -> 0 | AP3: ='SM order'!M12/'SM order'!$M$12 -> 1 | AQ3: ='SM order'!O12/'SM order'!$M$12 -> 0 | AR3: ='SM order'!L54/('SM order'!$M$12) -> 0 | AS3: =60*60*'cat order'!P12 -> 0 | AT3: ='cat order'!S12/'cat order'!$S$12 -> 1 | AU3: ='cat order'!T12/'cat order'!$S$12 -> 0 | AV3: =('cat order'!O55)/'cat order'!$S$12 -> 0 | AW3: =0*60*60 -> 0 | AX3: =#REF!/#REF! ->  | AY3: =#REF!/#REF! ->  | AZ3: =#REF!/#REF! ->  | BA3: 0 | BB3: ='5 equiv. BzOH cat order'!G12/'5 equiv. BzOH cat order'!$G$12 -> 1 | BC3: ='5 equiv. BzOH cat order'!H12/'5 equiv. BzOH cat order'!$G$12 -> 0 | BD3: ='5 equiv. BzOH cat order'!G123/'5 equiv. BzOH cat order'!$G$12 -> 0 | BE3: 0 | BG3: ='5 equiv. BzOH cat order'!T12/80 -> 0 | BH3: N/A
A4: =60*'P inhibition, or deactivation'!D13 -> 5 | B4: ='P inhibition, or deactivation'!F13/'P inhibition, or deactivation'!$F$12 -> 0.7552606933 | C4: ='P inhibition, or deactivation'!G13/'P inhibition, or deactivation'!$F$12 -> 0.2105063388 | D4: =('P inhibition, or deactivation'!H57)/'P inhibition, or deactivation'!$F$12 -> 0.03423296787 | E4: =60*'P inhibition, or deactivation'!H15 -> 15 | F4: ='P inhibition, or deactivation'!K15/'P inhibition, or deactivation'!$K$12 -> 0.754412497 | G4: ='P inhibition, or deactivation'!L15/'P inhibition, or deactivation'!$K$12 -> 1.228665498 | H4: =('P inhibition, or deactivation'!L57)/'P inhibition, or deactivation'!$K$12 -> 0 | I4: =60*'P inhibition, or deactivation'!M13 -> 15 | J4: ='P inhibition, or deactivation'!P13/'P inhibition, or deactivation'!$P$12 -> 0.8599266916 | K4: ='P inhibition, or deactivation'!Q13/'P inhibition, or deactivation'!$P$12 -> 3.039292092 | L4: ='P inhibition, or deactivation'!P57/'P inhibition, or deactivation'!$P$12 -> -0.01460339869 | M4: =60*'P spiked reactions'!D13 -> 15 | N4: ='P spiked reactions'!G13/'P spiked reactions'!$G$12 -> 0.9042588416 | O4: ='P spiked reactions'!H13/'P spiked reactions'!$G$12 -> 1.044010694 | P4: =('P spiked reactions'!G56)/'P spiked reactions'!$G$12 -> 0.01339469529 | Q4: =60*'P spiked reactions'!I13 -> 10 | R4: ='P spiked reactions'!L13/'P spiked reactions'!$L$12 -> 0.7990081715 | S4: ='P spiked reactions'!M13/'P spiked reactions'!$L$12 -> 1.18470307 | T4: =('P spiked reactions'!K56)/'P spiked reactions'!$L$12 -> -0.0009685372898 | U4: =60*'P spiked reactions'!N13 -> 5 | V4: ='P spiked reactions'!Q13/'P spiked reactions'!$Q$12 -> 0.9398013774 | W4: ='P spiked reactions'!R13/'P spiked reactions'!$Q$12 -> 0.9944351276 | X4: ='P spiked reactions'!O56/'P spiked reactions'!$Q$12 -> 0.02504432467 | Y4: =60*60*'IS order'!J13 -> 300 | Z4: ='IS order'!M13/'IS order'!$M$12 -> 0.7555112912 | AA4: ='IS order'!N13/'IS order'!$M$12 -> 0.2118273934 | AB4: ='IS order'!L56/'IS order'!$M$12 -> 0.03266131541 | AC4: =60*60*'cat order'!J13 -> 300 | AD4: ='cat order'!M13/'cat order'!$M$12 -> 0.7937840685 | AE4: ='cat order'!N13/'cat order'!$M$12 -> 0.1702714759 | AF4: =('cat order'!K56)/'cat order'!$M$12 -> 0.0359444556 | AG4: =60*60*'PhCONHBr order'!J13 -> 300 | AH4: ='PhCONHBr order'!M13/'PhCONHBr order'!$M$12 -> 0.8066900727 | AI4: ='PhCONHBr order'!N13/'PhCONHBr order'!$M$12 -> 0.1610001513 | AJ4: =('PhCONHBr order'!L55)/'PhCONHBr order'!$M$12 -> 0.03230977603 | AK4: =60*60*#REF! ->  | AL4: =#REF!/#REF! ->  | AM4: =#REF!/#REF! ->  | AN4: =(#REF!)/#REF! ->  | AO4: =60*60*'SM order'!J13 -> 300 | AP4: ='SM order'!M13/'SM order'!$M$12 -> 0.6463286709 | AQ4: ='SM order'!O13/'SM order'!$M$12 -> 0.3116395787 | AR4: ='SM order'!L55/('SM order'!$M$12) -> 0.04203175038 | AS4: =60*60*'cat order'!P13 -> 300 | AT4: ='cat order'!S13/'cat order'!$S$12 -> 0.8601997554 | AU4: ='cat order'!T13/'cat order'!$S$12 -> 0.08689285521 | AV4: =('cat order'!O56)/'cat order'!$S$12 -> 0.05290738934 | AW4: =0.0833333333333333*60*60 -> 300 | AX4: =#REF!/#REF! ->  | AY4: =#REF!/#REF! ->  | AZ4: =#REF!/#REF! ->  | BA4: 300 | BB4: ='5 equiv. BzOH cat order'!G13/'5 equiv. BzOH cat order'!$G$12 -> 0.4283851824 | BC4: ='5 equiv. BzOH cat order'!H13/'5 equiv. BzOH cat order'!$G$12 -> 0.4528481962 | BD4: ='5 equiv. BzOH cat order'!G124/'5 equiv. BzOH cat order'!$G$12 -> 0.1187666214 | BE4: 300 | BG4: ='5 equiv. BzOH cat order'!T13/80 -> 0.06395902956 | BH4: N/A
A5: =60*'P inhibition, or deactivation'!D14 -> 10 | B5: ='P inhibition, or deactivation'!F14/'P inhibition, or deactivation'!$F$12 -> 0.667088032 | C5: ='P inhibition, or deactivation'!G14/'P inhibition, or deactivation'!$F$12 -> 0.2999482605 | D5: =('P inhibition, or deactivation'!H58)/'P inhibition, or deactivation'!$F$12 -> 0.03296370748 | E5: =60*'P inhibition, or deactivation'!H16 -> 30 | F5: ='P inhibition, or deactivation'!K16/'P inhibition, or deactivation'!$K$12 -> 0.6639567906 | G5: ='P inhibition, or deactivation'!L16/'P inhibition, or deactivation'!$K$12 -> 1.327678187 | H5: =('P inhibition, or deactivation'!L58)/'P inhibition, or deactivation'!$K$12 -> 0 | I5: =60*'P inhibition, or deactivation'!M14 -> 30 | J5: ='P inhibition, or deactivation'!P14/'P inhibition, or deactivation'!$P$12 -> 0.7571313201 | K5: ='P inhibition, or deactivation'!Q14/'P inhibition, or deactivation'!$P$12 -> 3.131915731 | L5: ='P inhibition, or deactivation'!P58/'P inhibition, or deactivation'!$P$12 -> -0.004431666875 | M5: =60*'P spiked reactions'!D14 -> 30 | N5: ='P spiked reactions'!G14/'P spiked reactions'!$G$12 -> 0.8223957232 | O5: ='P spiked reactions'!H14/'P spiked reactions'!$G$12 -> 1.114213304 | P5: =('P spiked reactions'!G57)/'P spiked reactions'!$G$12 -> 0.02505520371 | Q5: =60*'P spiked reactions'!I14 -> 15 | R5: ='P spiked reactions'!L14/'P spiked reactions'!$L$12 -> 0.7513659716 | S5: ='P spiked reactions'!M14/'P spiked reactions'!$L$12 -> 1.241725065 | T5: =('P spiked reactions'!K57)/'P spiked reactions'!$L$12 -> -0.01034833229 | U5: =60*'P spiked reactions'!N14 -> 10 | V5: ='P spiked reactions'!Q14/'P spiked reactions'!$Q$12 -> 0.8999536182 | W5: ='P spiked reactions'!R14/'P spiked reactions'!$Q$12 -> 1.024925015 | X5: ='P spiked reactions'!O57/'P spiked reactions'!$Q$12 -> 0.03440219603 | Y5: =60*60*'IS order'!J14 -> 600 | Z5: ='IS order'!M14/'IS order'!$M$12 -> 0.6584333352 | AA5: ='IS order'!N14/'IS order'!$M$12 -> 0.3056110483 | AB5: ='IS order'!L57/'IS order'!$M$12 -> 0.03595561648 | AC5: =60*60*'cat order'!J14 -> 600 | AD5: ='cat order'!M14/'cat order'!$M$12 -> 0.7116399171 | AE5: ='cat order'!N14/'cat order'!$M$12 -> 0.2555367334 | AF5: =('cat order'!K57)/'cat order'!$M$12 -> 0.03282334947 | AG5: =60*60*'PhCONHBr order'!J14 -> 600 | AH5: ='PhCONHBr order'!M14/'PhCONHBr order'!$M$12 -> 0.7239203231 | AI5: ='PhCONHBr order'!N14/'PhCONHBr order'!$M$12 -> 0.2340310112 | AJ5: =('PhCONHBr order'!L56)/'PhCONHBr order'!$M$12 -> 0.04204866566 | AK5: =60*60*#REF! ->  | AL5: =#REF!/#REF! ->  | AM5: =#REF!/#REF! ->  | AN5: =(#REF!)/#REF! ->  | AO5: =60*60*'SM order'!J14 -> 600 | AP5: ='SM order'!M14/'SM order'!$M$12 -> 0.5097894773 | AQ5: ='SM order'!O14/'SM order'!$M$12 -> 0.440820416 | AR5: ='SM order'!L56/('SM order'!$M$12) -> 0.04939010674 | AS5: =60*60*'cat order'!P14 -> 600 | AT5: ='cat order'!S14/'cat order'!$S$12 -> 0.7799996989 | AU5: ='cat order'!T14/'cat order'!$S$12 -> 0.1500131668 | AV5: =('cat order'!O57)/'cat order'!$S$12 -> 0.06998713434 | AW5: =0.166666666666667*60*60 -> 600 | AX5: =#REF!/#REF! ->  | AY5: =#REF!/#REF! ->  | AZ5: =#REF!/#REF! ->  | BA5: 600 | BB5: ='5 equiv. BzOH cat order'!G14/'5 equiv. BzOH cat order'!$G$12 -> 0.2595524187 | BC5: ='5 equiv. BzOH cat order'!H14/'5 equiv. BzOH cat order'!$G$12 -> 0.6396834493 | BD5: ='5 equiv. BzOH cat order'!G125/'5 equiv. BzOH cat order'!$G$12 -> 0.100764132 | BE5: 600 | BG5: ='5 equiv. BzOH cat order'!T14/80 -> 0.1177188591 | BH5: N/A
A6: =60*'P inhibition, or deactivation'!D15 -> 15 | B6: ='P inhibition, or deactivation'!F15/'P inhibition, or deactivation'!$F$12 -> 0.6218678281 | C6: ='P inhibition, or deactivation'!G15/'P inhibition, or deactivation'!$F$12 -> 0.3666585018 | D6: =('P inhibition, or deactivation'!H59)/'P inhibition, or deactivation'!$F$12 -> 0.01147367011 | E6: =60*'P inhibition, or deactivation'!H17 -> 45 | F6: ='P inhibition, or deactivation'!K17/'P inhibition, or deactivation'!$K$12 -> 0.5879521463 | G6: ='P inhibition, or deactivation'!L17/'P inhibition, or deactivation'!$K$12 -> 1.385332697 | H6: =('P inhibition, or deactivation'!L59)/'P inhibition, or deactivation'!$K$12 -> -0.01220420895 | I6: =60*'P inhibition, or deactivation'!M15 -> 45 | J6: ='P inhibition, or deactivation'!P15/'P inhibition, or deactivation'!$P$12 -> 0.7014818806 | K6: ='P inhibition, or deactivation'!Q15/'P inhibition, or deactivation'!$P$12 -> 3.190975243 | L6: ='P inhibition, or deactivation'!P59/'P inhibition, or deactivation'!$P$12 -> -0.007841739448 | M6: =60*'P spiked reactions'!D15 -> 45 | N6: ='P spiked reactions'!G15/'P spiked reactions'!$G$12 -> 0.7598677074 | O6: ='P spiked reactions'!H15/'P spiked reactions'!$G$12 -> 1.157117644 | P6: =('P spiked reactions'!G58)/'P spiked reactions'!$G$12 -> 0.04467887992 | Q6: =60*'P spiked reactions'!I15 -> 30 | R6: ='P spiked reactions'!L15/'P spiked reactions'!$L$12 -> 0.6519348425 | S6: ='P spiked reactions'!M15/'P spiked reactions'!$L$12 -> 1.342972448 | T6: =('P spiked reactions'!K58)/'P spiked reactions'!$L$12 -> -0.01216458656 | U6: =60*'P spiked reactions'!N15 -> 15 | V6: ='P spiked reactions'!Q15/'P spiked reactions'!$Q$12 -> 0.8657168946 | W6: ='P spiked reactions'!R15/'P spiked reactions'!$Q$12 -> 1.051777379 | X6: ='P spiked reactions'!O58/'P spiked reactions'!$Q$12 -> 0.04178655613 | Y6: =60*60*'IS order'!J15 -> 900 | Z6: ='IS order'!M15/'IS order'!$M$12 -> 0.6010635973 | AA6: ='IS order'!N15/'IS order'!$M$12 -> 0.3617946521 | AB6: ='IS order'!L58/'IS order'!$M$12 -> 0.03714175052 | AC6: =60*60*'cat order'!J15 -> 900 | AD6: ='cat order'!M15/'cat order'!$M$12 -> 0.6495587166 | AE6: ='cat order'!N15/'cat order'!$M$12 -> 0.3145090481 | AF6: =('cat order'!K58)/'cat order'!$M$12 -> 0.03593223527 | AG6: =60*60*'PhCONHBr order'!J15 -> 900 | AH6: ='PhCONHBr order'!M15/'PhCONHBr order'!$M$12 -> 0.6782635051 | AI6: ='PhCONHBr order'!N15/'PhCONHBr order'!$M$12 -> 0.2781553537 | AJ6: =('PhCONHBr order'!L57)/'PhCONHBr order'!$M$12 -> 0.04358114114 | AK6: =60*60*#REF! ->  | AL6: =#REF!/#REF! ->  | AM6: =#REF!/#REF! ->  | AN6: =(#REF!)/#REF! ->  | AO6: =60*60*'SM order'!J15 -> 900 | AP6: ='SM order'!M15/'SM order'!$M$12 -> 0.397655031 | AQ6: ='SM order'!O15/'SM order'!$M$12 -> 0.5237457474 | AR6: ='SM order'!L57/('SM order'!$M$12) -> 0.07859922167 | AS6: =60*60*'cat order'!P16 -> 1800 | AT6: ='cat order'!S16/'cat order'!$S$12 -> 0.643445869 | AU6: ='cat order'!T16/'cat order'!$S$12 -> 0.2905278604 | AV6: =('cat order'!O58)/'cat order'!$S$12 -> 0.06602627056 | AW6: =0.25*60*60 -> 900 | AX6: =#REF!/#REF! ->  | AY6: =#REF!/#REF! ->  | AZ6: =#REF!/#REF! ->  | BA6: 900 | BB6: ='5 equiv. BzOH cat order'!G15/'5 equiv. BzOH cat order'!$G$12 -> 0.168355775 | BC6: ='5 equiv. BzOH cat order'!H15/'5 equiv. BzOH cat order'!$G$12 -> 0.7364575881 | BD6: ='5 equiv. BzOH cat order'!G126/'5 equiv. BzOH cat order'!$G$12 -> 0.09518663691 | BE6: 900 | BG6: ='5 equiv. BzOH cat order'!T15/80 -> 0.1658002007 | BH6: N/A
A7: =60*'P inhibition, or deactivation'!D16 -> 30 | B7: ='P inhibition, or deactivation'!F16/'P inhibition, or deactivation'!$F$12 -> 0.5139134196 | C7: ='P inhibition, or deactivation'!G16/'P inhibition, or deactivation'!$F$12 -> 0.4624964777 | D7: =('P inhibition, or deactivation'!H60)/'P inhibition, or deactivation'!$F$12 -> 0.0235901027 | E7: =60*'P inhibition, or deactivation'!H18 -> 60 | F7: ='P inhibition, or deactivation'!K18/'P inhibition, or deactivation'!$K$12 -> 0.5433188142 | G7: ='P inhibition, or deactivation'!L18/'P inhibition, or deactivation'!$K$12 -> 1.427017964 | H7: =('P inhibition, or deactivation'!L60)/'P inhibition, or deactivation'!$K$12 -> -0.02076119143 | I7: =60*'P inhibition, or deactivation'!M16 -> 60 | J7: ='P inhibition, or deactivation'!P16/'P inhibition, or deactivation'!$P$12 -> 0.6483627323 | K7: ='P inhibition, or deactivation'!Q16/'P inhibition, or deactivation'!$P$12 -> 3.239195689 | L7: ='P inhibition, or deactivation'!P60/'P inhibition, or deactivation'!$P$12 -> -0.002943037093 | M7: =60*'P spiked reactions'!D16 -> 60 | N7: ='P spiked reactions'!G16/'P spiked reactions'!$G$12 -> 0.7087404842 | O7: ='P spiked reactions'!H16/'P spiked reactions'!$G$12 -> 1.20276987 | P7: =('P spiked reactions'!G59)/'P spiked reactions'!$G$12 -> 0.05015387717 | Q7: =60*'P spiked reactions'!I16 -> 45 | R7: ='P spiked reactions'!L16/'P spiked reactions'!$L$12 -> 0.5885859922 | S7: ='P spiked reactions'!M16/'P spiked reactions'!$L$12 -> 1.409090974 | T7: =('P spiked reactions'!K59)/'P spiked reactions'!$L$12 -> -0.01493426141 | U7: =60*'P spiked reactions'!N16 -> 30 | V7: ='P spiked reactions'!Q16/'P spiked reactions'!$Q$12 -> 0.8046997383 | W7: ='P spiked reactions'!R16/'P spiked reactions'!$Q$12 -> 1.112344982 | X7: ='P spiked reactions'!O59/'P spiked reactions'!$Q$12 -> 0.04223610918 | Y7: =60*60*'IS order'!J16 -> 1800 | Z7: ='IS order'!M16/'IS order'!$M$12 -> 0.5047880008 | AA7: ='IS order'!N16/'IS order'!$M$12 -> 0.458437762 | AB7: ='IS order'!L59/'IS order'!$M$12 -> 0.03677423715 | AC7: =60*60*'cat order'!J16 -> 1800 | AD7: ='cat order'!M16/'cat order'!$M$12 -> 0.5468998189 | AE7: ='cat order'!N16/'cat order'!$M$12 -> 0.4096803796 | AF7: =('cat order'!K59)/'cat order'!$M$12 -> 0.04341980155 | AG7: =60*60*'PhCONHBr order'!J16 -> 1800 | AH7: ='PhCONHBr order'!M16/'PhCONHBr order'!$M$12 -> 0.5923722612 | AI7: ='PhCONHBr order'!N16/'PhCONHBr order'!$M$12 -> 0.3661279551 | AJ7: =('PhCONHBr order'!L58)/'PhCONHBr order'!$M$12 -> 0.04149978371 | AK7: =60*60*#REF! ->  | AL7: =#REF!/#REF! ->  | AM7: =#REF!/#REF! ->  | AN7: =(#REF!)/#REF! ->  | AO7: =60*60*'SM order'!J16 -> 1800 | AP7: ='SM order'!M16/'SM order'!$M$12 -> 0.2521698708 | AQ7: ='SM order'!O16/'SM order'!$M$12 -> 0.6506394418 | AR7: ='SM order'!L58/('SM order'!$M$12) -> 0.09719068743 | AS7: =60*60*'cat order'!P17 -> 2700 | AT7: ='cat order'!S17/'cat order'!$S$12 -> 0.561947929 | AU7: ='cat order'!T17/'cat order'!$S$12 -> 0.3452491807 | AV7: =('cat order'!O59)/'cat order'!$S$12 -> 0.09280289035 | AW7: =0.5*60*60 -> 1800 | AX7: =#REF!/#REF! ->  | AY7: =#REF!/#REF! ->  | AZ7: =#REF!/#REF! ->  | BA7: 1800 | BB7: ='5 equiv. BzOH cat order'!G16/'5 equiv. BzOH cat order'!$G$12 -> 0.076390782 | BC7: ='5 equiv. BzOH cat order'!H16/'5 equiv. BzOH cat order'!$G$12 -> 0.8586391176 | BD7: ='5 equiv. BzOH cat order'!G127/'5 equiv. BzOH cat order'!$G$12 -> 0.06497010037 | BE7: 1800 | BG7: ='5 equiv. BzOH cat order'!T16/80 -> 0.2915069277 | BH7: N/A
A8: =60*'P inhibition, or deactivation'!D17 -> 45 | B8: ='P inhibition, or deactivation'!F17/'P inhibition, or deactivation'!$F$12 -> 0.4547753262 | C8: ='P inhibition, or deactivation'!G17/'P inhibition, or deactivation'!$F$12 -> 0.5180814415 | D8: =('P inhibition, or deactivation'!H61)/'P inhibition, or deactivation'!$F$12 -> 0.02714323224 | E8: =60*'P inhibition, or deactivation'!H19 -> 90 | F8: ='P inhibition, or deactivation'!K19/'P inhibition, or deactivation'!$K$12 -> 0.4785756618 | G8: ='P inhibition, or deactivation'!L19/'P inhibition, or deactivation'!$K$12 -> 1.487130694 | H8: =('P inhibition, or deactivation'!L61)/'P inhibition, or deactivation'!$K$12 -> -0.00241105651 | I8: =60*'P inhibition, or deactivation'!M17 -> 90 | J8: ='P inhibition, or deactivation'!P17/'P inhibition, or deactivation'!$P$12 -> 0.5728076103 | K8: ='P inhibition, or deactivation'!Q17/'P inhibition, or deactivation'!$P$12 -> 3.30412411 | L8: ='P inhibition, or deactivation'!P61/'P inhibition, or deactivation'!$P$12 -> 0.007683664071 | M8: =60*'P spiked reactions'!D17 -> 90 | N8: ='P spiked reactions'!G17/'P spiked reactions'!$G$12 -> 0.6479085048 | O8: ='P spiked reactions'!H17/'P spiked reactions'!$G$12 -> 1.25902003 | P8: =('P spiked reactions'!G60)/'P spiked reactions'!$G$12 -> 0.0547356963 | Q8: =60*'P spiked reactions'!I17 -> 60 | R8: ='P spiked reactions'!L17/'P spiked reactions'!$L$12 -> 0.5404477557 | S8: ='P spiked reactions'!M17/'P spiked reactions'!$L$12 -> 1.443485236 | T8: =('P spiked reactions'!K60)/'P spiked reactions'!$L$12 -> -0.001190286972 | U8: =60*'P spiked reactions'!N17 -> 45 | V8: ='P spiked reactions'!Q17/'P spiked reactions'!$Q$12 -> 0.7448294125 | W8: ='P spiked reactions'!R17/'P spiked reactions'!$Q$12 -> 1.159150817 | X8: ='P spiked reactions'!O60/'P spiked reactions'!$Q$12 -> 0.05530060048 | Y8: =60*60*'IS order'!J17 -> 2700 | Z8: ='IS order'!M17/'IS order'!$M$12 -> 0.4385958258 | AA8: ='IS order'!N17/'IS order'!$M$12 -> 0.5112580098 | AB8: ='IS order'!L60/'IS order'!$M$12 -> 0.05014616444 | AC8: =60*60*'cat order'!J17 -> 2700 | AD8: ='cat order'!M17/'cat order'!$M$12 -> 0.484133948 | AE8: ='cat order'!N17/'cat order'!$M$12 -> 0.4674560419 | AF8: =('cat order'!K60)/'cat order'!$M$12 -> 0.04841001012 | AG8: =60*60*'PhCONHBr order'!J17 -> 2700 | AH8: ='PhCONHBr order'!M17/'PhCONHBr order'!$M$12 -> 0.54429194 | AI8: ='PhCONHBr order'!N17/'PhCONHBr order'!$M$12 -> 0.4119645907 | AJ8: =('PhCONHBr order'!L59)/'PhCONHBr order'!$M$12 -> 0.04374346937 | AK8: =60*60*#REF! ->  | AL8: =#REF!/#REF! ->  | AM8: =#REF!/#REF! ->  | AN8: =(#REF!)/#REF! ->  | AO8: =60*60*'SM order'!J17 -> 2700 | AP8: ='SM order'!M17/'SM order'!$M$12 -> 0.1608457554 | AQ8: ='SM order'!O17/'SM order'!$M$12 -> 0.7176489162 | AR8: ='SM order'!L59/('SM order'!$M$12) -> 0.1215053284 | AS8: =60*60*'cat order'!P18 -> 3600 | AT8: ='cat order'!S18/'cat order'!$S$12 -> 0.5181053065 | AU8: ='cat order'!T18/'cat order'!$S$12 -> 0.386624843 | AV8: =('cat order'!O60)/'cat order'!$S$12 -> 0.09526985041 | AW8: =0.75*60*60 -> 2700 | AX8: =#REF!/#REF! ->  | AY8: =#REF!/#REF! ->  | AZ8: =#REF!/#REF! ->  | BA8: 2700 | BB8: ='5 equiv. BzOH cat order'!G17/'5 equiv. BzOH cat order'!$G$12 -> 0.04355769581 | BC8: ='5 equiv. BzOH cat order'!H17/'5 equiv. BzOH cat order'!$G$12 -> 0.898256059 | BD8: ='5 equiv. BzOH cat order'!G128/'5 equiv. BzOH cat order'!$G$12 -> 0.05818624514 | BE8: 2700 | BG8: ='5 equiv. BzOH cat order'!T17/80 -> 0.3890935095 | BH8: N/A
A9: =60*'P inhibition, or deactivation'!D18 -> 60 | B9: ='P inhibition, or deactivation'!F18/'P inhibition, or deactivation'!$F$12 -> 0.4189173085 | C9: ='P inhibition, or deactivation'!G18/'P inhibition, or deactivation'!$F$12 -> 0.550044076 | D9: =('P inhibition, or deactivation'!H62)/'P inhibition, or deactivation'!$F$12 -> 0.03103861547 | E9: =60*'P inhibition, or deactivation'!H20 -> 120 | F9: ='P inhibition, or deactivation'!K20/'P inhibition, or deactivation'!$K$12 -> 0.4237358727 | G9: ='P inhibition, or deactivation'!L20/'P inhibition, or deactivation'!$K$12 -> 1.52371292 | H9: =('P inhibition, or deactivation'!L62)/'P inhibition, or deactivation'!$K$12 -> 0.0005370084034 | I9: =60*'P inhibition, or deactivation'!M18 -> 120 | J9: ='P inhibition, or deactivation'!P18/'P inhibition, or deactivation'!$P$12 -> 0.5152361875 | K9: ='P inhibition, or deactivation'!Q18/'P inhibition, or deactivation'!$P$12 -> 3.349034124 | L9: ='P inhibition, or deactivation'!P62/'P inhibition, or deactivation'!$P$12 -> 0.02034507331 | M9: =60*'P spiked reactions'!D18 -> 120 | N9: ='P spiked reactions'!G18/'P spiked reactions'!$G$12 -> 0.5893773168 | O9: ='P spiked reactions'!H18/'P spiked reactions'!$G$12 -> 1.300463116 | P9: =('P spiked reactions'!G61)/'P spiked reactions'!$G$12 -> 0.07182379809 | Q9: =60*'P spiked reactions'!I18 -> 90 | R9: ='P spiked reactions'!L18/'P spiked reactions'!$L$12 -> 0.4763763285 | S9: ='P spiked reactions'!M18/'P spiked reactions'!$L$12 -> 1.498743208 | T9: =('P spiked reactions'!K61)/'P spiked reactions'!$L$12 -> 0.007623168092 | U9: =60*'P spiked reactions'!N18 -> 60 | V9: ='P spiked reactions'!Q18/'P spiked reactions'!$Q$12 -> 0.7026926615 | W9: ='P spiked reactions'!R18/'P spiked reactions'!$Q$12 -> 1.193978987 | X9: ='P spiked reactions'!O61/'P spiked reactions'!$Q$12 -> 0.06260918153 | Y9: =60*60*'IS order'!J18 -> 3600 | Z9: ='IS order'!M18/'IS order'!$M$12 -> 0.4019405012 | AA9: ='IS order'!N18/'IS order'!$M$12 -> 0.549542365 | AB9: ='IS order'!L61/'IS order'!$M$12 -> 0.04851713374 | AC9: =60*60*'cat order'!J18 -> 3600 | AD9: ='cat order'!M18/'cat order'!$M$12 -> 0.4432609804 | AE9: ='cat order'!N18/'cat order'!$M$12 -> 0.505592297 | AF9: =('cat order'!K61)/'cat order'!$M$12 -> 0.05114672259 | AG9: =60*60*'PhCONHBr order'!J18 -> 3600 | AH9: ='PhCONHBr order'!M18/'PhCONHBr order'!$M$12 -> 0.5109538114 | AI9: ='PhCONHBr order'!N18/'PhCONHBr order'!$M$12 -> 0.4464042558 | AJ9: =('PhCONHBr order'!L60)/'PhCONHBr order'!$M$12 -> 0.04264193287 | AK9: =60*60*#REF! ->  | AL9: =#REF!/#REF! ->  | AM9: =#REF!/#REF! ->  | AN9: =(#REF!)/#REF! ->  | AO9: =60*60*'SM order'!J18 -> 3600 | AP9: ='SM order'!M18/'SM order'!$M$12 -> 0.1169181972 | AQ9: ='SM order'!O18/'SM order'!$M$12 -> 0.7774143735 | AR9: ='SM order'!L60/('SM order'!$M$12) -> 0.1056674293 | AS9: =60*60*'cat order'!P19 -> 5400 | AT9: ='cat order'!S19/'cat order'!$S$12 -> 0.4495624814 | AU9: ='cat order'!T19/'cat order'!$S$12 -> 0.4369817767 | AV9: =('cat order'!O61)/'cat order'!$S$12 -> 0.1134557419 | AW9: =1*60*60 -> 3600 | AX9: =#REF!/#REF! ->  | AY9: =#REF!/#REF! ->  | AZ9: =#REF!/#REF! ->  | BA9: 3600 | BB9: ='5 equiv. BzOH cat order'!G18/'5 equiv. BzOH cat order'!$G$12 -> 0.02392254731 | BC9: ='5 equiv. BzOH cat order'!H18/'5 equiv. BzOH cat order'!$G$12 -> 0.9196959417 | BD9: ='5 equiv. BzOH cat order'!G129/'5 equiv. BzOH cat order'!$G$12 -> 0.05638151097 | BE9: 3600 | BG9: ='5 equiv. BzOH cat order'!T18/80 -> 0.468108197 | BH9: N/A
A10: =60*'P inhibition, or deactivation'!D19 -> 90 | B10: ='P inhibition, or deactivation'!F19/'P inhibition, or deactivation'!$F$12 -> 0.3614356477 | C10: ='P inhibition, or deactivation'!G19/'P inhibition, or deactivation'!$F$12 -> 0.5999081318 | D10: =('P inhibition, or deactivation'!H63)/'P inhibition, or deactivation'!$F$12 -> 0.03865622048 | E10: =60*'P inhibition, or deactivation'!H21 -> 180 | F10: ='P inhibition, or deactivation'!K21/'P inhibition, or deactivation'!$K$12 -> 0.3692132015 | G10: ='P inhibition, or deactivation'!L21/'P inhibition, or deactivation'!$K$12 -> 1.578048793 | H10: =('P inhibition, or deactivation'!L63)/'P inhibition, or deactivation'!$K$12 -> 0.005167430485 | I10: =60*'P inhibition, or deactivation'!M19 -> 180 | J10: ='P inhibition, or deactivation'!P19/'P inhibition, or deactivation'!$P$12 -> 0.4128420412 | K10: ='P inhibition, or deactivation'!Q19/'P inhibition, or deactivation'!$P$12 -> 3.414140127 | L10: ='P inhibition, or deactivation'!P63/'P inhibition, or deactivation'!$P$12 -> 0.05763321664 | M10: =60*'P spiked reactions'!D19 -> 180 | N10: ='P spiked reactions'!G19/'P spiked reactions'!$G$12 -> 0.5140457401 | O10: ='P spiked reactions'!H19/'P spiked reactions'!$G$12 -> 1.364223982 | P10: =('P spiked reactions'!G62)/'P spiked reactions'!$G$12 -> 0.08339450946 | Q10: =60*'P spiked reactions'!I19 -> 120 | R10: ='P spiked reactions'!L19/'P spiked reactions'!$L$12 -> 0.4296902411 | S10: ='P spiked reactions'!M19/'P spiked reactions'!$L$12 -> 1.542164107 | T10: =('P spiked reactions'!K62)/'P spiked reactions'!$L$12 -> 0.0108883564 | U10: =60*'P spiked reactions'!N19 -> 90 | V10: ='P spiked reactions'!Q19/'P spiked reactions'!$Q$12 -> 0.6369404194 | W10: ='P spiked reactions'!R19/'P spiked reactions'!$Q$12 -> 1.251328279 | X10: ='P spiked reactions'!O62/'P spiked reactions'!$Q$12 -> 0.07101213141 | Y10: =60*60*'IS order'!J19 -> 5400 | Z10: ='IS order'!M19/'IS order'!$M$12 -> 0.3437589191 | AA10: ='IS order'!N19/'IS order'!$M$12 -> 0.5988654708 | AB10: ='IS order'!L62/'IS order'!$M$12 -> 0.05737561017 | AC10: =60*60*'cat order'!J19 -> 5400 | AD10: ='cat order'!M19/'cat order'!$M$12 -> 0.3829561454 | AE10: ='cat order'!N19/'cat order'!$M$12 -> 0.556860451 | AF10: =('cat order'!K62)/'cat order'!$M$12 -> 0.06018340357 | AG10: =60*60*'PhCONHBr order'!J19 -> 5400 | AH10: ='PhCONHBr order'!M19/'PhCONHBr order'!$M$12 -> 0.467154473 | AI10: ='PhCONHBr order'!N19/'PhCONHBr order'!$M$12 -> 0.488203567 | AJ10: =('PhCONHBr order'!L61)/'PhCONHBr order'!$M$12 -> 0.04464195997 | AK10: =60*60*#REF! ->  | AL10: =#REF!/#REF! ->  | AM10: =#REF!/#REF! ->  | AN10: =(#REF!)/#REF! ->  | AO10: =60*60*'SM order'!J19 -> 5400 | AP10: ='SM order'!M19/'SM order'!$M$12 -> 0.06864082022 | AQ10: ='SM order'!O19/'SM order'!$M$12 -> 0.8067480233 | AR10: ='SM order'!L61/('SM order'!$M$12) -> 0.1246111565 | AS10: =60*60*'cat order'!P20 -> 7200 | AT10: ='cat order'!S20/'cat order'!$S$12 -> 0.4148228966 | AU10: ='cat order'!T20/'cat order'!$S$12 -> 0.4787322514 | AV10: =('cat order'!O62)/'cat order'!$S$12 -> 0.106444852 | AW10: =1.5*60*60 -> 5400 | AX10: =#REF!/#REF! ->  | AY10: =#REF!/#REF! ->  | AZ10: =#REF!/#REF! ->  | BA10: 5400 | BB10: ='5 equiv. BzOH cat order'!G19/'5 equiv. BzOH cat order'!$G$12 -> 0.009166802541 | BC10: ='5 equiv. BzOH cat order'!H19/'5 equiv. BzOH cat order'!$G$12 -> 0.9315186404 | BD10: ='5 equiv. BzOH cat order'!G130/'5 equiv. BzOH cat order'!$G$12 -> 0.05931455704 | BE10: 5400 | BG10: ='5 equiv. BzOH cat order'!T19/80 -> 0.5908646406 | BH10: N/A
A11: =60*'P inhibition, or deactivation'!D20 -> 120 | B11: ='P inhibition, or deactivation'!F20/'P inhibition, or deactivation'!$F$12 -> 0.3219320931 | C11: ='P inhibition, or deactivation'!G20/'P inhibition, or deactivation'!$F$12 -> 0.6306807003 | D11: =('P inhibition, or deactivation'!H64)/'P inhibition, or deactivation'!$F$12 -> 0.04738720661 | E11: =60*'P inhibition, or deactivation'!H22 -> 240 | F11: ='P inhibition, or deactivation'!K22/'P inhibition, or deactivation'!$K$12 -> 0.3246667072 | G11: ='P inhibition, or deactivation'!L22/'P inhibition, or deactivation'!$K$12 -> 1.614302672 | H11: =('P inhibition, or deactivation'!L64)/'P inhibition, or deactivation'!$K$12 -> 0.02342499344 | I11: =60*'P inhibition, or deactivation'!M20 -> 240 | J11: ='P inhibition, or deactivation'!P20/'P inhibition, or deactivation'!$P$12 -> 0.3833553772 | K11: ='P inhibition, or deactivation'!Q20/'P inhibition, or deactivation'!$P$12 -> 3.453688291 | L11: ='P inhibition, or deactivation'!P64/'P inhibition, or deactivation'!$P$12 -> 0.04757171636 | M11: =60*'P spiked reactions'!D20 -> 240 | N11: ='P spiked reactions'!G20/'P spiked reactions'!$G$12 -> 0.4554668632 | O11: ='P spiked reactions'!H20/'P spiked reactions'!$G$12 -> 1.40620875 | P11: =('P spiked reactions'!G63)/'P spiked reactions'!$G$12 -> 0.09998861823 | Q11: =60*'P spiked reactions'!I20 -> 180 | R11: ='P spiked reactions'!L20/'P spiked reactions'!$L$12 -> 0.3687299036 | S11: ='P spiked reactions'!M20/'P spiked reactions'!$L$12 -> 1.589373091 | T11: =('P spiked reactions'!K63)/'P spiked reactions'!$L$12 -> 0.02463970953 | U11: =60*'P spiked reactions'!N20 -> 120 | V11: ='P spiked reactions'!Q20/'P spiked reactions'!$Q$12 -> 0.5822451028 | W11: ='P spiked reactions'!R20/'P spiked reactions'!$Q$12 -> 1.294129932 | X11: ='P spiked reactions'!O63/'P spiked reactions'!$Q$12 -> 0.08290579495 | Y11: =60*60*'IS order'!J20 -> 7200 | Z11: ='IS order'!M20/'IS order'!$M$12 -> 0.3120616046 | AA11: ='IS order'!N20/'IS order'!$M$12 -> 0.6280913913 | AB11: ='IS order'!L63/'IS order'!$M$12 -> 0.05984700415 | AC11: =60*60*'cat order'!J20 -> 7200 | AD11: ='cat order'!M20/'cat order'!$M$12 -> 0.3448551751 | AE11: ='cat order'!N20/'cat order'!$M$12 -> 0.5926367697 | AF11: =('cat order'!K63)/'cat order'!$M$12 -> 0.06250805521 | AG11: =60*60*'PhCONHBr order'!J20 -> 7200 | AH11: ='PhCONHBr order'!M20/'PhCONHBr order'!$M$12 -> 0.4337233115 | AI11: ='PhCONHBr order'!N20/'PhCONHBr order'!$M$12 -> 0.5148467465 | AJ11: =('PhCONHBr order'!L62)/'PhCONHBr order'!$M$12 -> 0.05142994201 | AK11: =60*60*#REF! ->  | AL11: =#REF!/#REF! ->  | AM11: =#REF!/#REF! ->  | AN11: =(#REF!)/#REF! ->  | AO11: =60*60*'SM order'!J20 -> 7200 | AP11: ='SM order'!M20/'SM order'!$M$12 -> 0.03793393746 | AQ11: ='SM order'!O20/'SM order'!$M$12 -> 0.8234112216 | AR11: ='SM order'!L62/('SM order'!$M$12) -> 0.1386548409 | AS11: =60*60*'cat order'!P21 -> 10800 | AT11: ='cat order'!S21/'cat order'!$S$12 -> 0.3630484219 | AU11: ='cat order'!T21/'cat order'!$S$12 -> 0.5289521357 | AV11: =('cat order'!O63)/'cat order'!$S$12 -> 0.1079994424 | AW11: =2*60*60 -> 7200 | AX11: =#REF!/#REF! ->  | AY11: =#REF!/#REF! ->  | AZ11: =#REF!/#REF! ->  | BA11: 7200 | BB11: ='5 equiv. BzOH cat order'!G20/'5 equiv. BzOH cat order'!$G$12 -> 0.0036416367 | BC11: ='5 equiv. BzOH cat order'!H20/'5 equiv. BzOH cat order'!$G$12 -> 0.9375783922 | BD11: ='5 equiv. BzOH cat order'!G131/'5 equiv. BzOH cat order'!$G$12 -> 0.05877997114 | BE11: 7200 | BG11: ='5 equiv. BzOH cat order'!T20/80 -> 0.648905726 | BH11: N/A
A12: =60*'P inhibition, or deactivation'!D21 -> 180 | B12: ='P inhibition, or deactivation'!F21/'P inhibition, or deactivation'!$F$12 -> 0.2783179501 | C12: ='P inhibition, or deactivation'!G21/'P inhibition, or deactivation'!$F$12 -> 0.6700072807 | D12: =('P inhibition, or deactivation'!H65)/'P inhibition, or deactivation'!$F$12 -> 0.05167476925 | E12: =60*'P inhibition, or deactivation'!H23 -> 300 | F12: ='P inhibition, or deactivation'!K23/'P inhibition, or deactivation'!$K$12 -> 0.2925602852 | G12: ='P inhibition, or deactivation'!L23/'P inhibition, or deactivation'!$K$12 -> 1.638394588 | H12: =('P inhibition, or deactivation'!L65)/'P inhibition, or deactivation'!$K$12 -> 0.02361179186 | I12: =60*'P inhibition, or deactivation'!M21 -> 300 | J12: ='P inhibition, or deactivation'!P21/'P inhibition, or deactivation'!$P$12 -> 0.3459233529 | K12: ='P inhibition, or deactivation'!Q21/'P inhibition, or deactivation'!$P$12 -> 3.49017965 | L12: ='P inhibition, or deactivation'!P65/'P inhibition, or deactivation'!$P$12 -> 0.04851238176 | M12: =60*'P spiked reactions'!D21 -> 300 | N12: ='P spiked reactions'!G21/'P spiked reactions'!$G$12 -> 0.4132506721 | O12: ='P spiked reactions'!H21/'P spiked reactions'!$G$12 -> 1.434900741 | P12: =('P spiked reactions'!G64)/'P spiked reactions'!$G$12 -> 0.1135128184 | Q12: =60*'P spiked reactions'!I21 -> 240 | R12: ='P spiked reactions'!L21/'P spiked reactions'!$L$12 -> 0.321708886 | S12: ='P spiked reactions'!M21/'P spiked reactions'!$L$12 -> 1.629791292 | T12: =('P spiked reactions'!K64)/'P spiked reactions'!$L$12 -> 0.03124252583 | U12: =60*'P spiked reactions'!N21 -> 180 | V12: ='P spiked reactions'!Q21/'P spiked reactions'!$Q$12 -> 0.4995373246 | W12: ='P spiked reactions'!R21/'P spiked reactions'!$Q$12 -> 1.355640799 | X12: ='P spiked reactions'!O64/'P spiked reactions'!$Q$12 -> 0.1041027065 | Y12: =60*60*'IS order'!J21 -> 10800 | Z12: ='IS order'!M21/'IS order'!$M$12 -> 0.2612795608 | AA12: ='IS order'!N21/'IS order'!$M$12 -> 0.6643372433 | AB12: ='IS order'!L64/'IS order'!$M$12 -> 0.07438319598 | AC12: =60*60*'cat order'!J21 -> 10800 | AD12: ='cat order'!M21/'cat order'!$M$12 -> 0.293146805 | AE12: ='cat order'!N21/'cat order'!$M$12 -> 0.6334649423 | AF12: =('cat order'!K64)/'cat order'!$M$12 -> 0.07338825278 | AG12: =60*60*'PhCONHBr order'!J21 -> 10920 | AH12: ='PhCONHBr order'!M21/'PhCONHBr order'!$M$12 -> 0.3930709208 | AI12: ='PhCONHBr order'!N21/'PhCONHBr order'!$M$12 -> 0.5585118555 | AJ12: =('PhCONHBr order'!L63)/'PhCONHBr order'!$M$12 -> 0.04841722376 | AK12: =60*60*#REF! ->  | AL12: =#REF!/#REF! ->  | AM12: =#REF!/#REF! ->  | AN12: =(#REF!)/#REF! ->  | AO12: =60*60*'SM order'!J21 -> 10800 | AP12: ='SM order'!M21/'SM order'!$M$12 -> 0.01275261515 | AQ12: ='SM order'!O21/'SM order'!$M$12 -> 0.8543831923 | AR12: ='SM order'!L63/('SM order'!$M$12) -> 0.1328641926 | AS12: =60*60*'cat order'!P22 -> 14400 | AT12: ='cat order'!S22/'cat order'!$S$12 -> 0.3299545148 | AU12: ='cat order'!T22/'cat order'!$S$12 -> 0.5639297344 | AV12: =('cat order'!O64)/'cat order'!$S$12 -> 0.1061157508 | AW12: =3*60*60 -> 10800 | AX12: =#REF!/#REF! ->  | AY12: =#REF!/#REF! ->  | AZ12: =#REF!/#REF! ->  | BA12: 10800 | BB12: ='5 equiv. BzOH cat order'!G21/'5 equiv. BzOH cat order'!$G$12 -> 0 | BC12: ='5 equiv. BzOH cat order'!H21/'5 equiv. BzOH cat order'!$G$12 -> 0.9488541289 | BD12: ='5 equiv. BzOH cat order'!G132/'5 equiv. BzOH cat order'!$G$12 -> 0.05114587107 | BE12: 10800 | BG12: ='5 equiv. BzOH cat order'!T21/80 -> 0.7538803948 | BH12: N/A
A13: =60*'P inhibition, or deactivation'!D22 -> 240 | B13: ='P inhibition, or deactivation'!F22/'P inhibition, or deactivation'!$F$12 -> 0.2398182821 | C13: ='P inhibition, or deactivation'!G22/'P inhibition, or deactivation'!$F$12 -> 0.6996059155 | D13: =('P inhibition, or deactivation'!H66)/'P inhibition, or deactivation'!$F$12 -> 0.06057580236 | E13: =60*'P inhibition, or deactivation'!H24 -> 360 | F13: ='P inhibition, or deactivation'!K24/'P inhibition, or deactivation'!$K$12 -> 0.2678935689 | G13: ='P inhibition, or deactivation'!L24/'P inhibition, or deactivation'!$K$12 -> 1.664512347 | H13: =('P inhibition, or deactivation'!L66)/'P inhibition, or deactivation'!$K$12 -> 0.03190440746 | I13: =60*'P inhibition, or deactivation'!M22 -> 360 | J13: ='P inhibition, or deactivation'!P22/'P inhibition, or deactivation'!$P$12 -> 0.3128300717 | K13: ='P inhibition, or deactivation'!Q22/'P inhibition, or deactivation'!$P$12 -> 3.516060271 | L13: ='P inhibition, or deactivation'!P66/'P inhibition, or deactivation'!$P$12 -> 0.05572504179 | M13: =60*'P spiked reactions'!D22 -> 360 | N13: ='P spiked reactions'!G22/'P spiked reactions'!$G$12 -> 0.3737714379 | O13: ='P spiked reactions'!H22/'P spiked reactions'!$G$12 -> 1.457798415 | P13: =('P spiked reactions'!G65)/'P spiked reactions'!$G$12 -> 0.130094378 | Q13: =60*'P spiked reactions'!I22 -> 300 | R13: ='P spiked reactions'!L22/'P spiked reactions'!$L$12 -> 0.2930669649 | S13: ='P spiked reactions'!M22/'P spiked reactions'!$L$12 -> 1.653332432 | T13: =('P spiked reactions'!K65)/'P spiked reactions'!$L$12 -> 0.03634330747 | U13: =60*'P spiked reactions'!N22 -> 240 | V13: ='P spiked reactions'!Q22/'P spiked reactions'!$Q$12 -> 0.4537977555 | W13: ='P spiked reactions'!R22/'P spiked reactions'!$Q$12 -> 1.392503914 | X13: ='P spiked reactions'!O65/'P spiked reactions'!$Q$12 -> 0.1129791597 | Y13: =60*60*'IS order'!J22 -> 14400 | Z13: ='IS order'!M22/'IS order'!$M$12 -> 0.2288349717 | AA13: ='IS order'!N22/'IS order'!$M$12 -> 0.690496286 | AB13: ='IS order'!L65/'IS order'!$M$12 -> 0.08066874227 | AC13: =60*60*'cat order'!J22 -> 14400 | AD13: ='cat order'!M22/'cat order'!$M$12 -> 0.2574482989 | AE13: ='cat order'!N22/'cat order'!$M$12 -> 0.6567227327 | AF13: =('cat order'!K65)/'cat order'!$M$12 -> 0.08582896838 | AG13: =60*60*'PhCONHBr order'!J22 -> 14400 | AH13: ='PhCONHBr order'!M22/'PhCONHBr order'!$M$12 -> 0.362304465 | AI13: ='PhCONHBr order'!N22/'PhCONHBr order'!$M$12 -> 0.5785606493 | AJ13: =('PhCONHBr order'!L64)/'PhCONHBr order'!$M$12 -> 0.05913488571 | AK13: =60*60*#REF! ->  | AL13: =#REF!/#REF! ->  | AM13: =#REF!/#REF! ->  | AN13: =(#REF!)/#REF! ->  | AO13: =60*60*'SM order'!J22 -> 14400 | AP13: ='SM order'!M22/'SM order'!$M$12 -> 0.005874275057 | AQ13: ='SM order'!O22/'SM order'!$M$12 -> 0.8637491593 | AR13: ='SM order'!L64/('SM order'!$M$12) -> 0.1303765656 | AS13: =60*60*'cat order'!P23 -> 18000 | AT13: ='cat order'!S23/'cat order'!$S$12 -> 0.3017894809 | AU13: ='cat order'!T23/'cat order'!$S$12 -> 0.583643548 | AV13: =('cat order'!O65)/'cat order'!$S$12 -> 0.1145669711 | AW13: =4*60*60 -> 14400 | AX13: =#REF!/#REF! ->  | AY13: =#REF!/#REF! ->  | AZ13: =#REF!/#REF! ->  | BA13: 14400 | BB13: ='5 equiv. BzOH cat order'!G22/'5 equiv. BzOH cat order'!$G$12 -> 0 | BC13: ='5 equiv. BzOH cat order'!H22/'5 equiv. BzOH cat order'!$G$12 -> 0.9488541289 | BD13: ='5 equiv. BzOH cat order'!G133/'5 equiv. BzOH cat order'!$G$12 -> 0.05114587107 | BE13: 14400 | BG13: ='5 equiv. BzOH cat order'!T22/80 -> 0.8062996858 | BH13: N/A
A14: =60*'P inhibition, or deactivation'!D23 -> 300 | B14: ='P inhibition, or deactivation'!F23/'P inhibition, or deactivation'!$F$12 -> 0.2186625595 | C14: ='P inhibition, or deactivation'!G23/'P inhibition, or deactivation'!$F$12 -> 0.7249253786 | D14: =('P inhibition, or deactivation'!H67)/'P inhibition, or deactivation'!$F$12 -> 0.05641206196 | E14: =60*'P inhibition, or deactivation'!H25 -> 420 | F14: ='P inhibition, or deactivation'!K25/'P inhibition, or deactivation'!$K$12 -> 0.2460992921 | G14: ='P inhibition, or deactivation'!L25/'P inhibition, or deactivation'!$K$12 -> 1.679263774 | H14: =('P inhibition, or deactivation'!L67)/'P inhibition, or deactivation'!$K$12 -> 0.03991891306 | I14: =60*'P inhibition, or deactivation'!M23 -> 420 | J14: ='P inhibition, or deactivation'!P23/'P inhibition, or deactivation'!$P$12 -> 0.2811572365 | K14: ='P inhibition, or deactivation'!Q23/'P inhibition, or deactivation'!$P$12 -> 3.5336445 | L14: ='P inhibition, or deactivation'!P67/'P inhibition, or deactivation'!$P$12 -> 0.0698136477 | M14: =60*'P spiked reactions'!D23 -> 420 | N14: ='P spiked reactions'!G23/'P spiked reactions'!$G$12 -> 0.3544020324 | O14: ='P spiked reactions'!H23/'P spiked reactions'!$G$12 -> 1.479872889 | P14: =('P spiked reactions'!G66)/'P spiked reactions'!$G$12 -> 0.1273893098 | Q14: =60*'P spiked reactions'!I23 -> 360 | R14: ='P spiked reactions'!L23/'P spiked reactions'!$L$12 -> 0.265526347 | S14: ='P spiked reactions'!M23/'P spiked reactions'!$L$12 -> 1.663354921 | T14: =('P spiked reactions'!K66)/'P spiked reactions'!$L$12 -> 0.05386143613 | U14: =60*'P spiked reactions'!N23 -> 300 | V14: ='P spiked reactions'!Q23/'P spiked reactions'!$Q$12 -> 0.4084875633 | W14: ='P spiked reactions'!R23/'P spiked reactions'!$Q$12 -> 1.424545785 | X14: ='P spiked reactions'!O66/'P spiked reactions'!$Q$12 -> 0.1262474816 | Y14: =60*60*'IS order'!J23 -> 18000 | Z14: ='IS order'!M23/'IS order'!$M$12 -> 0.2056710072 | AA14: ='IS order'!N23/'IS order'!$M$12 -> 0.709610336 | AB14: ='IS order'!L66/'IS order'!$M$12 -> 0.08471865683 | AC14: =60*60*'cat order'!J23 -> 18000 | AD14: ='cat order'!M23/'cat order'!$M$12 -> 0.2334613652 | AE14: ='cat order'!N23/'cat order'!$M$12 -> 0.6772553356 | AF14: =('cat order'!K66)/'cat order'!$M$12 -> 0.08928329923 | AG14: =60*60*'PhCONHBr order'!J23 -> 18000 | AH14: ='PhCONHBr order'!M23/'PhCONHBr order'!$M$12 -> 0.3450614624 | AI14: ='PhCONHBr order'!N23/'PhCONHBr order'!$M$12 -> 0.5971499935 | AJ14: =('PhCONHBr order'!L65)/'PhCONHBr order'!$M$12 -> 0.05778854411 | AK14: =60*60*#REF! ->  | AL14: =#REF!/#REF! ->  | AM14: =#REF!/#REF! ->  | AN14: =(#REF!)/#REF! ->  | AO14: =60*60*'SM order'!J23 -> 18000 | AP14: ='SM order'!M23/'SM order'!$M$12 -> 0.001156077527 | AQ14: ='SM order'!O23/'SM order'!$M$12 -> 0.8675378139 | AR14: ='SM order'!L65/('SM order'!$M$12) -> 0.1313061086 | AS14: =60*60*'cat order'!P24 -> 21600 | AT14: ='cat order'!S24/'cat order'!$S$12 -> 0.2742066706 | AU14: ='cat order'!T24/'cat order'!$S$12 -> 0.6012381406 | AV14: =('cat order'!O66)/'cat order'!$S$12 -> 0.1245551888 | AW14: =5*60*60 -> 18000 | AX14: =#REF!/#REF! ->  | AY14: =#REF!/#REF! ->  | AZ14: =#REF!/#REF! ->  | BA14: 18000 | BB14: ='5 equiv. BzOH cat order'!G23/'5 equiv. BzOH cat order'!$G$12 -> 0 | BC14: ='5 equiv. BzOH cat order'!H23/'5 equiv. BzOH cat order'!$G$12 -> 0.9488541289 | BD14: ='5 equiv. BzOH cat order'!G134/'5 equiv. BzOH cat order'!$G$12 -> 0.05114587107 | BE14: 18000 | BG14: ='5 equiv. BzOH cat order'!T23/80 -> 0.8382189951 | BH14: N/A
A15: =60*'P inhibition, or deactivation'!D24 -> 360 | B15: ='P inhibition, or deactivation'!F24/'P inhibition, or deactivation'!$F$12 -> 0.198376127 | C15: ='P inhibition, or deactivation'!G24/'P inhibition, or deactivation'!$F$12 -> 0.7395320197 | D15: =('P inhibition, or deactivation'!H68)/'P inhibition, or deactivation'!$F$12 -> 0.06209185333 | E15: =60*'P inhibition, or deactivation'!H26 -> 480 | F15: ='P inhibition, or deactivation'!K26/'P inhibition, or deactivation'!$K$12 -> 0.2260432587 | G15: ='P inhibition, or deactivation'!L26/'P inhibition, or deactivation'!$K$12 -> 1.686799029 | H15: =('P inhibition, or deactivation'!L68)/'P inhibition, or deactivation'!$K$12 -> 0.03846787032 | I15: =60*'P inhibition, or deactivation'!M24 -> 480 | J15: ='P inhibition, or deactivation'!P24/'P inhibition, or deactivation'!$P$12 -> 0.2603482219 | K15: ='P inhibition, or deactivation'!Q24/'P inhibition, or deactivation'!$P$12 -> 3.551772912 | L15: ='P inhibition, or deactivation'!P68/'P inhibition, or deactivation'!$P$12 -> 0.0724942507 | M15: =60*'P spiked reactions'!D24 -> 480 | N15: ='P spiked reactions'!G24/'P spiked reactions'!$G$12 -> 0.3292117418 | O15: ='P spiked reactions'!H24/'P spiked reactions'!$G$12 -> 1.494766177 | P15: =('P spiked reactions'!G67)/'P spiked reactions'!$G$12 -> 0.1376863121 | Q15: =60*'P spiked reactions'!I24 -> 420 | R15: ='P spiked reactions'!L24/'P spiked reactions'!$L$12 -> 0.2437127171 | S15: ='P spiked reactions'!M24/'P spiked reactions'!$L$12 -> 1.676261512 | T15: =('P spiked reactions'!K67)/'P spiked reactions'!$L$12 -> 0.06276847496 | U15: =60*'P spiked reactions'!N24 -> 360 | V15: ='P spiked reactions'!Q24/'P spiked reactions'!$Q$12 -> 0.3726163474 | W15: ='P spiked reactions'!R24/'P spiked reactions'!$Q$12 -> 1.451178413 | X15: ='P spiked reactions'!O67/'P spiked reactions'!$Q$12 -> 0.1354860696 | Y15: =60*60*'IS order'!J24 -> 21600 | Z15: ='IS order'!M24/'IS order'!$M$12 -> 0.1848743992 | AA15: ='IS order'!N24/'IS order'!$M$12 -> 0.7234049652 | AB15: ='IS order'!L67/'IS order'!$M$12 -> 0.09172063563 | AC15: =60*60*'cat order'!J24 -> 21600 | AD15: ='cat order'!M24/'cat order'!$M$12 -> 0.2102108549 | AE15: ='cat order'!N24/'cat order'!$M$12 -> 0.6932608551 | AF15: =('cat order'!K67)/'cat order'!$M$12 -> 0.09652828997 | AG15: =60*60*'PhCONHBr order'!J24 -> 21600 | AH15: ='PhCONHBr order'!M24/'PhCONHBr order'!$M$12 -> 0.3288036291 | AI15: ='PhCONHBr order'!N24/'PhCONHBr order'!$M$12 -> 0.6104240558 | AJ15: =('PhCONHBr order'!L66)/'PhCONHBr order'!$M$12 -> 0.0607723151 | AK15: =60*60*#REF! ->  | AL15: =#REF!/#REF! ->  | AM15: =#REF!/#REF! ->  | AN15: =(#REF!)/#REF! ->  | AO15: =60*60*'SM order'!J24 -> 21600 | AP15: ='SM order'!M24/'SM order'!$M$12 -> 0 | AQ15: ='SM order'!O24/'SM order'!$M$12 -> 0.8660619015 | AR15: ='SM order'!L66/('SM order'!$M$12) -> 0.1339380985 | AS15: =60*60*'cat order'!P25 -> 25200 | AT15: ='cat order'!S25/'cat order'!$S$12 -> 0.2552610419 | AU15: ='cat order'!T25/'cat order'!$S$12 -> 0.616469441 | AV15: =('cat order'!O67)/'cat order'!$S$12 -> 0.1282695171 | AW15: =6*60*60 -> 21600 | AX15: =#REF!/#REF! ->  | AY15: =#REF!/#REF! ->  | AZ15: =#REF!/#REF! ->  | BA15: 21600 | BB15: ='5 equiv. BzOH cat order'!G24/'5 equiv. BzOH cat order'!$G$12 -> 0 | BC15: ='5 equiv. BzOH cat order'!H24/'5 equiv. BzOH cat order'!$G$12 -> 0.9488541289 | BD15: ='5 equiv. BzOH cat order'!G135/'5 equiv. BzOH cat order'!$G$12 -> 0.05114587107 | BE15: 21600 | BG15: ='5 equiv. BzOH cat order'!T24/80 -> 0.8578940681 | BH15: N/A
A16: =60*'P inhibition, or deactivation'!D25 -> 420 | B16: ='P inhibition, or deactivation'!F25/'P inhibition, or deactivation'!$F$12 -> 0.1847684655 | C16: ='P inhibition, or deactivation'!G25/'P inhibition, or deactivation'!$F$12 -> 0.75 | D16: =('P inhibition, or deactivation'!H69)/'P inhibition, or deactivation'!$F$12 -> 0.06523153446 | U16: =60*'P spiked reactions'!N25 -> 420 | V16: ='P spiked reactions'!Q25/'P spiked reactions'!$Q$12 -> 0.3405398633 | W16: ='P spiked reactions'!R25/'P spiked reactions'!$Q$12 -> 1.470555578 | X16: ='P spiked reactions'!O68/'P spiked reactions'!$Q$12 -> 0.1481853879 | Y16: =60*60*'IS order'!J25 -> 25200 | Z16: ='IS order'!M25/'IS order'!$M$12 -> 0.1694952232 | AA16: ='IS order'!N25/'IS order'!$M$12 -> 0.7341891366 | AB16: ='IS order'!L68/'IS order'!$M$12 -> 0.09631564018 | AC16: =60*60*'cat order'!J25 -> 25200 | AD16: ='cat order'!M25/'cat order'!$M$12 -> 0.1953672291 | AE16: ='cat order'!N25/'cat order'!$M$12 -> 0.7079456808 | AF16: =('cat order'!K68)/'cat order'!$M$12 -> 0.09668709016 | AG16: =60*60*'PhCONHBr order'!J25 -> 25200 | AH16: ='PhCONHBr order'!M25/'PhCONHBr order'!$M$12 -> 0.3153455867 | AI16: ='PhCONHBr order'!N25/'PhCONHBr order'!$M$12 -> 0.6203852871 | AJ16: =('PhCONHBr order'!L67)/'PhCONHBr order'!$M$12 -> 0.06426912629 | AK16: =60*60*#REF! ->  | AL16: =#REF!/#REF! ->  | AM16: =#REF!/#REF! ->  | AN16: =(#REF!)/#REF! ->  | AO16: =60*60*'SM order'!J25 -> 25200 | AP16: ='SM order'!M25/'SM order'!$M$12 -> 0 | AQ16: ='SM order'!O25/'SM order'!$M$12 -> 0.8706358336 | AR16: ='SM order'!L67/('SM order'!$M$12) -> 1.147724762 | AS16: =60*60*'cat order'!P26 -> 28800 | AT16: ='cat order'!S26/'cat order'!$S$12 -> 0.234829518 | AU16: ='cat order'!T26/'cat order'!$S$12 -> 0.6293235896 | AV16: =('cat order'!O68)/'cat order'!$S$12 -> 0.1358468924 | AW16: =7*60*60 -> 25200 | AX16: =#REF!/#REF! ->  | AY16: =#REF!/#REF! ->  | AZ16: =#REF!/#REF! ->  | BA16: 25200 | BB16: ='5 equiv. BzOH cat order'!G25/'5 equiv. BzOH cat order'!$G$12 -> 0 | BC16: ='5 equiv. BzOH cat order'!H25/'5 equiv. BzOH cat order'!$G$12 -> 0.9488541289 | BD16: ='5 equiv. BzOH cat order'!G136/'5 equiv. BzOH cat order'!$G$12 -> 0.05114587107 | BE16: 25200 | BG16: ='5 equiv. BzOH cat order'!T25/80 -> 0.86857225 | BH16: N/A
A17: =60*'P inhibition, or deactivation'!D26 -> 480 | B17: ='P inhibition, or deactivation'!F26/'P inhibition, or deactivation'!$F$12 -> 0.1733164243 | C17: ='P inhibition, or deactivation'!G26/'P inhibition, or deactivation'!$F$12 -> 0.7591157085 | D17: =('P inhibition, or deactivation'!H70)/'P inhibition, or deactivation'!$F$12 -> 0.06756786722 | U17: =60*'P spiked reactions'!N26 -> 480 | V17: ='P spiked reactions'!Q26/'P spiked reactions'!$Q$12 -> 0.3244792906 | W17: ='P spiked reactions'!R26/'P spiked reactions'!$Q$12 -> 1.484398194 | X17: ='P spiked reactions'!O69/'P spiked reactions'!$Q$12 -> 0.1504033453 | Y17: =60*60*'IS order'!J26 -> 28800 | Z17: ='IS order'!M26/'IS order'!$M$12 -> 0.1538261549 | AA17: ='IS order'!N26/'IS order'!$M$12 -> 0.7468473869 | AB17: ='IS order'!L69/'IS order'!$M$12 -> 0.09932645828 | AC17: =60*60*'cat order'!J26 -> 28800 | AD17: ='cat order'!M26/'cat order'!$M$12 -> 0.1824497779 | AE17: ='cat order'!N26/'cat order'!$M$12 -> 0.715684772 | AF17: =('cat order'!K69)/'cat order'!$M$12 -> 0.1018654502 | AG17: =60*60*'PhCONHBr order'!J26 -> 28800 | AH17: ='PhCONHBr order'!M26/'PhCONHBr order'!$M$12 -> 0.3052536652 | AI17: ='PhCONHBr order'!N26/'PhCONHBr order'!$M$12 -> 0.6289374602 | AJ17: =('PhCONHBr order'!L68)/'PhCONHBr order'!$M$12 -> 0.06580887464 | AK17: =60*60*#REF! ->  | AL17: =#REF!/#REF! ->  | AM17: =#REF!/#REF! ->  | AN17: =(#REF!)/#REF! ->  | AO17: =60*60*'SM order'!J26 -> 28800 | AP17: ='SM order'!M26/'SM order'!$M$12 -> 0 | AQ17: ='SM order'!O26/'SM order'!$M$12 -> 0.8693210475 | AR17: ='SM order'!L68/('SM order'!$M$12) -> 1.149039548 | AS17: =60*60*'cat order'!P27 -> 32400 | AT17: ='cat order'!S27/'cat order'!$S$12 -> 0.2237869276 | AU17: ='cat order'!T27/'cat order'!$S$12 -> 0.6423504937 | AV17: =('cat order'!O69)/'cat order'!$S$12 -> 0.1338625787 | AW17: =8*60*60 -> 28800 | AX17: =#REF!/#REF! ->  | AY17: =#REF!/#REF! ->  | AZ17: =#REF!/#REF! ->  | BA17: 28800 | BB17: ='5 equiv. BzOH cat order'!G26/'5 equiv. BzOH cat order'!$G$12 -> 0 | BC17: ='5 equiv. BzOH cat order'!H26/'5 equiv. BzOH cat order'!$G$12 -> 0.9488541289 | BD17: ='5 equiv. BzOH cat order'!G137/'5 equiv. BzOH cat order'!$G$12 -> 0.05114587107 | BE17: 28800 | BG17: ='5 equiv. BzOH cat order'!T26/80 -> 0.8803981128 | BH17: N/A
AS18: =60*60*'cat order'!P28 -> 36000 | AT18: ='cat order'!S28/'cat order'!$S$12 -> 0.21448648 | AU18: ='cat order'!T28/'cat order'!$S$12 -> 0.6544797286 | AV18: =('cat order'!O70)/'cat order'!$S$12 -> 0.1310337914 | BE18: 32400 | BG18: ='5 equiv. BzOH cat order'!T27/80 -> 0.8845310054 | BH18: N/A
